Workbook

Sheet Front Sheet
E1: Learning from Deaths Dashboard
D6: Organisation | E6: NHS Anytown Foundation Trust
D8: Financial Year | E8: 2017-18
D10: Month | E10: September
A15: 2017-18
A16: 2018-19
A17: 2019-20
A18: 2020-21
A19: 2021-22
A20: April
A21: May
A22: June
A23: July
A24: August
A25: September
A26: October
A27: November
A28: December
A29: January | C29: Learning from deaths dashboard V2.1, updated 08/03/2017
A30: February
A31: March

Sheet Guidance
D1: Learning from Deaths Dashboard
B3: Purpose of the dashboard
B4: This suggested dashboard is a tool to aid the systematic recording of deaths and learning from the care provided by NHS Trusts and NHS Foundation Trusts. Trusts may use this to record relevant incidents of mortality, deaths reviewed and lessons learnt to encourage future learning and the improvement of care. Guidance on what should be recorded in individual fields is provided below, alongside instructions for completing and updating the dashboard. This guidance on individual fields complements the wider guidance provided in National Guidance on Learning From Deaths and separate methodology guidance on the Structured Judgement Review (SJR) as developed by the Royal College of Physicians (RCP). The dashboard is not prescriptive and Trusts may set their own definitions according to local goals and data availability, although minimum requirements are set out in the national guidance.
B5: To update this dashboard - enter your data on the "Data" worksheet. The dashboard sheet is automatically updated.
B6: Guidance on individual fields
B8: Field No. | C8: Field | D8: Description of Field
B9: Recording data on structured judgement reviews:
B10: 1 | C10: Total Number of Deaths in scope | D10: This must as a minimum include all adult inpatient deaths excluding maternity services. Where additional deaths are included (for example maternal deaths, deaths post-discharge or deaths of outpatients etc) the inclusion criteria should be made clear in this field, which can vary by trust. The total number of deaths in scope defined in this field must be used in all subsequent relevant fields in this work book. If a post-discharge period is being included in scope, (eg deaths within 30 days of discharge) then the death should be counted in the month where the death actually occurred rather than time of admittance or discharge. Note that where it has been identified that a patient has a learning disability the death should be recorded separately (see Data item 6, below).
B11: 2 | C11: Total Number of Deaths Reviewed under the SJR methodology | D11: This is the total number of deaths for which the care provided to the patient has been reviewed by your Trust. This may be a combination of deaths reviewed under national and local minimum requirements and random sampling of all other deaths in scope.
B12: 3 | C12: Total number of deaths considered to have more than a 50% chance of having been due to problems in care | D12: The Structured Judgement Review methodology, for use in relation to adult acute inpatient deaths, allows for reviewers to score a death as having a more than 50% chance of having been due to problems in care when this judgement is made in relation to the care provided by the trust conducting the review. If not using RCP SJR, then the method used to judge whether a death was more likely than not to have been due to problems in care in relation to the care provided by the Trust conducting the review (or another provider if appropriate) should be stated here including any definitions used. Note that if you are applying other methodologies to specific groups, such as learning disabilities patients, those methodologies may require a degree of judgement to determine whether the death was more likely than not to have been due to problems in care. It may be appropriate to cross-reference those outputs with the processes for assessing structured judgement reviews, and if appropriate to include those outputs here. Trusts are able to include monthly totals of reviewed deaths that were in each category of the Likert scale 1 to 6, used by PRISM (as shown on the data sheet 4) (PRISM, Medical Record Review, Dr Helen Hogan, January 2014). Alternatively, the 1 to 6 categories can be either left blank or edited as appropriate, for example to include another scale such as the 5 point scale used by the National Confidential Enquiry into Patient Outcome and Death (NCEPOD).
B13: Recording data on LeDeR reviews:
B14: 4 | C14: Total Number of Deaths in scope | D14: This must include all adult inpatient deaths for patients with identified learning disabilities. The total number of deaths in scope defined in this field must be used in all subsequent relevant fields. If a post-discharge period is being included in scope, (eg deaths within 30 days of discharge) then the death should be counted in the month where the death actually occurred rather than time of admittance or discharge.
B15: 5 | C15: Total Deaths Reviewed Through the LeDeR Methodology | D15: Formally, the LeDeR review methodology should be applied to all of the deaths shown as 'in scope'. You should record the total number of deaths reviewed here.
B16: 6 | C16: Total Number of deaths considered more likely than not to have been due to problems in care. | D16: Record the total number of deaths for which review evidence leads to a conclusion that it is more likely than not that the death was potentially avoidable. This will require that a degree of judgement is applied to the outputs of the LeDeR review, and it may be appropriate to cross-reference these outputs with the processes for assessing structured judgement reviews
B18: How to update the dashboard
B19: To update this dashboard - enter your data on the "Data" worksheet. The dashboard sheet is automatically updated. To update the dashboard with new data: 1. Enter data for appropriate month(s) in the Data tab. Note that the columns headed 1,2,3,4,5,6 refer to the scale proposed by PRISM and these are optional fields. The dashboard will still function correctly if these fields are left blank. - In the first 3 columns enter the data for your structured judgement reviews (number of deaths in scope, numbers reviewed, and numbers deemed more likely than not to be due to problems in care ) - For learning disabilities patients, enter the number of deaths in scope, numbers reviewed under the LeDeR methodology, and numbers deemed more likely than not to be due to problems in care 2. Change the month and year on the Front Sheet tab to the most recent month of data. 3. Change the data range on the time series charts as required by using the interactive dropdowns on the Dashboard tab (eg cell V4). Note that the time series charts are not linked to the front sheet selection and are driven entirely by the dropdowns.

Sheet Trust Dashboard
G1: =CONCATENATE(Data!F1, ": Learning from Deaths Dashboard - ", Data!F3, " ", Data!F4 ) -> NHS Anytown Foundation Trust: Learning from Deaths Dashboard - September 2017-18
B2: Description: The suggested dashboard is a tool to aid the systematic recording of deaths and learning from care provided by NHS Trusts. Trusts are encouraged to use this to record relevant incidents of mortality, number of deaths reviewed and cases from which lessons can be learnt to improve care.
B4: Summary of total number of deaths and total number of cases reviewed under the Structured Judgement Review Methodology
B6: Total Number of Deaths, Deaths Reviewed and Deaths Deemed more likely than not due to problems in care (does not include patients with identified learning disabilities) | Q6: Time Series: | S6: Start date | T6: 2017-18 | V6: Q1 | Y6: End date | AB6: 2018-19 | AD6: Q2
B10: Total Number of Deaths in Scope | G10: Total Deaths Reviewed | L10: Total Number of deaths considered more likely than not due to problems in care PRISM Score<=3 or equivalent measure
B12: This Month | D12: Last Month | G12: This Month | I12: Last Month | L12: This Month | N12: Last Month
B14: =Workings!E8 -> 454 | D14: =Workings!E32 -> 523 | G14: =Workings!E9 -> 339 | I14: =Workings!E33 -> 298 | L14: =Workings!E10 -> 14 | N14: =Workings!E34 -> 20
B16: This Quarter (QTD) | D16: Last Quarter | G16: This Quarter (QTD) | I16: Last Quarter | L16: This Quarter (QTD) | N16: Last Quarter
B18: =Workings!E44 -> 1436 | D18: =Workings!E68 -> 1509 | G18: =Workings!E45 -> 939 | I18: =Workings!E69 -> 1053 | L18: =Workings!E46 -> 50 | N18: =Workings!E70 -> 54
B20: This Year (YTD) | D20: Last Year | G20: This Year (YTD) | I20: Last Year | L20: This Year (YTD) | N20: Last Year
B22: =Workings!E80 -> 6069 | D22: =Workings!E104 -> 0 | G22: =Workings!E81 -> 3991 | I22: =Workings!E105 -> 0 | L22: =Workings!E82 -> 227 | N22: =Workings!E106 -> 0
B24: Total Deaths Reviewed, categorised by PRISM Score
B26: Score 1 | G26: Score 2 | L26: Score 3 | Q26: Score 4 | V26: Score 5 | AB26: Score 6
B27: Definitely avoidable | G27: Strong evidence of avoidability | L27: Probably avoidable (more than 50:50) | Q27: Probably avoidable but not very likely | V27: Slight evidence of avoidability | AB27: Definitely not avoidable
B29: This Month | D29: =Workings!E11 -> 0 | E29: =IFERROR(D29/SUM($D29, $I29,$N29,$S29,$Y29,$AD29), "-") -> 0 | G29: This Month | I29: =Workings!E12 -> 4 | J29: =IFERROR(I29/SUM($D29, $I29,$N29,$S29,$Y29,$AD29), "-") -> 0.01179941003 | L29: This Month | N29: =Workings!E13 -> 10 | O29: =IFERROR(N29/SUM($D29, $I29,$N29,$S29,$Y29,$AD29), "-") -> 0.02949852507 | Q29: This Month | S29: =Workings!E14 -> 33 | T29: =IFERROR(S29/SUM($D29, $I29,$N29,$S29,$Y29,$AD29), "-") -> 0.09734513274 | V29: This Month | Y29: =Workings!E15 -> 65 | Z29: =IFERROR(Y29/SUM($D29, $I29,$N29,$S29,$Y29,$AD29), "-") -> 0.191740413 | AB29: This Month | AD29: =Workings!E16 -> 227 | AE29: =IFERROR(AD29/SUM($D29, $I29,$N29,$S29,$Y29,$AD29), "-") -> 0.6696165192
N30: 7
B31: This Quarter (QTD) | D31: =Workings!E47 -> 5 | E31: =IFERROR(D31/SUM($D31, $I31,$N31,$S31,$Y31,$AD31), "-") -> 0.005324813632 | G31: This Quarter (QTD) | I31: =Workings!E48 -> 14 | J31: =IFERROR(I31/SUM($D31, $I31,$N31,$S31,$Y31,$AD31), "-") -> 0.01490947817 | L31: This Quarter (QTD) | N31: =Workings!E49 -> 31 | O31: =IFERROR(N31/SUM($D31, $I31,$N31,$S31,$Y31,$AD31), "-") -> 0.03301384452 | Q31: This Quarter (QTD) | S31: =Workings!E50 -> 90 | T31: =IFERROR(S31/SUM($D31, $I31,$N31,$S31,$Y31,$AD31), "-") -> 0.09584664537 | V31: This Quarter (QTD) | Y31: =Workings!E51 -> 178 | Z31: =IFERROR(Y31/SUM($D31, $I31,$N31,$S31,$Y31,$AD31), "-") -> 0.1895633653 | AB31: This Quarter (QTD) | AD31: =Workings!E52 -> 621 | AE31: =IFERROR(AD31/SUM($D31, $I31,$N31,$S31,$Y31,$AD31), "-") -> 0.661341853
B33: This Year (YTD) | D33: =Workings!E83 -> 30 | E33: =IFERROR(D33/SUM($D33, $I33,$N33,$S33,$Y33,$AD33), "-") -> 0.007516913054 | G33: This Year (YTD) | I33: =Workings!E84 -> 65 | J33: =IFERROR(I33/SUM($D33, $I33,$N33,$S33,$Y33,$AD33), "-") -> 0.01628664495 | L33: This Year (YTD) | N33: =Workings!E85 -> 132 | O33: =IFERROR(N33/SUM($D33, $I33,$N33,$S33,$Y33,$AD33), "-") -> 0.03307441744 | Q33: This Year (YTD) | S33: =Workings!E86 -> 378 | T33: =IFERROR(S33/SUM($D33, $I33,$N33,$S33,$Y33,$AD33), "-") -> 0.09471310449 | V33: This Year (YTD) | Y33: =Workings!E87 -> 754 | Z33: =IFERROR(Y33/SUM($D33, $I33,$N33,$S33,$Y33,$AD33), "-") -> 0.1889250814 | AB33: This Year (YTD) | AD33: =Workings!E88 -> 2632 | AE33: =IFERROR(AD33/SUM($D33, $I33,$N33,$S33,$Y33,$AD33), "-") -> 0.6594838386
B35: Summary of total number of learning disability deaths and total number reviewed under the LeDeR methodology
B37: Total Number of Deaths, Deaths Reviewed and Deaths Deemed more likely than not due to problems in care for patients with identified learning disabilities | Q37: Time Series: | S37: Start date | T37: 2017-18 | V37: Q1 | Y37: End date | AB37: 2018-19 | AD37: Q1
B41: Total Number of Deaths in scope | G41: Total Deaths Reviewed Through the LeDeR Methodology (or equivalent) | L41: Total Number of deaths considered more likely than not due to problems in care
B43: This Month | D43: Last Month | G43: This Month | I43: Last Month | L43: This Month | N43: Last Month
B45: =Workings!E17 -> 10 | D45: =Workings!E41 -> 2 | G45: =Workings!E18 -> 10 | I45: =Workings!E42 -> 2 | L45: =Workings!E19 -> 2 | N45: =Workings!E43 -> 0
B47: This Quarter (QTD) | D47: Last Quarter | G47: This Quarter (QTD) | I47: Last Quarter | L47: This Quarter (QTD) | N47: Last Quarter
B49: =Workings!E53 -> 16 | D49: =Workings!E77 -> 24 | G49: =Workings!E54 -> 16 | I49: =Workings!E78 -> 24 | L49: =Workings!E55 -> 3 | N49: =Workings!E79 -> 4
B51: This Year (YTD) | D51: Last Year | G51: This Year (YTD) | I51: Last Year | L51: This Year (YTD) | N51: Last Year
B53: =Workings!E89 -> 75 | D53: =Workings!E113 -> 0 | G53: =Workings!E90 -> 75 | I53: =Workings!E114 -> 0 | L53: =Workings!E91 -> 19 | N53: =Workings!E115 -> 0

Sheet Trust SJR Comparison (hidden)
E1: =CONCATENATE(Data!F1, ": Learning from Deaths Dashboard - ", Data!F3, " ", Data!F4 ) -> NHS Anytown Foundation Trust: Learning from Deaths Dashboard - September 2017-18
C2: Description: Small differences in review practices can mean that comparisons between Trusts do not give a fair picture. It is open to Trusts to use data from other organisations to consider whether their own review processes are as comprehensive as others. Trusts are able to select their own peers or comparator organisations, and can use this locally to challenge themselves if their findings are very different. There is no central mechanism to provide you with data from other Trusts – this material is for local use and might be drawn, for example, from the dashboards published by other organisations
E4: Total Deaths in scope | J4: Total Deaths Reviewed | Q4: Total number of deaths considered to have more than a 50% chance of having been avoidable (RCP <= 3)
B6: Organisation Name | E6: This Month | F6: This Quarter (QTD) | G6: This Year (YTD) | J6: This Month | K6: This Month % | L6: This Quarter (QTD) | M6: This Quarter % (QTD) | N6: This Year (YTD) | O6: This Year % (YTD) | Q6: This Month | R6: This Month % | S6: This Quarter (QTD) | T6: This Quarter % (QTD) | U6: This Year (YTD) | V6: This Year % (YTD)
B8: =Data!F1 -> NHS Anytown Foundation Trust | E8: =Workings!E8 -> 454 | F8: =Workings!E44 -> 1436 | G8: =Workings!E80 -> 6069 | J8: =Workings!E9 -> 339 | K8: =IFERROR(J8/E8, "-") -> 0.7466960352 | L8: =Workings!E45 -> 939 | M8: =IFERROR(L8/F8, "-") -> 0.6538997214 | N8: =Workings!E81 -> 3991 | O8: =IFERROR(N8/G8, "-") -> 0.6576042182 | Q8: =Workings!E10 -> 14 | R8: =IFERROR(Q8/E8, "-") -> 0.03083700441 | S8: =Workings!E46 -> 50 | T8: =IFERROR(S8/F8, "-") -> 0.0348189415 | U8: =Workings!E82 -> 227 | V8: =IFERROR(U8/G8, "-") -> 0.03740319657
B9: =IF(ISBLANK(Data!$S$6),"-",Data!S6) -> Comparison trust 1 | E9: =IF(ISBLANK(Data!$S$6),"-",Workings!E20) -> 376 | F9: =IF(ISBLANK(Data!$S$6),"-",Workings!E56) -> 1035 | G9: =IF(ISBLANK(Data!$S$6),"-",Workings!E92) -> 4057 | J9: =IF(ISBLANK(Data!$S$6),"-",Workings!E21) -> 266 | K9: =IFERROR(J9/E9, "-") -> 0.7074468085 | L9: =IF(ISBLANK(Data!$S$6),"-",Workings!E57) -> 719 | M9: =IFERROR(L9/F9, "-") -> 0.6946859903 | N9: =IF(ISBLANK(Data!$S$6),"-",Workings!E93) -> 2363 | O9: =IFERROR(N9/G9, "-") -> 0.5824500863 | Q9: =IF(ISBLANK(Data!$S$6),"-",Workings!E22) -> 40 | R9: =IFERROR(Q9/E9, "-") -> 0.1063829787 | S9: =IF(ISBLANK(Data!$S$6),"-",Workings!E58) -> 106 | T9: =IFERROR(S9/F9, "-") -> 0.1024154589 | U9: =IF(ISBLANK(Data!$S$6),"-",Workings!E94) -> 343 | V9: =IFERROR(U9/G9, "-") -> 0.08454523047
B10: =IF(ISBLANK(Data!$V$6),"-",Data!V6) -> Comparison trust 2 | E10: =IF(ISBLANK(Data!$V$6),"-",Workings!E23) -> 396 | F10: =IF(ISBLANK(Data!$V$6),"-",Workings!E59) -> 1087 | G10: =IF(ISBLANK(Data!$V$6),"-",Workings!E95) -> 4186 | J10: =IF(ISBLANK(Data!$V$6),"-",Workings!E24) -> 326 | K10: =IFERROR(J10/E10, "-") -> 0.8232323232 | L10: =IF(ISBLANK(Data!$V$6),"-",Workings!E60) -> 625 | M10: 0.5749770009 | N10: =IF(ISBLANK(Data!$V$6),"-",Workings!E96) -> 2183 | O10: =IFERROR(N10/G10, "-") -> 0.5215002389 | Q10: =IF(ISBLANK(Data!$V$6),"-",Workings!E25) -> 42 | R10: 0.1060606061 | S10: =IF(ISBLANK(Data!$V$6),"-",Workings!E61) -> 86 | T10: 0.07911683533 | U10: =IF(ISBLANK(Data!$V$6),"-",Workings!E97) -> 302 | V10: 0.07214524606
B11: =IF(ISBLANK(Data!$Y$6),"-",Data!Y6) -> Comparison trust 3 | E11: =IF(ISBLANK(Data!$Y$6),"-",Workings!E26) -> 378 | F11: =IF(ISBLANK(Data!$Y$6),"-",Workings!E62) -> 1038 | G11: =IF(ISBLANK(Data!$Y$6),"-",Workings!E98) -> 4073 | J11: =IF(ISBLANK(Data!$Y$6),"-",Workings!E27) -> 325 | K11: =IFERROR(J11/E11, "-") -> 0.8597883598 | L11: =IF(ISBLANK(Data!$Y$6),"-",Workings!E63) -> 598 | M11: 0.5761078998 | N11: =IF(ISBLANK(Data!$Y$6),"-",Workings!E99) -> 1773 | O11: =IFERROR(N11/G11, "-") -> 0.4353056715 | Q11: =IF(ISBLANK(Data!$Y$6),"-",Workings!E28) -> 36 | R11: 0.09523809524 | S11: =IF(ISBLANK(Data!$Y$6),"-",Workings!E64) -> 83 | T11: 0.07996146435 | U11: =IF(ISBLANK(Data!$Y$6),"-",Workings!E100) -> 269 | V11: 0.06604468451
B12: =IF(ISBLANK(Data!$AB$6),"-",Data!AB6) -> - | E12: =IF(ISBLANK(Data!$AB$6),"-",Workings!E29) -> - | F12: =IF(ISBLANK(Data!$AB$6),"-",Workings!E65) -> - | G12: =IF(ISBLANK(Data!$AB$6),"-",Workings!E101) -> - | J12: =IF(ISBLANK(Data!$AB$6),"-",Workings!E30) -> - | K12: =IFERROR(J12/E12, "-") -> - | L12: =IF(ISBLANK(Data!$AB$6),"-",Workings!E66) -> - | M12: - | N12: =IF(ISBLANK(Data!$AB$6),"-",Workings!E102) -> - | O12: =IFERROR(N12/G12, "-") -> - | Q12: =IF(ISBLANK(Data!$AB$6),"-",Workings!E31) -> - | R12: =IFERROR(Q12/E12, "-") -> - | S12: =IF(ISBLANK(Data!$AB$6),"-",Workings!E67) -> - | T12: =IFERROR(S12/F12, "-") -> - | U12: =IF(ISBLANK(Data!$AB$6),"-",Workings!E103) -> - | V12: =IFERROR(U12/G12, "-") -> -

Sheet Workings (hidden)
A1: WORKINGS (do not delete!) | U1: FOR TIMESERIES CHART (also powered by named ranges) | AD1: FOR TIMESERIES CHART (also powered by named ranges)
U2: time series start | V2: code | X2: time series end | Y2: code | AD2: time series start | AE2: code | AG2: time series end | AH2: code
B3: year | C3: =Data!F4 -> 2017-18 | U3: ='Trust Dashboard'!V6&" "&'Trust Dashboard'!T6 -> Q1 2017-18 | V3: =VLOOKUP(U3, U8:V127, 2, 0) -> 1 | X3: ='Trust Dashboard'!AD6&" "&'Trust Dashboard'!AB6 -> Q2 2018-19 | Y3: =VLOOKUP(X3, U8:V127, 2, 0) -> 6 | AD3: ='Trust Dashboard'!$V$37&" "&'Trust Dashboard'!$T$37 -> Q1 2017-18 | AE3: =VLOOKUP(AD3, U8:V47, 2, 0) -> 1 | AG3: ='Trust Dashboard'!$AD$37&" "&'Trust Dashboard'!$AB$37 -> Q1 2018-19 | AH3: =VLOOKUP(AG3, U8:V127, 2, 0) -> 5
B4: month | C4: =Data!F3 -> September
B5: lookup | C5: =C3&C4 -> 2017-18September
H6: drop downs | L6: Quarter table for time series | U6: time series lookups | Y6: time series chart data table | AD6: time series chart data table
B7: ind_0 | C7: ind | D7: data col | E7: lookup | H7: year | I7: month | J7: quarter | L7: Quarter | M7: Total Deaths (not LD) | N7: Total Deaths Reviewed | O7: Deaths Avoidable > 50% | P7: LD Deaths | Q7: LD Deaths Reviewed | R7: LD Deaths Avoidable > 50% | U7: date | V7: lookup code | Y7: date | Z7: deaths | AA7: reviewed | AB7: More likely than not due to problems in care | AD7: date | AE7: deaths | AF7: reviewed | AG7: More likely than not due to problems in care
A8: this month | C8: Total Deaths | D8: 4 | E8: =VLOOKUP($C$5, Data!$D$8:$DJ$127, Workings!$D8, 0) -> 454 | H8: 2017-18 | I8: April | J8: Q1 | L8: Q1 2017-18 | M8: =VLOOKUP($L8, Data!$B$8:$BB$127, 42, 0) -> 1509 | N8: =VLOOKUP($L8, Data!$B$8:$BB$127, 43, 0) -> 1053 | O8: =VLOOKUP($L8, Data!$B$8:$BB$127, 44, 0) -> 54 | P8: =VLOOKUP($L8, Data!$B$8:$BB$127, 51, 0) -> 24 | Q8: =VLOOKUP($L8, Data!$B$8:$BB$127, 52, 0) -> 24 | R8: =VLOOKUP($L8, Data!$B$8:$BB$127, 53, 0) -> 4 | S8: Q1 2017-18 | U8: Q1 2017-18 | V8: 1 | Y8: =IF( AND(V8 >= $V$3, V8<=$Y$3), S8, "") -> Q1 2017-18 | Z8: =IF(IF( AND(V8 >= $V$3, V8<=$Y$3), M8, NA() ) = 0, NA(), IF( AND(V8 >= $V$3, V8<=$Y$3), M8, NA() )) -> 1509 | AA8: =IF(IF( AND(V8 >= $V$3, V8<=$Y$3), N8, NA() ) = 0, NA(), IF( AND(V8 >= $V$3, V8<=$Y$3), N8, NA() )) -> 1053 | AB8: =IF(IF( AND(V8 >= $V$3, V8<=$Y$3), O8, NA() ) = 0, NA(), IF( AND(V8 >= $V$3, V8<=$Y$3), O8, NA() )) -> 54 | AD8: =IF( AND(V8 >= $AE$3, V8<=$AH$3), S8, "") -> Q1 2017-18 | AE8: =IF(IF( AND(V8 >= $AE$3, V8<=$AH$3), P8, NA()) = 0, NA(), IF( AND(V8 >= $AE$3, V8<=$AH$3), P8, NA())) -> 24 | AF8: =IF(IF( AND(V8 >= $AE$3, V8<=$AH$3), Q8, NA()) = 0, NA(), IF( AND(V8 >= $AE$3, V8<=$AH$3), Q8, NA())) -> 24 | AG8: =IF(IF( AND(V8 >= $AE$3, V8<=$AH$3), R8, NA()) = 0, NA(), IF( AND(V8 >= $AE$3, V8<=$AH$3), R8, NA())) -> 4
C9: Total Deaths Reviewed | D9: 5 | E9: =VLOOKUP($C$5, Data!$D$8:$DJ$127, Workings!$D9, 0) -> 339 | H9: 2018-19 | I9: May | J9: Q2 | L9: Q2 2017-18 | M9: =VLOOKUP($L9, Data!$B$8:$BB$127, 42, 0) -> 1436 | N9: =VLOOKUP($L9, Data!$B$8:$BB$127, 43, 0) -> 939 | O9: =VLOOKUP($L9, Data!$B$8:$BB$127, 44, 0) -> 50 | P9: =VLOOKUP($L9, Data!$B$8:$BB$127, 51, 0) -> 16 | Q9: =VLOOKUP($L9, Data!$B$8:$BB$127, 52, 0) -> 16 | R9: =VLOOKUP($L9, Data!$B$8:$BB$127, 53, 0) -> 3 | S9: Q2 | U9: Q2 2017-18 | V9: 2 | Y9: =IF( AND(V9 >= $V$3, V9<=$Y$3), S9, "") -> Q2 | Z9: =IF(IF( AND(V9 >= $V$3, V9<=$Y$3), M9, NA() ) = 0, NA(), IF( AND(V9 >= $V$3, V9<=$Y$3), M9, NA() )) -> 1436 | AA9: =IF(IF( AND(V9 >= $V$3, V9<=$Y$3), N9, NA() ) = 0, NA(), IF( AND(V9 >= $V$3, V9<=$Y$3), N9, NA() )) -> 939 | AB9: =IF(IF( AND(V9 >= $V$3, V9<=$Y$3), O9, NA() ) = 0, NA(), IF( AND(V9 >= $V$3, V9<=$Y$3), O9, NA() )) -> 50 | AD9: =IF( AND(V9 >= $AE$3, V9<=$AH$3), S9, "") -> Q2 | AE9: =IF(IF( AND(V9 >= $AE$3, V9<=$AH$3), P9, NA()) = 0, NA(), IF( AND(V9 >= $AE$3, V9<=$AH$3), P9, NA())) -> 16 | AF9: =IF(IF( AND(V9 >= $AE$3, V9<=$AH$3), Q9, NA()) = 0, NA(), IF( AND(V9 >= $AE$3, V9<=$AH$3), Q9, NA())) -> 16 | AG9: =IF(IF( AND(V9 >= $AE$3, V9<=$AH$3), R9, NA()) = 0, NA(), IF( AND(V9 >= $AE$3, V9<=$AH$3), R9, NA())) -> 3
C10: Deaths Avoidable | D10: 6 | E10: =VLOOKUP($C$5, Data!$D$8:$DJ$127, Workings!$D10, 0) -> 14 | H10: 2019-20 | I10: June | J10: Q3 | L10: Q3 2017-18 | M10: =VLOOKUP($L10, Data!$B$8:$BB$127, 42, 0) -> 1565 | N10: =VLOOKUP($L10, Data!$B$8:$BB$127, 43, 0) -> 979 | O10: =VLOOKUP($L10, Data!$B$8:$BB$127, 44, 0) -> 67 | P10: =VLOOKUP($L10, Data!$B$8:$BB$127, 51, 0) -> 11 | Q10: =VLOOKUP($L10, Data!$B$8:$BB$127, 52, 0) -> 11 | R10: =VLOOKUP($L10, Data!$B$8:$BB$127, 53, 0) -> 3 | S10: Q3 | U10: Q3 2017-18 | V10: 3 | Y10: Q3 | Z10: 1565 | AA10: 979 | AB10: 67 | AD10: Q3 | AE10: 11 | AF10: 11 | AG10: 3
C11: RCP1 | D11: 7 | E11: =VLOOKUP($C$5, Data!$D$8:$DJ$127, Workings!$D11, 0) -> 0 | H11: 2020-21 | I11: July | J11: Q4 | L11: Q4 2017-18 | M11: =VLOOKUP($L11, Data!$B$8:$BB$127, 42, 0) -> 1559 | N11: =VLOOKUP($L11, Data!$B$8:$BB$127, 43, 0) -> 1020 | O11: =VLOOKUP($L11, Data!$B$8:$BB$127, 44, 0) -> 56 | P11: =VLOOKUP($L11, Data!$B$8:$BB$127, 51, 0) -> 24 | Q11: =VLOOKUP($L11, Data!$B$8:$BB$127, 52, 0) -> 24 | R11: =VLOOKUP($L11, Data!$B$8:$BB$127, 53, 0) -> 9 | S11: Q4 | U11: Q4 2017-18 | V11: 4 | Y11: Q4 | Z11: 1559 | AA11: 1020 | AB11: 56 | AD11: Q4 | AE11: 24 | AF11: 24 | AG11: 9
C12: RCP2 | D12: 8 | E12: =VLOOKUP($C$5, Data!$D$8:$DJ$127, Workings!$D12, 0) -> 4 | H12: 2021-22 | I12: August | L12: Q1 2018-19 | M12: =VLOOKUP($L12, Data!$B$8:$BB$127, 42, 0) -> 1456 | N12: =VLOOKUP($L12, Data!$B$8:$BB$127, 43, 0) -> 942 | O12: =VLOOKUP($L12, Data!$B$8:$BB$127, 44, 0) -> 44 | P12: =VLOOKUP($L12, Data!$B$8:$BB$127, 51, 0) -> 29 | Q12: =VLOOKUP($L12, Data!$B$8:$BB$127, 52, 0) -> 29 | R12: =VLOOKUP($L12, Data!$B$8:$BB$127, 53, 0) -> 6 | S12: Q1 2018-19 | U12: Q1 2018-19 | V12: 5 | Y12: Q1 2018-19 | Z12: 1456 | AA12: 942 | AB12: 44 | AD12: Q1 2018-19 | AE12: 29 | AF12: 29 | AG12: 6
C13: RCP3 | D13: 9 | E13: =VLOOKUP($C$5, Data!$D$8:$DJ$127, Workings!$D13, 0) -> 10 | H13: 2022-23 | I13: September | L13: Q2 2018-19 | M13: =VLOOKUP($L13, Data!$B$8:$BB$127, 42, 0) -> 1487 | N13: =VLOOKUP($L13, Data!$B$8:$BB$127, 43, 0) -> 1029 | O13: =VLOOKUP($L13, Data!$B$8:$BB$127, 44, 0) -> 55 | P13: =VLOOKUP($L13, Data!$B$8:$BB$127, 51, 0) -> 15 | Q13: =VLOOKUP($L13, Data!$B$8:$BB$127, 52, 0) -> 15 | R13: =VLOOKUP($L13, Data!$B$8:$BB$127, 53, 0) -> 2 | S13: Q2 | U13: Q2 2018-19 | V13: 6 | Y13: Q2 | Z13: 1487 | AA13: 1029 | AB13: 55
C14: RCP4 | D14: 10 | E14: =VLOOKUP($C$5, Data!$D$8:$DJ$127, Workings!$D14, 0) -> 33 | H14: 2023-24 | I14: October | L14: Q3 2018-19 | M14: =VLOOKUP($L14, Data!$B$8:$BB$127, 42, 0) -> 0 | N14: =VLOOKUP($L14, Data!$B$8:$BB$127, 43, 0) -> 0 | O14: =VLOOKUP($L14, Data!$B$8:$BB$127, 44, 0) -> 0 | P14: =VLOOKUP($L14, Data!$B$8:$BB$127, 51, 0) -> 0 | Q14: =VLOOKUP($L14, Data!$B$8:$BB$127, 52, 0) -> 0 | R14: =VLOOKUP($L14, Data!$B$8:$BB$127, 53, 0) -> 0 | S14: Q3 | U14: Q3 2018-19 | V14: 7
C15: RCP5 | D15: 11 | E15: =VLOOKUP($C$5, Data!$D$8:$DJ$127, Workings!$D15, 0) -> 65 | H15: 2024-25 | I15: November | L15: Q4 2018-19 | M15: =VLOOKUP($L15, Data!$B$8:$BB$127, 42, 0) -> 0 | N15: =VLOOKUP($L15, Data!$B$8:$BB$127, 43, 0) -> 0 | O15: =VLOOKUP($L15, Data!$B$8:$BB$127, 44, 0) -> 0 | P15: =VLOOKUP($L15, Data!$B$8:$BB$127, 51, 0) -> 0 | Q15: =VLOOKUP($L15, Data!$B$8:$BB$127, 52, 0) -> 0 | R15: =VLOOKUP($L15, Data!$B$8:$BB$127, 53, 0) -> 0 | S15: Q4 | U15: Q4 2018-19 | V15: 8
C16: RCP6 | D16: 12 | E16: =VLOOKUP($C$5, Data!$D$8:$DJ$127, Workings!$D16, 0) -> 227 | H16: 2025-26 | I16: December | L16: Q1 2019-20 | M16: =VLOOKUP($L16, Data!$B$8:$BB$127, 42, 0) -> 0 | N16: =VLOOKUP($L16, Data!$B$8:$BB$127, 43, 0) -> 0 | O16: =VLOOKUP($L16, Data!$B$8:$BB$127, 44, 0) -> 0 | P16: =VLOOKUP($L16, Data!$B$8:$BB$127, 51, 0) -> 0 | Q16: =VLOOKUP($L16, Data!$B$8:$BB$127, 52, 0) -> 0 | R16: =VLOOKUP($L16, Data!$B$8:$BB$127, 53, 0) -> 0 | S16: Q1 2019-20 | U16: Q1 2019-20 | V16: 9
C17: LD Total Deaths | D17: 13 | E17: =VLOOKUP($C$5, Data!$D$8:$DJ$127, Workings!$D17, 0) -> 10 | H17: 2026-27 | I17: January | L17: Q2 2019-20 | M17: =VLOOKUP($L17, Data!$B$8:$BB$127, 42, 0) -> 0 | N17: =VLOOKUP($L17, Data!$B$8:$BB$127, 43, 0) -> 0 | O17: =VLOOKUP($L17, Data!$B$8:$BB$127, 44, 0) -> 0 | P17: =VLOOKUP($L17, Data!$B$8:$BB$127, 51, 0) -> 0 | Q17: =VLOOKUP($L17, Data!$B$8:$BB$127, 52, 0) -> 0 | R17: =VLOOKUP($L17, Data!$B$8:$BB$127, 53, 0) -> 0 | S17: Q2 | U17: Q2 2019-20 | V17: 10
C18: LD Reviewed | D18: 14 | E18: =VLOOKUP($C$5, Data!$D$8:$DJ$127, Workings!$D18, 0) -> 10 | I18: February | L18: Q3 2019-20 | M18: =VLOOKUP($L18, Data!$B$8:$BB$127, 42, 0) -> 0 | N18: =VLOOKUP($L18, Data!$B$8:$BB$127, 43, 0) -> 0 | O18: =VLOOKUP($L18, Data!$B$8:$BB$127, 44, 0) -> 0 | P18: =VLOOKUP($L18, Data!$B$8:$BB$127, 51, 0) -> 0 | Q18: =VLOOKUP($L18, Data!$B$8:$BB$127, 52, 0) -> 0 | R18: =VLOOKUP($L18, Data!$B$8:$BB$127, 53, 0) -> 0 | S18: Q3 | U18: Q3 2019-20 | V18: 11
C19: LD Avoidable | D19: 15 | E19: =VLOOKUP($C$5, Data!$D$8:$DJ$127, Workings!$D19, 0) -> 2 | I19: March | L19: Q4 2019-20 | M19: =VLOOKUP($L19, Data!$B$8:$BB$127, 42, 0) -> 0 | N19: =VLOOKUP($L19, Data!$B$8:$BB$127, 43, 0) -> 0 | O19: =VLOOKUP($L19, Data!$B$8:$BB$127, 44, 0) -> 0 | P19: =VLOOKUP($L19, Data!$B$8:$BB$127, 51, 0) -> 0 | Q19: =VLOOKUP($L19, Data!$B$8:$BB$127, 52, 0) -> 0 | R19: =VLOOKUP($L19, Data!$B$8:$BB$127, 53, 0) -> 0 | S19: Q4 | U19: Q4 2019-20 | V19: 12
B20: Comparison trust 1 | C20: Total Deaths | D20: 16 | E20: =VLOOKUP($C$5, Data!$D$8:$DJ$127, Workings!$D20, 0) -> 376 | L20: Q1 2020-21 | M20: =VLOOKUP($L20, Data!$B$8:$BB$127, 42, 0) -> 0 | N20: =VLOOKUP($L20, Data!$B$8:$BB$127, 43, 0) -> 0 | O20: =VLOOKUP($L20, Data!$B$8:$BB$127, 44, 0) -> 0 | P20: =VLOOKUP($L20, Data!$B$8:$BB$127, 51, 0) -> 0 | Q20: =VLOOKUP($L20, Data!$B$8:$BB$127, 52, 0) -> 0 | R20: =VLOOKUP($L20, Data!$B$8:$BB$127, 53, 0) -> 0 | S20: Q1 2021-22 | U20: Q1 2020-21 | V20: 13
C21: Total Deaths Reviewed | D21: 17 | E21: =VLOOKUP($C$5, Data!$D$8:$DJ$127, Workings!$D21, 0) -> 266 | L21: Q2 2020-21 | M21: =VLOOKUP($L21, Data!$B$8:$BB$127, 42, 0) -> 0 | N21: =VLOOKUP($L21, Data!$B$8:$BB$127, 43, 0) -> 0 | O21: =VLOOKUP($L21, Data!$B$8:$BB$127, 44, 0) -> 0 | P21: =VLOOKUP($L21, Data!$B$8:$BB$127, 51, 0) -> 0 | Q21: =VLOOKUP($L21, Data!$B$8:$BB$127, 52, 0) -> 0 | R21: =VLOOKUP($L21, Data!$B$8:$BB$127, 53, 0) -> 0 | S21: Q2 | U21: Q2 2020-21 | V21: 14
C22: Deaths Avoidable | D22: 18 | E22: =VLOOKUP($C$5, Data!$D$8:$DJ$127, Workings!$D22, 0) -> 40 | L22: Q3 2020-21 | M22: =VLOOKUP($L22, Data!$B$8:$BB$127, 42, 0) -> 0 | N22: =VLOOKUP($L22, Data!$B$8:$BB$127, 43, 0) -> 0 | O22: =VLOOKUP($L22, Data!$B$8:$BB$127, 44, 0) -> 0 | P22: =VLOOKUP($L22, Data!$B$8:$BB$127, 51, 0) -> 0 | Q22: =VLOOKUP($L22, Data!$B$8:$BB$127, 52, 0) -> 0 | R22: =VLOOKUP($L22, Data!$B$8:$BB$127, 53, 0) -> 0 | S22: Q3 | U22: Q3 2020-21 | V22: 15
B23: Comparison trust 2 | C23: Total Deaths | D23: 19 | E23: =VLOOKUP($C$5, Data!$D$8:$DJ$127, Workings!$D23, 0) -> 396 | L23: Q4 2020-21 | M23: =VLOOKUP($L23, Data!$B$8:$BB$127, 42, 0) -> 0 | N23: =VLOOKUP($L23, Data!$B$8:$BB$127, 43, 0) -> 0 | O23: =VLOOKUP($L23, Data!$B$8:$BB$127, 44, 0) -> 0 | P23: =VLOOKUP($L23, Data!$B$8:$BB$127, 51, 0) -> 0 | Q23: =VLOOKUP($L23, Data!$B$8:$BB$127, 52, 0) -> 0 | R23: =VLOOKUP($L23, Data!$B$8:$BB$127, 53, 0) -> 0 | S23: Q4 | U23: Q4 2020-21 | V23: 16
C24: Total Deaths Reviewed | D24: 20 | E24: =VLOOKUP($C$5, Data!$D$8:$DJ$127, Workings!$D24, 0) -> 326 | L24: Q1 2021-22 | M24: =VLOOKUP($L24, Data!$B$8:$BB$127, 42, 0) -> 0 | N24: =VLOOKUP($L24, Data!$B$8:$BB$127, 43, 0) -> 0 | O24: =VLOOKUP($L24, Data!$B$8:$BB$127, 44, 0) -> 0 | P24: =VLOOKUP($L24, Data!$B$8:$BB$127, 51, 0) -> 0 | Q24: =VLOOKUP($L24, Data!$B$8:$BB$127, 52, 0) -> 0 | R24: =VLOOKUP($L24, Data!$B$8:$BB$127, 53, 0) -> 0 | S24: Q1 2022-23 | U24: Q1 2021-22 | V24: 17
C25: Deaths Avoidable | D25: 21 | E25: =VLOOKUP($C$5, Data!$D$8:$DJ$127, Workings!$D25, 0) -> 42 | L25: Q2 2021-22 | M25: =VLOOKUP($L25, Data!$B$8:$BB$127, 42, 0) -> 0 | N25: =VLOOKUP($L25, Data!$B$8:$BB$127, 43, 0) -> 0 | O25: =VLOOKUP($L25, Data!$B$8:$BB$127, 44, 0) -> 0 | P25: =VLOOKUP($L25, Data!$B$8:$BB$127, 51, 0) -> 0 | Q25: =VLOOKUP($L25, Data!$B$8:$BB$127, 52, 0) -> 0 | R25: =VLOOKUP($L25, Data!$B$8:$BB$127, 53, 0) -> 0 | S25: Q2 | U25: Q2 2021-22 | V25: 18
B26: Comparison trust 3 | C26: Total Deaths | D26: 22 | E26: =VLOOKUP($C$5, Data!$D$8:$DJ$127, Workings!$D26, 0) -> 378 | L26: Q3 2021-22 | M26: =VLOOKUP($L26, Data!$B$8:$BB$127, 42, 0) -> 0 | N26: =VLOOKUP($L26, Data!$B$8:$BB$127, 43, 0) -> 0 | O26: =VLOOKUP($L26, Data!$B$8:$BB$127, 44, 0) -> 0 | P26: =VLOOKUP($L26, Data!$B$8:$BB$127, 51, 0) -> 0 | Q26: =VLOOKUP($L26, Data!$B$8:$BB$127, 52, 0) -> 0 | R26: =VLOOKUP($L26, Data!$B$8:$BB$127, 53, 0) -> 0 | S26: Q3 | U26: Q3 2021-22 | V26: 19
C27: Total Deaths Reviewed | D27: 23 | E27: =VLOOKUP($C$5, Data!$D$8:$DJ$127, Workings!$D27, 0) -> 325 | L27: Q4 2021-22 | M27: =VLOOKUP($L27, Data!$B$8:$BB$127, 42, 0) -> 0 | N27: =VLOOKUP($L27, Data!$B$8:$BB$127, 43, 0) -> 0 | O27: =VLOOKUP($L27, Data!$B$8:$BB$127, 44, 0) -> 0 | P27: =VLOOKUP($L27, Data!$B$8:$BB$127, 51, 0) -> 0 | Q27: =VLOOKUP($L27, Data!$B$8:$BB$127, 52, 0) -> 0 | R27: =VLOOKUP($L27, Data!$B$8:$BB$127, 53, 0) -> 0 | S27: Q4 | U27: Q4 2021-22 | V27: 20
C28: Deaths Avoidable | D28: 24 | E28: =VLOOKUP($C$5, Data!$D$8:$DJ$127, Workings!$D28, 0) -> 36 | L28: Q1 2022-23 | M28: =VLOOKUP($L28, Data!$B$8:$BB$127, 42, 0) -> 0 | N28: =VLOOKUP($L28, Data!$B$8:$BB$127, 43, 0) -> 0 | O28: =VLOOKUP($L28, Data!$B$8:$BB$127, 44, 0) -> 0 | P28: =VLOOKUP($L28, Data!$B$8:$BB$127, 51, 0) -> 0 | Q28: =VLOOKUP($L28, Data!$B$8:$BB$127, 52, 0) -> 0 | R28: =VLOOKUP($L28, Data!$B$8:$BB$127, 53, 0) -> 0 | S28: Q1 2023-24 | U28: Q1 2022-23 | V28: 21
B29: Comparison trust 4 | C29: Total Deaths | D29: 25 | E29: =VLOOKUP($C$5, Data!$D$8:$DJ$127, Workings!$D29, 0) -> 0 | L29: Q2 2022-23 | M29: =VLOOKUP($L29, Data!$B$8:$BB$127, 42, 0) -> 0 | N29: =VLOOKUP($L29, Data!$B$8:$BB$127, 43, 0) -> 0 | O29: =VLOOKUP($L29, Data!$B$8:$BB$127, 44, 0) -> 0 | P29: =VLOOKUP($L29, Data!$B$8:$BB$127, 51, 0) -> 0 | Q29: =VLOOKUP($L29, Data!$B$8:$BB$127, 52, 0) -> 0 | R29: =VLOOKUP($L29, Data!$B$8:$BB$127, 53, 0) -> 0 | S29: Q2 | U29: Q2 2022-23 | V29: 22
C30: Total Deaths Reviewed | D30: 26 | E30: =VLOOKUP($C$5, Data!$D$8:$DJ$127, Workings!$D30, 0) -> 0 | L30: Q3 2022-23 | M30: =VLOOKUP($L30, Data!$B$8:$BB$127, 42, 0) -> 0 | N30: =VLOOKUP($L30, Data!$B$8:$BB$127, 43, 0) -> 0 | O30: =VLOOKUP($L30, Data!$B$8:$BB$127, 44, 0) -> 0 | P30: =VLOOKUP($L30, Data!$B$8:$BB$127, 51, 0) -> 0 | Q30: =VLOOKUP($L30, Data!$B$8:$BB$127, 52, 0) -> 0 | R30: =VLOOKUP($L30, Data!$B$8:$BB$127, 53, 0) -> 0 | S30: Q3 | U30: Q3 2022-23 | V30: 23
C31: Deaths Avoidable | D31: 27 | E31: =VLOOKUP($C$5, Data!$D$8:$DJ$127, Workings!$D31, 0) -> 0 | L31: Q4 2022-23 | M31: =VLOOKUP($L31, Data!$B$8:$BB$127, 42, 0) -> 0 | N31: =VLOOKUP($L31, Data!$B$8:$BB$127, 43, 0) -> 0 | O31: =VLOOKUP($L31, Data!$B$8:$BB$127, 44, 0) -> 0 | P31: =VLOOKUP($L31, Data!$B$8:$BB$127, 51, 0) -> 0 | Q31: =VLOOKUP($L31, Data!$B$8:$BB$127, 52, 0) -> 0 | R31: =VLOOKUP($L31, Data!$B$8:$BB$127, 53, 0) -> 0 | S31: Q4 | U31: Q4 2022-23 | V31: 24
A32: Previous month | C32: Total Deaths | D32: 28 | E32: =VLOOKUP($C$5, Data!$D$8:$DJ$127, Workings!$D32, 0) -> 523 | L32: Q1 2023-24 | M32: =VLOOKUP($L32, Data!$B$8:$BB$127, 42, 0) -> 0 | N32: =VLOOKUP($L32, Data!$B$8:$BB$127, 43, 0) -> 0 | O32: =VLOOKUP($L32, Data!$B$8:$BB$127, 44, 0) -> 0 | P32: =VLOOKUP($L32, Data!$B$8:$BB$127, 51, 0) -> 0 | Q32: =VLOOKUP($L32, Data!$B$8:$BB$127, 52, 0) -> 0 | R32: =VLOOKUP($L32, Data!$B$8:$BB$127, 53, 0) -> 0 | S32: Q1 2024-25 | U32: Q1 2023-24 | V32: 25
C33: Total Deaths Reviewed | D33: 29 | E33: =VLOOKUP($C$5, Data!$D$8:$DJ$127, Workings!$D33, 0) -> 298 | L33: Q2 2023-24 | M33: =VLOOKUP($L33, Data!$B$8:$BB$127, 42, 0) -> 0 | N33: =VLOOKUP($L33, Data!$B$8:$BB$127, 43, 0) -> 0 | O33: =VLOOKUP($L33, Data!$B$8:$BB$127, 44, 0) -> 0 | P33: =VLOOKUP($L33, Data!$B$8:$BB$127, 51, 0) -> 0 | Q33: =VLOOKUP($L33, Data!$B$8:$BB$127, 52, 0) -> 0 | R33: =VLOOKUP($L33, Data!$B$8:$BB$127, 53, 0) -> 0 | S33: Q2 | U33: Q2 2023-24 | V33: 26
C34: Deaths Avoidable | D34: 30 | E34: =VLOOKUP($C$5, Data!$D$8:$DJ$127, Workings!$D34, 0) -> 20 | L34: Q3 2023-24 | M34: =VLOOKUP($L34, Data!$B$8:$BB$127, 42, 0) -> 0 | N34: =VLOOKUP($L34, Data!$B$8:$BB$127, 43, 0) -> 0 | O34: =VLOOKUP($L34, Data!$B$8:$BB$127, 44, 0) -> 0 | P34: =VLOOKUP($L34, Data!$B$8:$BB$127, 51, 0) -> 0 | Q34: =VLOOKUP($L34, Data!$B$8:$BB$127, 52, 0) -> 0 | R34: =VLOOKUP($L34, Data!$B$8:$BB$127, 53, 0) -> 0 | S34: Q3 | U34: Q3 2023-24 | V34: 27
C35: RCP1 | D35: 31 | E35: =VLOOKUP($C$5, Data!$D$8:$DJ$127, Workings!$D35, 0) -> 4 | L35: Q4 2023-24 | M35: =VLOOKUP($L35, Data!$B$8:$BB$127, 42, 0) -> 0 | N35: =VLOOKUP($L35, Data!$B$8:$BB$127, 43, 0) -> 0 | O35: =VLOOKUP($L35, Data!$B$8:$BB$127, 44, 0) -> 0 | P35: =VLOOKUP($L35, Data!$B$8:$BB$127, 51, 0) -> 0 | Q35: =VLOOKUP($L35, Data!$B$8:$BB$127, 52, 0) -> 0 | R35: =VLOOKUP($L35, Data!$B$8:$BB$127, 53, 0) -> 0 | S35: Q4 | U35: Q4 2023-24 | V35: 28
C36: RCP2 | D36: 32 | E36: =VLOOKUP($C$5, Data!$D$8:$DJ$127, Workings!$D36, 0) -> 3 | L36: Q1 2024-25 | M36: =VLOOKUP($L36, Data!$B$8:$BB$127, 42, 0) -> 0 | N36: =VLOOKUP($L36, Data!$B$8:$BB$127, 43, 0) -> 0 | O36: =VLOOKUP($L36, Data!$B$8:$BB$127, 44, 0) -> 0 | P36: =VLOOKUP($L36, Data!$B$8:$BB$127, 51, 0) -> 0 | Q36: =VLOOKUP($L36, Data!$B$8:$BB$127, 52, 0) -> 0 | R36: =VLOOKUP($L36, Data!$B$8:$BB$127, 53, 0) -> 0 | S36: Q1 2025-26 | U36: Q1 2024-25 | V36: 29
C37: RCP3 | D37: 33 | E37: =VLOOKUP($C$5, Data!$D$8:$DJ$127, Workings!$D37, 0) -> 13 | L37: Q2 2024-25 | M37: =VLOOKUP($L37, Data!$B$8:$BB$127, 42, 0) -> 0 | N37: =VLOOKUP($L37, Data!$B$8:$BB$127, 43, 0) -> 0 | O37: =VLOOKUP($L37, Data!$B$8:$BB$127, 44, 0) -> 0 | P37: =VLOOKUP($L37, Data!$B$8:$BB$127, 51, 0) -> 0 | Q37: =VLOOKUP($L37, Data!$B$8:$BB$127, 52, 0) -> 0 | R37: =VLOOKUP($L37, Data!$B$8:$BB$127, 53, 0) -> 0 | S37: Q2 | U37: Q2 2024-25 | V37: 30
C38: RCP4 | D38: 34 | E38: =VLOOKUP($C$5, Data!$D$8:$DJ$127, Workings!$D38, 0) -> 28 | L38: Q3 2024-25 | M38: =VLOOKUP($L38, Data!$B$8:$BB$127, 42, 0) -> 0 | N38: =VLOOKUP($L38, Data!$B$8:$BB$127, 43, 0) -> 0 | O38: =VLOOKUP($L38, Data!$B$8:$BB$127, 44, 0) -> 0 | P38: =VLOOKUP($L38, Data!$B$8:$BB$127, 51, 0) -> 0 | Q38: =VLOOKUP($L38, Data!$B$8:$BB$127, 52, 0) -> 0 | R38: =VLOOKUP($L38, Data!$B$8:$BB$127, 53, 0) -> 0 | S38: Q3 | U38: Q3 2024-25 | V38: 31
C39: RCP5 | D39: 35 | E39: =VLOOKUP($C$5, Data!$D$8:$DJ$127, Workings!$D39, 0) -> 56 | L39: Q4 2024-25 | M39: =VLOOKUP($L39, Data!$B$8:$BB$127, 42, 0) -> 0 | N39: =VLOOKUP($L39, Data!$B$8:$BB$127, 43, 0) -> 0 | O39: =VLOOKUP($L39, Data!$B$8:$BB$127, 44, 0) -> 0 | P39: =VLOOKUP($L39, Data!$B$8:$BB$127, 51, 0) -> 0 | Q39: =VLOOKUP($L39, Data!$B$8:$BB$127, 52, 0) -> 0 | R39: =VLOOKUP($L39, Data!$B$8:$BB$127, 53, 0) -> 0 | S39: Q4 | U39: Q4 2024-25 | V39: 32
C40: RCP6 | D40: 36 | E40: =VLOOKUP($C$5, Data!$D$8:$DJ$127, Workings!$D40, 0) -> 194 | L40: Q1 2025-26 | M40: =VLOOKUP($L40, Data!$B$8:$BB$127, 42, 0) -> 0 | N40: =VLOOKUP($L40, Data!$B$8:$BB$127, 43, 0) -> 0 | O40: =VLOOKUP($L40, Data!$B$8:$BB$127, 44, 0) -> 0 | P40: =VLOOKUP($L40, Data!$B$8:$BB$127, 51, 0) -> 0 | Q40: =VLOOKUP($L40, Data!$B$8:$BB$127, 52, 0) -> 0 | R40: =VLOOKUP($L40, Data!$B$8:$BB$127, 53, 0) -> 0 | S40: Q1 2026-27 | U40: Q1 2025-26 | V40: 33
C41: LD Total Deaths | D41: 37 | E41: =VLOOKUP($C$5, Data!$D$8:$DJ$127, Workings!$D41, 0) -> 2 | L41: Q2 2025-26 | M41: =VLOOKUP($L41, Data!$B$8:$BB$127, 42, 0) -> 0 | N41: =VLOOKUP($L41, Data!$B$8:$BB$127, 43, 0) -> 0 | O41: =VLOOKUP($L41, Data!$B$8:$BB$127, 44, 0) -> 0 | P41: =VLOOKUP($L41, Data!$B$8:$BB$127, 51, 0) -> 0 | Q41: =VLOOKUP($L41, Data!$B$8:$BB$127, 52, 0) -> 0 | R41: =VLOOKUP($L41, Data!$B$8:$BB$127, 53, 0) -> 0 | S41: Q2 | U41: Q2 2025-26 | V41: 34
C42: LD Reviewed | D42: 38 | E42: =VLOOKUP($C$5, Data!$D$8:$DJ$127, Workings!$D42, 0) -> 2 | L42: Q3 2025-26 | M42: =VLOOKUP($L42, Data!$B$8:$BB$127, 42, 0) -> 0 | N42: =VLOOKUP($L42, Data!$B$8:$BB$127, 43, 0) -> 0 | O42: =VLOOKUP($L42, Data!$B$8:$BB$127, 44, 0) -> 0 | P42: =VLOOKUP($L42, Data!$B$8:$BB$127, 51, 0) -> 0 | Q42: =VLOOKUP($L42, Data!$B$8:$BB$127, 52, 0) -> 0 | R42: =VLOOKUP($L42, Data!$B$8:$BB$127, 53, 0) -> 0 | S42: Q3 | U42: Q3 2025-26 | V42: 35
C43: LD Avoidable | D43: 39 | E43: =VLOOKUP($C$5, Data!$D$8:$DJ$127, Workings!$D43, 0) -> 0 | L43: Q4 2025-26 | M43: =VLOOKUP($L43, Data!$B$8:$BB$127, 42, 0) -> 0 | N43: =VLOOKUP($L43, Data!$B$8:$BB$127, 43, 0) -> 0 | O43: =VLOOKUP($L43, Data!$B$8:$BB$127, 44, 0) -> 0 | P43: =VLOOKUP($L43, Data!$B$8:$BB$127, 51, 0) -> 0 | Q43: =VLOOKUP($L43, Data!$B$8:$BB$127, 52, 0) -> 0 | R43: =VLOOKUP($L43, Data!$B$8:$BB$127, 53, 0) -> 0 | S43: Q4 | U43: Q4 2025-26 | V43: 36
A44: this quarter | C44: Total Deaths | D44: 40 | E44: =VLOOKUP($C$5, Data!$D$8:$DJ$127, Workings!$D44, 0) -> 1436 | L44: Q1 2026-27 | M44: =VLOOKUP($L44, Data!$B$8:$BB$127, 42, 0) -> 0 | N44: =VLOOKUP($L44, Data!$B$8:$BB$127, 43, 0) -> 0 | O44: =VLOOKUP($L44, Data!$B$8:$BB$127, 44, 0) -> 0 | P44: =VLOOKUP($L44, Data!$B$8:$BB$127, 51, 0) -> 0 | Q44: =VLOOKUP($L44, Data!$B$8:$BB$127, 52, 0) -> 0 | R44: =VLOOKUP($L44, Data!$B$8:$BB$127, 53, 0) -> 0 | S44: Q1 2027-28 | U44: Q1 2026-27 | V44: 37
C45: Total Deaths Reviewed | D45: 41 | E45: =VLOOKUP($C$5, Data!$D$8:$DJ$127, Workings!$D45, 0) -> 939 | L45: Q2 2026-27 | M45: =VLOOKUP($L45, Data!$B$8:$BB$127, 42, 0) -> 0 | N45: =VLOOKUP($L45, Data!$B$8:$BB$127, 43, 0) -> 0 | O45: =VLOOKUP($L45, Data!$B$8:$BB$127, 44, 0) -> 0 | P45: =VLOOKUP($L45, Data!$B$8:$BB$127, 51, 0) -> 0 | Q45: =VLOOKUP($L45, Data!$B$8:$BB$127, 52, 0) -> 0 | R45: =VLOOKUP($L45, Data!$B$8:$BB$127, 53, 0) -> 0 | S45: Q2 | U45: Q2 2026-27 | V45: 38
C46: Deaths Avoidable | D46: 42 | E46: =VLOOKUP($C$5, Data!$D$8:$DJ$127, Workings!$D46, 0) -> 50 | L46: Q3 2026-27 | M46: =VLOOKUP($L46, Data!$B$8:$BB$127, 42, 0) -> 0 | N46: =VLOOKUP($L46, Data!$B$8:$BB$127, 43, 0) -> 0 | O46: =VLOOKUP($L46, Data!$B$8:$BB$127, 44, 0) -> 0 | P46: =VLOOKUP($L46, Data!$B$8:$BB$127, 51, 0) -> 0 | Q46: =VLOOKUP($L46, Data!$B$8:$BB$127, 52, 0) -> 0 | R46: =VLOOKUP($L46, Data!$B$8:$BB$127, 53, 0) -> 0 | S46: Q3 | U46: Q3 2026-27 | V46: 39
C47: RCP1 | D47: 43 | E47: =VLOOKUP($C$5, Data!$D$8:$DJ$127, Workings!$D47, 0) -> 5 | L47: Q4 2026-27 | M47: =VLOOKUP($L47, Data!$B$8:$BB$127, 42, 0) -> 0 | N47: =VLOOKUP($L47, Data!$B$8:$BB$127, 43, 0) -> 0 | O47: =VLOOKUP($L47, Data!$B$8:$BB$127, 44, 0) -> 0 | P47: =VLOOKUP($L47, Data!$B$8:$BB$127, 51, 0) -> 0 | Q47: =VLOOKUP($L47, Data!$B$8:$BB$127, 52, 0) -> 0 | R47: =VLOOKUP($L47, Data!$B$8:$BB$127, 53, 0) -> 0 | S47: Q4 | U47: Q4 2026-27 | V47: 40
C48: RCP2 | D48: 44 | E48: =VLOOKUP($C$5, Data!$D$8:$DJ$127, Workings!$D48, 0) -> 14
C49: RCP3 | D49: 45 | E49: =VLOOKUP($C$5, Data!$D$8:$DJ$127, Workings!$D49, 0) -> 31
C50: RCP4 | D50: 46 | E50: =VLOOKUP($C$5, Data!$D$8:$DJ$127, Workings!$D50, 0) -> 90
C51: RCP5 | D51: 47 | E51: =VLOOKUP($C$5, Data!$D$8:$DJ$127, Workings!$D51, 0) -> 178
C52: RCP6 | D52: 48 | E52: =VLOOKUP($C$5, Data!$D$8:$DJ$127, Workings!$D52, 0) -> 621
C53: LD Total Deaths | D53: 49 | E53: =VLOOKUP($C$5, Data!$D$8:$DJ$127, Workings!$D53, 0) -> 16
C54: LD Reviewed | D54: 50 | E54: =VLOOKUP($C$5, Data!$D$8:$DJ$127, Workings!$D54, 0) -> 16
C55: LD Avoidable | D55: 51 | E55: =VLOOKUP($C$5, Data!$D$8:$DJ$127, Workings!$D55, 0) -> 3
B56: Comparison trust 1 | C56: Total Deaths | D56: 52 | E56: =VLOOKUP($C$5, Data!$D$8:$DJ$127, Workings!$D56, 0) -> 1035
C57: Total Deaths Reviewed | D57: 53 | E57: =VLOOKUP($C$5, Data!$D$8:$DJ$127, Workings!$D57, 0) -> 719
C58: Deaths Avoidable | D58: 54 | E58: =VLOOKUP($C$5, Data!$D$8:$DJ$127, Workings!$D58, 0) -> 106
B59: Comparison trust 2 | C59: Total Deaths | D59: 55 | E59: =VLOOKUP($C$5, Data!$D$8:$DJ$127, Workings!$D59, 0) -> 1087
C60: Total Deaths Reviewed | D60: 56 | E60: =VLOOKUP($C$5, Data!$D$8:$DJ$127, Workings!$D60, 0) -> 625
C61: Deaths Avoidable | D61: 57 | E61: =VLOOKUP($C$5, Data!$D$8:$DJ$127, Workings!$D61, 0) -> 86
B62: Comparison trust 3 | C62: Total Deaths | D62: 58 | E62: =VLOOKUP($C$5, Data!$D$8:$DJ$127, Workings!$D62, 0) -> 1038
C63: Total Deaths Reviewed | D63: 59 | E63: =VLOOKUP($C$5, Data!$D$8:$DJ$127, Workings!$D63, 0) -> 598
C64: Deaths Avoidable | D64: 60 | E64: =VLOOKUP($C$5, Data!$D$8:$DJ$127, Workings!$D64, 0) -> 83
B65: Comparison trust 4 | C65: Total Deaths | D65: 61 | E65: =VLOOKUP($C$5, Data!$D$8:$DJ$127, Workings!$D65, 0) -> 0
C66: Total Deaths Reviewed | D66: 62 | E66: =VLOOKUP($C$5, Data!$D$8:$DJ$127, Workings!$D66, 0) -> 0
C67: Deaths Avoidable | D67: 63 | E67: =VLOOKUP($C$5, Data!$D$8:$DJ$127, Workings!$D67, 0) -> 0
A68: Previous quarter | C68: Total Deaths | D68: 64 | E68: =VLOOKUP($C$5, Data!$D$8:$DJ$127, Workings!$D68, 0) -> 1509
C69: Total Deaths Reviewed | D69: 65 | E69: =VLOOKUP($C$5, Data!$D$8:$DJ$127, Workings!$D69, 0) -> 1053
C70: Deaths Avoidable | D70: 66 | E70: =VLOOKUP($C$5, Data!$D$8:$DJ$127, Workings!$D70, 0) -> 54
C71: RCP1 | D71: 67 | E71: =VLOOKUP($C$5, Data!$D$8:$DJ$127, Workings!$D71, 0) -> 6
C72: RCP2 | D72: 68 | E72: =VLOOKUP($C$5, Data!$D$8:$DJ$127, Workings!$D72, 0) -> 11
C73: RCP3 | D73: 69 | E73: =VLOOKUP($C$5, Data!$D$8:$DJ$127, Workings!$D73, 0) -> 37
C74: RCP4 | D74: 70 | E74: =VLOOKUP($C$5, Data!$D$8:$DJ$127, Workings!$D74, 0) -> 99
C75: RCP5 | D75: 71 | E75: =VLOOKUP($C$5, Data!$D$8:$DJ$127, Workings!$D75, 0) -> 200
C76: RCP6 | D76: 72 | E76: =VLOOKUP($C$5, Data!$D$8:$DJ$127, Workings!$D76, 0) -> 700
C77: LD Total Deaths | D77: 73 | E77: =VLOOKUP($C$5, Data!$D$8:$DJ$127, Workings!$D77, 0) -> 24
C78: LD Reviewed | D78: 74 | E78: =VLOOKUP($C$5, Data!$D$8:$DJ$127, Workings!$D78, 0) -> 24
C79: LD Avoidable | D79: 75 | E79: =VLOOKUP($C$5, Data!$D$8:$DJ$127, Workings!$D79, 0) -> 4
A80: this year | C80: Total Deaths | D80: 76 | E80: =VLOOKUP($C$5, Data!$D$8:$DJ$127, Workings!$D80, 0) -> 6069
C81: Total Deaths Reviewed | D81: 77 | E81: =VLOOKUP($C$5, Data!$D$8:$DJ$127, Workings!$D81, 0) -> 3991
C82: Deaths Avoidable | D82: 78 | E82: =VLOOKUP($C$5, Data!$D$8:$DJ$127, Workings!$D82, 0) -> 227
C83: RCP1 | D83: 79 | E83: =VLOOKUP($C$5, Data!$D$8:$DJ$127, Workings!$D83, 0) -> 30
C84: RCP2 | D84: 80 | E84: =VLOOKUP($C$5, Data!$D$8:$DJ$127, Workings!$D84, 0) -> 65
C85: RCP3 | D85: 81 | E85: =VLOOKUP($C$5, Data!$D$8:$DJ$127, Workings!$D85, 0) -> 132
C86: RCP4 | D86: 82 | E86: =VLOOKUP($C$5, Data!$D$8:$DJ$127, Workings!$D86, 0) -> 378
C87: RCP5 | D87: 83 | E87: =VLOOKUP($C$5, Data!$D$8:$DJ$127, Workings!$D87, 0) -> 754
C88: RCP6 | D88: 84 | E88: =VLOOKUP($C$5, Data!$D$8:$DJ$127, Workings!$D88, 0) -> 2632
C89: LD Total Deaths | D89: 85 | E89: =VLOOKUP($C$5, Data!$D$8:$DJ$127, Workings!$D89, 0) -> 75
C90: LD Reviewed | D90: 86 | E90: =VLOOKUP($C$5, Data!$D$8:$DJ$127, Workings!$D90, 0) -> 75
C91: LD Avoidable | D91: 87 | E91: =VLOOKUP($C$5, Data!$D$8:$DJ$127, Workings!$D91, 0) -> 19
B92: Comparison trust 1 | C92: Total Deaths | D92: 88 | E92: =VLOOKUP($C$5, Data!$D$8:$DJ$127, Workings!$D92, 0) -> 4057
C93: Total Deaths Reviewed | D93: 89 | E93: =VLOOKUP($C$5, Data!$D$8:$DJ$127, Workings!$D93, 0) -> 2363
C94: Deaths Avoidable | D94: 90 | E94: =VLOOKUP($C$5, Data!$D$8:$DJ$127, Workings!$D94, 0) -> 343
B95: Comparison trust 2 | C95: Total Deaths | D95: 91 | E95: =VLOOKUP($C$5, Data!$D$8:$DJ$127, Workings!$D95, 0) -> 4186
C96: Total Deaths Reviewed | D96: 92 | E96: =VLOOKUP($C$5, Data!$D$8:$DJ$127, Workings!$D96, 0) -> 2183
C97: Deaths Avoidable | D97: 93 | E97: =VLOOKUP($C$5, Data!$D$8:$DJ$127, Workings!$D97, 0) -> 302
B98: Comparison trust 3 | C98: Total Deaths | D98: 94 | E98: =VLOOKUP($C$5, Data!$D$8:$DJ$127, Workings!$D98, 0) -> 4073
C99: Total Deaths Reviewed | D99: 95 | E99: =VLOOKUP($C$5, Data!$D$8:$DJ$127, Workings!$D99, 0) -> 1773
C100: Deaths Avoidable | D100: 96 | E100: =VLOOKUP($C$5, Data!$D$8:$DJ$127, Workings!$D100, 0) -> 269
B101: Comparison trust 4 | C101: Total Deaths | D101: 97 | E101: =VLOOKUP($C$5, Data!$D$8:$DJ$127, Workings!$D101, 0) -> 0
C102: Total Deaths Reviewed | D102: 98 | E102: =VLOOKUP($C$5, Data!$D$8:$DJ$127, Workings!$D102, 0) -> 0
C103: Deaths Avoidable | D103: 99 | E103: =VLOOKUP($C$5, Data!$D$8:$DJ$127, Workings!$D103, 0) -> 0
A104: prevous year | C104: Total Deaths | D104: 100 | E104: =VLOOKUP($C$5, Data!$D$8:$DJ$127, Workings!$D104, 0) -> 0
C105: Total Deaths Reviewed | D105: 101 | E105: =VLOOKUP($C$5, Data!$D$8:$DJ$127, Workings!$D105, 0) -> 0
C106: Deaths Avoidable | D106: 102 | E106: =VLOOKUP($C$5, Data!$D$8:$DJ$127, Workings!$D106, 0) -> 0
C107: RCP1 | D107: 103 | E107: =VLOOKUP($C$5, Data!$D$8:$DJ$127, Workings!$D107, 0) -> 0
C108: RCP2 | D108: 104 | E108: =VLOOKUP($C$5, Data!$D$8:$DJ$127, Workings!$D108, 0) -> 0
C109: RCP3 | D109: 105 | E109: =VLOOKUP($C$5, Data!$D$8:$DJ$127, Workings!$D109, 0) -> 0
C110: RCP4 | D110: 106 | E110: =VLOOKUP($C$5, Data!$D$8:$DJ$127, Workings!$D110, 0) -> 0
C111: RCP5 | D111: 107 | E111: =VLOOKUP($C$5, Data!$D$8:$DJ$127, Workings!$D111, 0) -> 0
C112: RCP6 | D112: 108 | E112: =VLOOKUP($C$5, Data!$D$8:$DJ$127, Workings!$D112, 0) -> 0
C113: LD Total Deaths | D113: 109 | E113: =VLOOKUP($C$5, Data!$D$8:$DJ$127, Workings!$D113, 0) -> 0
C114: LD Reviewed | D114: 110 | E114: =VLOOKUP($C$5, Data!$D$8:$DJ$127, Workings!$D114, 0) -> 0
C115: LD Avoidable | D115: 111 | E115: =VLOOKUP($C$5, Data!$D$8:$DJ$127, Workings!$D115, 0) -> 0

Sheet Data
E1: Trust | F1: ='Front Sheet'!E6 -> NHS Anytown Foundation Trust
E2: Org Code
E3: Month | F3: ='Front Sheet'!E10 -> September
E4: Year | F4: ='Front Sheet'!E8 -> 2017-18 | AE4: Previous month | AQ4: This Quarter | BO4: Previous quarter | CA4: This year | CY4: Previous year
J6: PRISM Score | S6: Comparison trust 1 | V6: Comparison trust 2 | Y6: Comparison trust 3 | BC6: Comparison trust 1 | BF6: Comparison trust 2 | BI6: Comparison trust 3 | BL6: Comparison trust 4 | CM6: Comparison trust 1 | CP6: Comparison trust 2 | CS6: Comparison trust 3 | CV6: Comparison trust 4
A7: quart | B7: quart code | C7: month | D7: month code | E7: Financial Year | F7: Month | G7: Total Deaths (not LD) | H7: Total Deaths Reviewed (not LD) | I7: Deaths Avoidable > 50% (not LD) | J7: 1 | K7: 2 | L7: 3 | M7: 4 | N7: 5 | O7: 6 | P7: LD Deaths | Q7: LD Deaths Reviewed | R7: LD Deaths Avoidable > 50% | S7: Total Deaths | T7: Total Deaths Reviewed | U7: Deaths Avoidable > 50% | V7: Total Deaths | W7: Total Deaths Reviewed | X7: Deaths Avoidable > 50% | Y7: Total Deaths | Z7: Total Deaths Reviewed | AA7: Deaths Avoidable > 50% | AB7: Total Deaths | AC7: Total Deaths Reviewed | AD7: Deaths Avoidable > 50% | AE7: Total Deaths | AF7: Total Deaths Reviewed | AG7: Deaths Avoidable | AH7: RCP1 | AI7: RCP2 | AJ7: RCP3 | AK7: RCP4 | AL7: RCP5 | AM7: RCP6 | AN7: LD Deaths | AO7: LD Deaths Reviewed | AP7: LD Deaths Avoidable > 50% | AQ7: Total Deaths | AR7: Total Deaths Reviewed | AS7: Deaths Avoidable | AT7: RCP1 | AU7: RCP2 | AV7: RCP3 | AW7: RCP4 | AX7: RCP5 | AY7: RCP6 | AZ7: LD Deaths | BA7: LD Deaths Reviewed | BB7: LD Deaths Avoidable > 50% | BC7: Total Deaths | BD7: Total Deaths Reviewed | BE7: Deaths Avoidable | BF7: Total Deaths | BG7: Total Deaths Reviewed | BH7: Deaths Avoidable | BI7: Total Deaths | BJ7: Total Deaths Reviewed | BK7: Deaths Avoidable | BL7: Total Deaths | BM7: Total Deaths Reviewed | BN7: Deaths Avoidable | BO7: Total Deaths | BP7: Total Deaths Reviewed | BQ7: Deaths Avoidable | BR7: RCP1 | BS7: RCP2 | BT7: RCP3 | BU7: RCP4 | BV7: RCP5 | BW7: RCP6 | BX7: LD Deaths | BY7: LD Deaths Reviewed | BZ7: LD Deaths Avoidable > 50% | CA7: Total Deaths | CB7: Total Deaths Reviewed | CC7: Deaths Avoidable | CD7: RCP1 | CE7: RCP2 | CF7: RCP3 | CG7: RCP4 | CH7: RCP5 | CI7: RCP6 | CJ7: LD Deaths | CK7: LD Deaths Reviewed | CL7: LD Deaths Avoidable > 50% | CM7: Total Deaths | CN7: Total Deaths Reviewed | CO7: Deaths Avoidable | CP7: Total Deaths | CQ7: Total Deaths Reviewed | CR7: Deaths Avoidable | CS7: Total Deaths | CT7: Total Deaths Reviewed | CU7: Deaths Avoidable | CV7: Total Deaths | CW7: Total Deaths Reviewed | CX7: Deaths Avoidable | CY7: Total Deaths | CZ7: Total Deaths Reviewed | DA7: Deaths Avoidable | DB7: RCP1 | DC7: RCP2 | DD7: RCP3 | DE7: RCP4 | DF7: RCP5 | DG7: RCP6 | DH7: LD Deaths | DI7: LD Deaths Reviewed | DJ7: LD Deaths Avoidable > 50%
A8: Q1 | B8: =A8&" "&E8 -> Q1 2017-18 | C8: Apr, 17-18 | D8: =E8&F8 -> 2017-18April | E8: 2017-18 | F8: April | G8: 509 | H8: 358 | I8: 15 | J8: 1 | K8: 4 | L8: 10 | M8: 34 | N8: 69 | O8: 240 | P8: 4 | Q8: 4 | R8: 0 | S8: 389 | T8: 205 | U8: 47 | V8: 313 | W8: 217 | X8: 33 | Y8: 344 | Z8: 56 | AA8: 7 | AE8: 0 | AF8: 0 | AG8: 0 | AH8: 0 | AI8: 0 | AJ8: 0 | AK8: 0 | AL8: 0 | AM8: 0 | AN8: 0 | AO8: 0 | AP8: 0 | AQ8: =SUM(G$8:G$10) -> 1509 | AR8: 1053 | AS8: 54 | AT8: =SUM(J$8:J$10) -> 6 | AU8: 11 | AV8: 37 | AW8: 99 | AX8: 200 | AY8: 700 | AZ8: 24 | BA8: 24 | BB8: 4 | BC8: 1026 | BD8: =SUM(T$8:T$10) -> 492 | BE8: 82 | BF8: 1054 | BG8: 331 | BH8: 46 | BI8: 994 | BJ8: 395 | BK8: 58 | BL8: 0 | BM8: 0 | BN8: =SUM(AD$8:AD$10) -> 0 | BO8: 0 | BP8: 0 | BQ8: 0 | BR8: 0 | BS8: 0 | BT8: 0 | BU8: 0 | BV8: 0 | BW8: 0 | BX8: 0 | BY8: 0 | BZ8: 0 | CA8: =SUM(G$8:G$19) -> 6069 | CB8: =SUM(H$8:H$19) -> 3991 | CC8: =SUM(I$8:I$19) -> 227 | CD8: =SUM(J$8:J$19) -> 30 | CE8: =SUM(K$8:K$19) -> 65 | CF8: =SUM(L$8:L$19) -> 132 | CG8: =SUM(M$8:M$19) -> 378 | CH8: =SUM(N$8:N$19) -> 754 | CI8: =SUM(O$8:O$19) -> 2632 | CJ8: =SUM(P$8:P$19) -> 75 | CK8: 75 | CL8: 19 | CM8: =SUM(S$8:S$19) -> 4057 | CN8: =SUM(T$8:T$19) -> 2363 | CO8: =SUM(U$8:U$19) -> 343 | CP8: =SUM(V$8:V$19) -> 4186 | CQ8: =SUM(W$8:W$19) -> 2183 | CR8: =SUM(X$8:X$19) -> 302 | CS8: =SUM(Y$8:Y$19) -> 4073 | CT8: =SUM(Z$8:Z$19) -> 1773 | CU8: =SUM(AA$8:AA$19) -> 269 | CV8: =SUM(AB$8:AB$19) -> 0 | CW8: =SUM(AC$8:AC$19) -> 0 | CX8: =SUM(AD$8:AD$19) -> 0 | CY8: 0 | CZ8: 0 | DA8: 0 | DB8: 0 | DC8: 0 | DD8: 0 | DE8: 0 | DF8: 0 | DG8: 0 | DH8: 0 | DI8: 0 | DJ8: 0
A9: Q1 | B9: =A9&" "&E9 -> Q1 2017-18 | C9: May | D9: =E9&F9 -> 2017-18May | E9: 2017-18 | F9: May | G9: 478 | H9: 350 | I9: 18 | J9: 3 | K9: 5 | L9: 10 | M9: 33 | N9: 66 | O9: 233 | P9: 8 | Q9: 8 | R9: 2 | S9: 328 | T9: 62 | U9: 8 | V9: 378 | W9: 71 | X9: 7 | Y9: 308 | Z9: 144 | AA9: 22 | AE9: =G8 -> 509 | AF9: =H8 -> 358 | AG9: 15 | AH9: 1 | AI9: 4 | AJ9: 10 | AK9: 34 | AL9: 69 | AM9: =O8 -> 240 | AN9: =P8 -> 4 | AO9: 4 | AP9: 0 | AQ9: 1509 | AR9: 1053 | AS9: 54 | AT9: 6 | AU9: 11 | AV9: 37 | AW9: 99 | AX9: 200 | AY9: 700 | AZ9: 24 | BA9: 24 | BB9: 4 | BC9: 1026 | BD9: 492 | BE9: 82 | BF9: 1054 | BG9: 331 | BH9: 46 | BI9: 994 | BJ9: 395 | BK9: 58 | BL9: 0 | BM9: 0 | BN9: 0 | BO9: 0 | BP9: 0 | BQ9: 0 | BR9: 0 | BS9: 0 | BT9: 0 | BU9: 0 | BV9: 0 | BW9: 0 | BX9: 0 | BY9: 0 | BZ9: 0 | CA9: 6069 | CB9: 3991 | CC9: 227 | CD9: 30 | CE9: 65 | CF9: 132 | CG9: 378 | CH9: 754 | CI9: 2632 | CJ9: 75 | CK9: 75 | CL9: 19 | CM9: 4057 | CN9: 2363 | CO9: 343 | CP9: 4186 | CQ9: 2183 | CR9: 302 | CS9: 4073 | CT9: 1773 | CU9: 269 | CV9: 0 | CW9: 0 | CX9: 0 | CY9: 0 | CZ9: 0 | DA9: 0 | DB9: 0 | DC9: 0 | DD9: 0 | DE9: 0 | DF9: 0 | DG9: 0 | DH9: 0 | DI9: 0 | DJ9: 0
A10: Q1 | B10: Q1 2017-18 | C10: Jun | D10: 2017-18June | E10: 2017-18 | F10: June | G10: 522 | H10: 345 | I10: 21 | J10: 2 | K10: 2 | L10: 17 | M10: 32 | N10: 65 | O10: 227 | P10: 12 | Q10: 12 | R10: 2 | S10: 309 | T10: 225 | U10: 27 | V10: 363 | W10: 43 | X10: 6 | Y10: 342 | Z10: 195 | AA10: 29 | AE10: =G9 -> 478 | AF10: =H9 -> 350 | AG10: =I9 -> 18 | AH10: =J9 -> 3 | AI10: =K9 -> 5 | AJ10: =L9 -> 10 | AK10: =M9 -> 33 | AL10: =N9 -> 66 | AM10: 233 | AN10: 8 | AO10: 8 | AP10: 2 | AQ10: 1509 | AR10: 1053 | AS10: 54 | AT10: 6 | AU10: 11 | AV10: 37 | AW10: 99 | AX10: 200 | AY10: 700 | AZ10: 24 | BA10: 24 | BB10: 4 | BC10: 1026 | BD10: 492 | BE10: 82 | BF10: 1054 | BG10: 331 | BH10: 46 | BI10: 994 | BJ10: 395 | BK10: 58 | BL10: 0 | BM10: 0 | BN10: 0 | BO10: 0 | BP10: 0 | BQ10: 0 | BR10: 0 | BS10: 0 | BT10: 0 | BU10: 0 | BV10: 0 | BW10: 0 | BX10: 0 | BY10: 0 | BZ10: 0 | CA10: 6069 | CB10: 3991 | CC10: 227 | CD10: 30 | CE10: 65 | CF10: 132 | CG10: 378 | CH10: 754 | CI10: 2632 | CJ10: 75 | CK10: 75 | CL10: 19 | CM10: 4057 | CN10: 2363 | CO10: 343 | CP10: 4186 | CQ10: 2183 | CR10: 302 | CS10: 4073 | CT10: 1773 | CU10: 269 | CV10: 0 | CW10: 0 | CX10: 0 | CY10: 0 | CZ10: 0 | DA10: 0 | DB10: 0 | DC10: 0 | DD10: 0 | DE10: 0 | DF10: 0 | DG10: 0 | DH10: 0 | DI10: 0 | DJ10: 0
A11: Q2 | B11: Q2 2017-18 | C11: Jul | D11: 2017-18July | E11: 2017-18 | F11: July | G11: 459 | H11: 302 | I11: 16 | J11: 1 | K11: 7 | L11: 8 | M11: 29 | N11: 57 | O11: 200 | P11: 4 | Q11: 4 | R11: 1 | S11: 346 | T11: 283 | U11: 42 | V11: 320 | W11: 29 | X11: 3 | Y11: 300 | Z11: 195 | AA11: 25 | AE11: 522 | AF11: 345 | AG11: 21 | AH11: 2 | AI11: 2 | AJ11: 17 | AK11: 32 | AL11: 65 | AM11: 227 | AN11: 12 | AO11: 12 | AP11: 2 | AQ11: =SUM(G$11:G$13) -> 1436 | AR11: 939 | AS11: 50 | AT11: 5 | AU11: 14 | AV11: 31 | AW11: 90 | AX11: 178 | AY11: 621 | AZ11: 16 | BA11: =SUM(Q$11:Q$13) -> 16 | BB11: 3 | BC11: 1035 | BD11: 719 | BE11: 106 | BF11: 1087 | BG11: 625 | BH11: 86 | BI11: 1038 | BJ11: 598 | BK11: =SUM(AA$11:AA$13) -> 83 | BL11: 0 | BM11: 0 | BN11: 0 | BO11: =AQ8 -> 1509 | BP11: 1053 | BQ11: 54 | BR11: 6 | BS11: 11 | BT11: 37 | BU11: 99 | BV11: 200 | BW11: 700 | BX11: =AZ8 -> 24 | BY11: 24 | BZ11: 4 | CA11: 6069 | CB11: 3991 | CC11: 227 | CD11: 30 | CE11: 65 | CF11: 132 | CG11: 378 | CH11: 754 | CI11: 2632 | CJ11: 75 | CK11: 75 | CL11: 19 | CM11: 4057 | CN11: 2363 | CO11: 343 | CP11: 4186 | CQ11: 2183 | CR11: 302 | CS11: 4073 | CT11: 1773 | CU11: 269 | CV11: 0 | CW11: 0 | CX11: 0 | CY11: 0 | CZ11: 0 | DA11: 0 | DB11: 0 | DC11: 0 | DD11: 0 | DE11: 0 | DF11: 0 | DG11: 0 | DH11: 0 | DI11: 0 | DJ11: 0
A12: Q2 | B12: Q2 2017-18 | C12: Aug | D12: 2017-18August | E12: 2017-18 | F12: August | G12: 523 | H12: 298 | I12: 20 | J12: 4 | K12: 3 | L12: 13 | M12: 28 | N12: 56 | O12: 194 | P12: 2 | Q12: 2 | R12: 0 | S12: 313 | T12: 170 | U12: 24 | V12: 371 | W12: 270 | X12: 41 | Y12: 360 | Z12: 78 | AA12: 22 | AE12: 459 | AF12: 302 | AG12: 16 | AH12: 1 | AI12: 7 | AJ12: 8 | AK12: 29 | AL12: 57 | AM12: 200 | AN12: 4 | AO12: 4 | AP12: 1 | AQ12: 1436 | AR12: 939 | AS12: 50 | AT12: 5 | AU12: 14 | AV12: 31 | AW12: 90 | AX12: 178 | AY12: 621 | AZ12: 16 | BA12: 16 | BB12: 3 | BC12: 1035 | BD12: 719 | BE12: 106 | BF12: 1087 | BG12: 625 | BH12: 86 | BI12: 1038 | BJ12: 598 | BK12: 83 | BL12: 0 | BM12: 0 | BN12: 0 | BO12: =AQ9 -> 1509 | BP12: =AR9 -> 1053 | BQ12: =AS9 -> 54 | BR12: =AT9 -> 6 | BS12: =AU9 -> 11 | BT12: =AV9 -> 37 | BU12: =AW9 -> 99 | BV12: =AX9 -> 200 | BW12: =AY9 -> 700 | BX12: 24 | BY12: 24 | BZ12: 4 | CA12: 6069 | CB12: 3991 | CC12: 227 | CD12: 30 | CE12: 65 | CF12: 132 | CG12: 378 | CH12: 754 | CI12: 2632 | CJ12: 75 | CK12: 75 | CL12: 19 | CM12: 4057 | CN12: 2363 | CO12: 343 | CP12: 4186 | CQ12: 2183 | CR12: 302 | CS12: 4073 | CT12: 1773 | CU12: 269 | CV12: 0 | CW12: 0 | CX12: 0 | CY12: 0 | CZ12: 0 | DA12: 0 | DB12: 0 | DC12: 0 | DD12: 0 | DE12: 0 | DF12: 0 | DG12: 0 | DH12: 0 | DI12: 0 | DJ12: 0
A13: Q2 | B13: Q2 2017-18 | C13: Sep | D13: 2017-18September | E13: 2017-18 | F13: September | G13: 454 | H13: 339 | I13: 14 | J13: 0 | K13: 4 | L13: 10 | M13: 33 | N13: 65 | O13: 227 | P13: 10 | Q13: 10 | R13: 2 | S13: 376 | T13: 266 | U13: 40 | V13: 396 | W13: 326 | X13: 42 | Y13: 378 | Z13: 325 | AA13: 36 | AE13: 523 | AF13: 298 | AG13: 20 | AH13: 4 | AI13: 3 | AJ13: 13 | AK13: 28 | AL13: 56 | AM13: 194 | AN13: 2 | AO13: 2 | AP13: 0 | AQ13: 1436 | AR13: 939 | AS13: 50 | AT13: 5 | AU13: 14 | AV13: 31 | AW13: 90 | AX13: 178 | AY13: 621 | AZ13: 16 | BA13: 16 | BB13: 3 | BC13: 1035 | BD13: 719 | BE13: 106 | BF13: 1087 | BG13: 625 | BH13: 86 | BI13: 1038 | BJ13: 598 | BK13: 83 | BL13: 0 | BM13: 0 | BN13: 0 | BO13: 1509 | BP13: 1053 | BQ13: 54 | BR13: 6 | BS13: 11 | BT13: 37 | BU13: 99 | BV13: 200 | BW13: 700 | BX13: 24 | BY13: 24 | BZ13: 4 | CA13: 6069 | CB13: 3991 | CC13: 227 | CD13: 30 | CE13: 65 | CF13: 132 | CG13: 378 | CH13: 754 | CI13: 2632 | CJ13: 75 | CK13: 75 | CL13: 19 | CM13: 4057 | CN13: 2363 | CO13: 343 | CP13: 4186 | CQ13: 2183 | CR13: 302 | CS13: 4073 | CT13: 1773 | CU13: 269 | CV13: 0 | CW13: 0 | CX13: 0 | CY13: 0 | CZ13: 0 | DA13: 0 | DB13: 0 | DC13: 0 | DD13: 0 | DE13: 0 | DF13: 0 | DG13: 0 | DH13: 0 | DI13: 0 | DJ13: 0
A14: Q3 | B14: Q3 2017-18 | C14: Oct | D14: 2017-18October | E14: 2017-18 | F14: October | G14: 470 | H14: 340 | I14: 22 | J14: 2 | K14: 9 | L14: 11 | M14: 32 | N14: 64 | O14: 222 | P14: 7 | Q14: 7 | R14: 2 | S14: 363 | T14: 189 | U14: 23 | V14: 339 | W14: 298 | X14: 39 | Y14: 378 | Z14: 34 | AA14: 5 | AE14: 454 | AF14: 339 | AG14: 14 | AH14: 0 | AI14: 4 | AJ14: 10 | AK14: 33 | AL14: 65 | AM14: 227 | AN14: 10 | AO14: 10 | AP14: 2 | AQ14: =SUM(G$14:G$16) -> 1565 | AR14: 979 | AS14: 67 | AT14: 6 | AU14: 24 | AV14: 37 | AW14: 92 | AX14: 183 | AY14: 637 | AZ14: 11 | BA14: =SUM(Q$14:Q$16) -> 11 | BB14: 3 | BC14: 993 | BD14: 670 | BE14: 92 | BF14: 1037 | BG14: 685 | BH14: 97 | BI14: 1103 | BJ14: 420 | BK14: =SUM(AA$14:AA$16) -> 84 | BL14: 0 | BM14: 0 | BN14: 0 | BO14: 1436 | BP14: 939 | BQ14: 50 | BR14: 5 | BS14: 14 | BT14: 31 | BU14: 90 | BV14: 178 | BW14: 621 | BX14: 16 | BY14: 16 | BZ14: 3 | CA14: 6069 | CB14: 3991 | CC14: 227 | CD14: 30 | CE14: 65 | CF14: 132 | CG14: 378 | CH14: 754 | CI14: 2632 | CJ14: 75 | CK14: 75 | CL14: 19 | CM14: 4057 | CN14: 2363 | CO14: 343 | CP14: 4186 | CQ14: 2183 | CR14: 302 | CS14: 4073 | CT14: 1773 | CU14: 269 | CV14: 0 | CW14: 0 | CX14: 0 | CY14: 0 | CZ14: 0 | DA14: 0 | DB14: 0 | DC14: 0 | DD14: 0 | DE14: 0 | DF14: 0 | DG14: 0 | DH14: 0 | DI14: 0 | DJ14: 0
A15: Q3 | B15: Q3 2017-18 | C15: Nov | D15: 2017-18November | E15: 2017-18 | F15: November | G15: 547 | H15: 352 | I15: 26 | J15: 2 | K15: 7 | L15: 17 | M15: 33 | N15: 65 | O15: 228 | P15: 1 | Q15: 1 | R15: 0 | S15: 320 | T15: 209 | U15: 31 | V15: 336 | W15: 252 | X15: 38 | Y15: 337 | Z15: 285 | AA15: 43 | AE15: 470 | AF15: 340 | AG15: 22 | AH15: 2 | AI15: 9 | AJ15: 11 | AK15: 32 | AL15: 64 | AM15: 222 | AN15: 7 | AO15: 7 | AP15: 2 | AQ15: 1565 | AR15: 979 | AS15: 67 | AT15: 6 | AU15: 24 | AV15: 37 | AW15: 92 | AX15: 183 | AY15: 637 | AZ15: 11 | BA15: 11 | BB15: 3 | BC15: 993 | BD15: 670 | BE15: 92 | BF15: 1037 | BG15: 685 | BH15: 97 | BI15: 1103 | BJ15: 420 | BK15: 84 | BL15: 0 | BM15: 0 | BN15: 0 | BO15: 1436 | BP15: 939 | BQ15: 50 | BR15: 5 | BS15: 14 | BT15: 31 | BU15: 90 | BV15: 178 | BW15: 621 | BX15: 16 | BY15: 16 | BZ15: 3 | CA15: 6069 | CB15: 3991 | CC15: 227 | CD15: 30 | CE15: 65 | CF15: 132 | CG15: 378 | CH15: 754 | CI15: 2632 | CJ15: 75 | CK15: 75 | CL15: 19 | CM15: 4057 | CN15: 2363 | CO15: 343 | CP15: 4186 | CQ15: 2183 | CR15: 302 | CS15: 4073 | CT15: 1773 | CU15: 269 | CV15: 0 | CW15: 0 | CX15: 0 | CY15: 0 | CZ15: 0 | DA15: 0 | DB15: 0 | DC15: 0 | DD15: 0 | DE15: 0 | DF15: 0 | DG15: 0 | DH15: 0 | DI15: 0 | DJ15: 0
A16: Q3 | B16: Q3 2017-18 | C16: Dec | D16: 2017-18December | E16: 2017-18 | F16: December | G16: 548 | H16: 287 | I16: 19 | J16: 2 | K16: 8 | L16: 9 | M16: 27 | N16: 54 | O16: 187 | P16: 3 | Q16: 3 | R16: 1 | S16: 310 | T16: 272 | U16: 38 | V16: 362 | W16: 135 | X16: 20 | Y16: 388 | Z16: 101 | AA16: 36 | AE16: 547 | AF16: 352 | AG16: 26 | AH16: 2 | AI16: 7 | AJ16: 17 | AK16: 33 | AL16: 65 | AM16: 228 | AN16: 1 | AO16: 1 | AP16: 0 | AQ16: 1565 | AR16: 979 | AS16: 67 | AT16: 6 | AU16: 24 | AV16: 37 | AW16: 92 | AX16: 183 | AY16: 637 | AZ16: 11 | BA16: 11 | BB16: 3 | BC16: 993 | BD16: 670 | BE16: 92 | BF16: 1037 | BG16: 685 | BH16: 97 | BI16: 1103 | BJ16: 420 | BK16: 84 | BL16: 0 | BM16: 0 | BN16: 0 | BO16: 1436 | BP16: 939 | BQ16: 50 | BR16: 5 | BS16: 14 | BT16: 31 | BU16: 90 | BV16: 178 | BW16: 621 | BX16: 16 | BY16: 16 | BZ16: 3 | CA16: 6069 | CB16: 3991 | CC16: 227 | CD16: 30 | CE16: 65 | CF16: 132 | CG16: 378 | CH16: 754 | CI16: 2632 | CJ16: 75 | CK16: 75 | CL16: 19 | CM16: 4057 | CN16: 2363 | CO16: 343 | CP16: 4186 | CQ16: 2183 | CR16: 302 | CS16: 4073 | CT16: 1773 | CU16: 269 | CV16: 0 | CW16: 0 | CX16: 0 | CY16: 0 | CZ16: 0 | DA16: 0 | DB16: 0 | DC16: 0 | DD16: 0 | DE16: 0 | DF16: 0 | DG16: 0 | DH16: 0 | DI16: 0 | DJ16: 0
A17: Q4 | B17: Q4 2017-18 | C17: Jan | D17: 2017-18January | E17: 2017-18 | F17: January | G17: 539 | H17: 363 | I17: 18 | J17: 5 | K17: 3 | L17: 10 | M17: 35 | N17: 69 | O17: 241 | P17: 4 | Q17: 4 | R17: 2 | S17: 367 | T17: 135 | U17: 20 | V17: 313 | W17: 219 | X17: 24 | Y17: 312 | Z17: 170 | AA17: 24 | AE17: 548 | AF17: 287 | AG17: 19 | AH17: 2 | AI17: 8 | AJ17: 9 | AK17: 27 | AL17: 54 | AM17: 187 | AN17: 3 | AO17: 3 | AP17: 1 | AQ17: =SUM(G$17:G$19) -> 1559 | AR17: 1020 | AS17: 56 | AT17: 13 | AU17: 16 | AV17: 27 | AW17: 97 | AX17: 193 | AY17: 674 | AZ17: 24 | BA17: =SUM(Q$17:Q$19) -> 24 | BB17: 9 | BC17: 1003 | BD17: 482 | BE17: 63 | BF17: 1008 | BG17: 542 | BH17: 73 | BI17: 938 | BJ17: 360 | BK17: =SUM(AA$17:AA$19) -> 44 | BL17: 0 | BM17: 0 | BN17: 0 | BO17: 1565 | BP17: 979 | BQ17: 67 | BR17: 6 | BS17: 24 | BT17: 37 | BU17: 92 | BV17: 183 | BW17: 637 | BX17: 11 | BY17: 11 | BZ17: 3 | CA17: 6069 | CB17: 3991 | CC17: 227 | CD17: 30 | CE17: 65 | CF17: 132 | CG17: 378 | CH17: 754 | CI17: 2632 | CJ17: 75 | CK17: 75 | CL17: 19 | CM17: 4057 | CN17: 2363 | CO17: 343 | CP17: 4186 | CQ17: 2183 | CR17: 302 | CS17: 4073 | CT17: 1773 | CU17: 269 | CV17: 0 | CW17: 0 | CX17: 0 | CY17: 0 | CZ17: 0 | DA17: 0 | DB17: 0 | DC17: 0 | DD17: 0 | DE17: 0 | DF17: 0 | DG17: 0 | DH17: 0 | DI17: 0 | DJ17: 0
A18: Q4 | B18: Q4 2017-18 | C18: Feb | D18: 2017-18February | E18: 2017-18 | F18: February | G18: 487 | H18: 356 | I18: 22 | J18: 5 | K18: 10 | L18: 7 | M18: 33 | N18: 67 | O18: 234 | P18: 8 | Q18: 8 | R18: 3 | S18: 306 | T18: 170 | U18: 22 | V18: 370 | W18: 210 | X18: 32 | Y18: 320 | Z18: 135 | AA18: 14 | AE18: 539 | AF18: 363 | AG18: 18 | AH18: 5 | AI18: 3 | AJ18: 10 | AK18: 35 | AL18: 69 | AM18: 241 | AN18: 4 | AO18: 4 | AP18: 2 | AQ18: 1559 | AR18: 1020 | AS18: 56 | AT18: 13 | AU18: 16 | AV18: 27 | AW18: 97 | AX18: 193 | AY18: 674 | AZ18: 24 | BA18: 24 | BB18: 9 | BC18: 1003 | BD18: 482 | BE18: 63 | BF18: 1008 | BG18: 542 | BH18: 73 | BI18: 938 | BJ18: 360 | BK18: 44 | BL18: 0 | BM18: 0 | BN18: 0 | BO18: 1565 | BP18: 979 | BQ18: 67 | BR18: 6 | BS18: 24 | BT18: 37 | BU18: 92 | BV18: 183 | BW18: 637 | BX18: 11 | BY18: 11 | BZ18: 3 | CA18: 6069 | CB18: 3991 | CC18: 227 | CD18: 30 | CE18: 65 | CF18: 132 | CG18: 378 | CH18: 754 | CI18: 2632 | CJ18: 75 | CK18: 75 | CL18: 19 | CM18: 4057 | CN18: 2363 | CO18: 343 | CP18: 4186 | CQ18: 2183 | CR18: 302 | CS18: 4073 | CT18: 1773 | CU18: 269 | CV18: 0 | CW18: 0 | CX18: 0 | CY18: 0 | CZ18: 0 | DA18: 0 | DB18: 0 | DC18: 0 | DD18: 0 | DE18: 0 | DF18: 0 | DG18: 0 | DH18: 0 | DI18: 0 | DJ18: 0
A19: Q4 | B19: Q4 2017-18 | C19: Mar | D19: 2017-18March | E19: 2017-18 | F19: March | G19: 533 | H19: 301 | I19: 16 | J19: 3 | K19: 3 | L19: 10 | M19: 29 | N19: 57 | O19: 199 | P19: 12 | Q19: 12 | R19: 4 | S19: 330 | T19: 177 | U19: 21 | V19: 325 | W19: 113 | X19: 17 | Y19: 306 | Z19: 55 | AA19: 6 | AE19: 487 | AF19: 356 | AG19: 22 | AH19: 5 | AI19: 10 | AJ19: 7 | AK19: 33 | AL19: 67 | AM19: 234 | AN19: 8 | AO19: 8 | AP19: 3 | AQ19: 1559 | AR19: 1020 | AS19: 56 | AT19: 13 | AU19: 16 | AV19: 27 | AW19: 97 | AX19: 193 | AY19: 674 | AZ19: 24 | BA19: 24 | BB19: 9 | BC19: 1003 | BD19: 482 | BE19: 63 | BF19: 1008 | BG19: 542 | BH19: 73 | BI19: 938 | BJ19: 360 | BK19: 44 | BL19: 0 | BM19: 0 | BN19: 0 | BO19: 1565 | BP19: 979 | BQ19: 67 | BR19: 6 | BS19: 24 | BT19: 37 | BU19: 92 | BV19: 183 | BW19: 637 | BX19: 11 | BY19: 11 | BZ19: 3 | CA19: 6069 | CB19: 3991 | CC19: 227 | CD19: 30 | CE19: 65 | CF19: 132 | CG19: 378 | CH19: 754 | CI19: 2632 | CJ19: 75 | CK19: 75 | CL19: 19 | CM19: 4057 | CN19: 2363 | CO19: 343 | CP19: 4186 | CQ19: 2183 | CR19: 302 | CS19: 4073 | CT19: 1773 | CU19: 269 | CV19: 0 | CW19: 0 | CX19: 0 | CY19: 0 | CZ19: 0 | DA19: 0 | DB19: 0 | DC19: 0 | DD19: 0 | DE19: 0 | DF19: 0 | DG19: 0 | DH19: 0 | DI19: 0 | DJ19: 0
A20: Q1 | B20: Q1 2018-19 | C20: Apr, 18-19 | D20: 2018-19April | E20: 2018-19 | F20: April | G20: 470 | H20: 339 | I20: 20 | J20: 4 | K20: 3 | L20: 13 | M20: 32 | N20: 64 | O20: 223 | P20: 9 | Q20: 9 | R20: 1 | S20: 350 | T20: 252 | U20: 30 | V20: 381 | W20: 349 | X20: 42 | Y20: 358 | Z20: 97 | AA20: 14 | AE20: 533 | AF20: 301 | AG20: 16 | AH20: 3 | AI20: 3 | AJ20: 10 | AK20: 29 | AL20: 57 | AM20: 199 | AN20: 12 | AO20: 12 | AP20: 4 | AQ20: =SUM(G$20:G$22) -> 1456 | AR20: 942 | AS20: 44 | AT20: =SUM(J$20:J$22) -> 6 | AU20: 10 | AV20: 28 | AW20: 90 | AX20: 180 | AY20: 628 | AZ20: 29 | BA20: 29 | BB20: 6 | BC20: 1067 | BD20: =SUM(T$20:T$22) -> 813 | BE20: 100 | BF20: 1100 | BG20: 761 | BH20: 87 | BI20: 1029 | BJ20: 543 | BK20: 70 | BL20: 0 | BM20: 0 | BN20: =SUM(AD$20:AD$22) -> 0 | BO20: 1559 | BP20: 1020 | BQ20: 56 | BR20: 13 | BS20: 16 | BT20: 27 | BU20: 97 | BV20: 193 | BW20: 674 | BX20: 24 | BY20: 24 | BZ20: 9 | CA20: =SUM(G$20:G$31) -> 2943 | CB20: =SUM(H$20:H$31) -> 1971 | CC20: =SUM(I$20:I$31) -> 99 | CD20: =SUM(J$20:J$31) -> 15 | CE20: =SUM(K$20:K$31) -> 21 | CF20: =SUM(L$20:L$31) -> 63 | CG20: =SUM(M$20:M$31) -> 187 | CH20: =SUM(N$20:N$31) -> 375 | CI20: =SUM(O$20:O$31) -> 1310 | CJ20: =SUM(P$20:P$31) -> 44 | CK20: 44 | CL20: 8 | CM20: =SUM(S$20:S$31) -> 2091 | CN20: =SUM(T$20:T$31) -> 1558 | CO20: =SUM(U$20:U$31) -> 193 | CP20: =SUM(V$20:V$31) -> 2281 | CQ20: =SUM(W$20:W$31) -> 1124 | CR20: =SUM(X$20:X$31) -> 125 | CS20: =SUM(Y$20:Y$31) -> 2006 | CT20: =SUM(Z$20:Z$31) -> 998 | CU20: =SUM(AA$20:AA$31) -> 128 | CV20: =SUM(AB$20:AB$31) -> 0 | CW20: =SUM(AC$20:AC$31) -> 0 | CX20: =SUM(AD$20:AD$31) -> 0 | CY20: =CA8 -> 6069 | CZ20: =CB8 -> 3991 | DA20: 227 | DB20: 30 | DC20: 65 | DD20: 132 | DE20: 378 | DF20: 754 | DG20: 2632 | DH20: =CJ8 -> 75 | DI20: =CK8 -> 75 | DJ20: =CL8 -> 19
A21: Q1 | B21: Q1 2018-19 | C21: May | D21: 2018-19May | E21: 2018-19 | F21: May | G21: 534 | H21: 312 | I21: 14 | J21: 0 | K21: 4 | L21: 10 | M21: 30 | N21: 60 | O21: 208 | P21: 10 | Q21: 10 | R21: 2 | S21: 385 | T21: 341 | U21: 48 | V21: 363 | W21: 204 | X21: 22 | Y21: 312 | Z21: 221 | AA21: 22 | AE21: 470 | AF21: 339 | AG21: 20 | AH21: 4 | AI21: 3 | AJ21: 13 | AK21: 32 | AL21: 64 | AM21: 223 | AN21: 9 | AO21: 9 | AP21: 1 | AQ21: 1456 | AR21: 942 | AS21: 44 | AT21: 6 | AU21: 10 | AV21: 28 | AW21: 90 | AX21: 180 | AY21: 628 | AZ21: 29 | BA21: 29 | BB21: 6 | BC21: 1067 | BD21: 813 | BE21: 100 | BF21: 1100 | BG21: 761 | BH21: 87 | BI21: 1029 | BJ21: 543 | BK21: 70 | BL21: 0 | BM21: 0 | BN21: 0 | BO21: 1559 | BP21: 1020 | BQ21: 56 | BR21: 13 | BS21: 16 | BT21: 27 | BU21: 97 | BV21: 193 | BW21: 674 | BX21: 24 | BY21: 24 | BZ21: 9 | CA21: 2943 | CB21: 1971 | CC21: 99 | CD21: 15 | CE21: 21 | CF21: 63 | CG21: 187 | CH21: 375 | CI21: 1310 | CJ21: 44 | CK21: 44 | CL21: 8 | CM21: 2091 | CN21: 1558 | CO21: 193 | CP21: 2281 | CQ21: 1124 | CR21: 125 | CS21: 2006 | CT21: 998 | CU21: 128 | CV21: 0 | CW21: 0 | CX21: 0 | CY21: =CA9 -> 6069 | CZ21: =CB9 -> 3991 | DA21: =CC9 -> 227 | DB21: =CD9 -> 30 | DC21: =CE9 -> 65 | DD21: =CF9 -> 132 | DE21: =CG9 -> 378 | DF21: =CH9 -> 754 | DG21: =CI9 -> 2632 | DH21: 75 | DI21: 75 | DJ21: 19
A22: Q1 | B22: Q1 2018-19 | C22: Jun | D22: 2018-19June | E22: 2018-19 | F22: June | G22: 452 | H22: 291 | I22: 10 | J22: 2 | K22: 3 | L22: 5 | M22: 28 | N22: 56 | O22: 197 | P22: 10 | Q22: 10 | R22: 3 | S22: 332 | T22: 220 | U22: 22 | V22: 356 | W22: 208 | X22: 23 | Y22: 359 | Z22: 225 | AA22: 34 | AE22: 534 | AF22: 312 | AG22: 14 | AH22: 0 | AI22: 4 | AJ22: 10 | AK22: 30 | AL22: 60 | AM22: 208 | AN22: 10 | AO22: 10 | AP22: 2 | AQ22: 1456 | AR22: 942 | AS22: 44 | AT22: 6 | AU22: 10 | AV22: 28 | AW22: 90 | AX22: 180 | AY22: 628 | AZ22: 29 | BA22: 29 | BB22: 6 | BC22: 1067 | BD22: 813 | BE22: 100 | BF22: 1100 | BG22: 761 | BH22: 87 | BI22: 1029 | BJ22: 543 | BK22: 70 | BL22: 0 | BM22: 0 | BN22: 0 | BO22: 1559 | BP22: 1020 | BQ22: 56 | BR22: 13 | BS22: 16 | BT22: 27 | BU22: 97 | BV22: 193 | BW22: 674 | BX22: 24 | BY22: 24 | BZ22: 9 | CA22: 2943 | CB22: 1971 | CC22: 99 | CD22: 15 | CE22: 21 | CF22: 63 | CG22: 187 | CH22: 375 | CI22: 1310 | CJ22: 44 | CK22: 44 | CL22: 8 | CM22: 2091 | CN22: 1558 | CO22: 193 | CP22: 2281 | CQ22: 1124 | CR22: 125 | CS22: 2006 | CT22: 998 | CU22: 128 | CV22: 0 | CW22: 0 | CX22: 0 | CY22: 6069 | CZ22: 3991 | DA22: 227 | DB22: 30 | DC22: 65 | DD22: 132 | DE22: 378 | DF22: 754 | DG22: 2632 | DH22: 75 | DI22: 75 | DJ22: 19
A23: Q2 | B23: Q2 2018-19 | C23: Jul | D23: 2018-19July | E23: 2018-19 | F23: July | G23: 510 | H23: 325 | I23: 22 | J23: 2 | K23: 7 | L23: 13 | M23: 30 | N23: 61 | O23: 212 | P23: 3 | Q23: 3 | R23: 1 | S23: 304 | T23: 297 | U23: 33 | V23: 397 | W23: 57 | X23: 7 | Y23: 326 | Z23: 195 | AA23: 27 | AE23: 452 | AF23: 291 | AG23: 10 | AH23: 2 | AI23: 3 | AJ23: 5 | AK23: 28 | AL23: 56 | AM23: 197 | AN23: 10 | AO23: 10 | AP23: 3 | AQ23: =SUM(G$23:G$25) -> 1487 | AR23: 1029 | AS23: 55 | AT23: 9 | AU23: 11 | AV23: 35 | AW23: 97 | AX23: 195 | AY23: 682 | AZ23: 15 | BA23: =SUM(Q$23:Q$25) -> 15 | BB23: 2 | BC23: 1024 | BD23: 745 | BE23: 93 | BF23: 1181 | BG23: 363 | BH23: 38 | BI23: 977 | BJ23: 455 | BK23: =SUM(AA$23:AA$25) -> 58 | BL23: 0 | BM23: 0 | BN23: 0 | BO23: 1456 | BP23: 942 | BQ23: 44 | BR23: 6 | BS23: 10 | BT23: 28 | BU23: 90 | BV23: 180 | BW23: 628 | BX23: 29 | BY23: 29 | BZ23: 6 | CA23: 2943 | CB23: 1971 | CC23: 99 | CD23: 15 | CE23: 21 | CF23: 63 | CG23: 187 | CH23: 375 | CI23: 1310 | CJ23: 44 | CK23: 44 | CL23: 8 | CM23: 2091 | CN23: 1558 | CO23: 193 | CP23: 2281 | CQ23: 1124 | CR23: 125 | CS23: 2006 | CT23: 998 | CU23: 128 | CV23: 0 | CW23: 0 | CX23: 0 | CY23: 6069 | CZ23: 3991 | DA23: 227 | DB23: 30 | DC23: 65 | DD23: 132 | DE23: 378 | DF23: 754 | DG23: 2632 | DH23: 75 | DI23: 75 | DJ23: 19
A24: Q2 | B24: Q2 2018-19 | C24: Aug | D24: 2018-19August | E24: 2018-19 | F24: August | G24: 506 | H24: 365 | I24: 18 | J24: 1 | K24: 3 | L24: 14 | M24: 35 | N24: 69 | O24: 243 | P24: 5 | Q24: 5 | R24: 0 | S24: 334 | T24: 225 | U24: 29 | V24: 397 | W24: 268 | X24: 27 | Y24: 324 | Z24: 102 | AA24: 12 | AE24: 510 | AF24: 325 | AG24: 22 | AH24: 2 | AI24: 7 | AJ24: 13 | AK24: 30 | AL24: 61 | AM24: 212 | AN24: 3 | AO24: 3 | AP24: 1 | AQ24: 1487 | AR24: 1029 | AS24: 55 | AT24: 9 | AU24: 11 | AV24: 35 | AW24: 97 | AX24: 195 | AY24: 682 | AZ24: 15 | BA24: 15 | BB24: 2 | BC24: 1024 | BD24: 745 | BE24: 93 | BF24: 1181 | BG24: 363 | BH24: 38 | BI24: 977 | BJ24: 455 | BK24: 58 | BL24: 0 | BM24: 0 | BN24: 0 | BO24: 1456 | BP24: 942 | BQ24: 44 | BR24: 6 | BS24: 10 | BT24: 28 | BU24: 90 | BV24: 180 | BW24: 628 | BX24: 29 | BY24: 29 | BZ24: 6 | CA24: 2943 | CB24: 1971 | CC24: 99 | CD24: 15 | CE24: 21 | CF24: 63 | CG24: 187 | CH24: 375 | CI24: 1310 | CJ24: 44 | CK24: 44 | CL24: 8 | CM24: 2091 | CN24: 1558 | CO24: 193 | CP24: 2281 | CQ24: 1124 | CR24: 125 | CS24: 2006 | CT24: 998 | CU24: 128 | CV24: 0 | CW24: 0 | CX24: 0 | CY24: 6069 | CZ24: 3991 | DA24: 227 | DB24: 30 | DC24: 65 | DD24: 132 | DE24: 378 | DF24: 754 | DG24: 2632 | DH24: 75 | DI24: 75 | DJ24: 19
A25: Q2 | B25: Q2 2018-19 | C25: Sep | D25: 2018-19September | E25: 2018-19 | F25: September | G25: 471 | H25: 339 | I25: 15 | J25: 6 | K25: 1 | L25: 8 | M25: 32 | N25: 65 | O25: 227 | P25: 7 | Q25: 7 | R25: 1 | S25: 386 | T25: 223 | U25: 31 | V25: 387 | W25: 38 | X25: 4 | Y25: 327 | Z25: 158 | AA25: 19 | AE25: 506 | AF25: 365 | AG25: 18 | AH25: 1 | AI25: 3 | AJ25: 14 | AK25: 35 | AL25: 69 | AM25: 243 | AN25: =P24 -> 5 | AO25: 5 | AP25: 0 | AQ25: 1487 | AR25: 1029 | AS25: 55 | AT25: 9 | AU25: 11 | AV25: 35 | AW25: 97 | AX25: 195 | AY25: 682 | AZ25: 15 | BA25: 15 | BB25: 2 | BC25: 1024 | BD25: 745 | BE25: 93 | BF25: 1181 | BG25: 363 | BH25: 38 | BI25: 977 | BJ25: 455 | BK25: 58 | BL25: 0 | BM25: 0 | BN25: 0 | BO25: 1456 | BP25: 942 | BQ25: 44 | BR25: 6 | BS25: 10 | BT25: 28 | BU25: 90 | BV25: 180 | BW25: 628 | BX25: 29 | BY25: 29 | BZ25: 6 | CA25: 2943 | CB25: 1971 | CC25: 99 | CD25: 15 | CE25: 21 | CF25: 63 | CG25: 187 | CH25: 375 | CI25: 1310 | CJ25: 44 | CK25: 44 | CL25: 8 | CM25: 2091 | CN25: 1558 | CO25: 193 | CP25: 2281 | CQ25: 1124 | CR25: 125 | CS25: 2006 | CT25: 998 | CU25: 128 | CV25: 0 | CW25: 0 | CX25: 0 | CY25: 6069 | CZ25: 3991 | DA25: 227 | DB25: 30 | DC25: 65 | DD25: 132 | DE25: 378 | DF25: 754 | DG25: 2632 | DH25: 75 | DI25: 75 | DJ25: 19
A26: Q3 | B26: Q3 2018-19 | C26: Oct | D26: 2018-19October | E26: 2018-19 | F26: October | AE26: 471 | AF26: 339 | AG26: 15 | AH26: 6 | AI26: 1 | AJ26: 8 | AK26: 32 | AL26: 65 | AM26: 227 | AN26: 7 | AO26: 7 | AP26: 1 | AQ26: =SUM(G$26:G$28) -> 0 | AR26: 0 | AS26: 0 | AT26: 0 | AU26: 0 | AV26: 0 | AW26: 0 | AX26: 0 | AY26: 0 | AZ26: 0 | BA26: =SUM(Q$26:Q$28) -> 0 | BB26: 0 | BC26: 0 | BD26: 0 | BE26: 0 | BF26: 0 | BG26: 0 | BH26: 0 | BI26: 0 | BJ26: 0 | BK26: =SUM(AA$26:AA$28) -> 0 | BL26: 0 | BM26: 0 | BN26: 0 | BO26: 1487 | BP26: 1029 | BQ26: 55 | BR26: 9 | BS26: 11 | BT26: 35 | BU26: 97 | BV26: 195 | BW26: 682 | BX26: 15 | BY26: 15 | BZ26: 2 | CA26: 2943 | CB26: 1971 | CC26: 99 | CD26: 15 | CE26: 21 | CF26: 63 | CG26: 187 | CH26: 375 | CI26: 1310 | CJ26: 44 | CK26: 44 | CL26: 8 | CM26: 2091 | CN26: 1558 | CO26: 193 | CP26: 2281 | CQ26: 1124 | CR26: 125 | CS26: 2006 | CT26: 998 | CU26: 128 | CV26: 0 | CW26: 0 | CX26: 0 | CY26: 6069 | CZ26: 3991 | DA26: 227 | DB26: 30 | DC26: 65 | DD26: 132 | DE26: 378 | DF26: 754 | DG26: 2632 | DH26: 75 | DI26: 75 | DJ26: 19
A27: Q3 | B27: Q3 2018-19 | C27: Nov | D27: 2018-19November | E27: 2018-19 | F27: November | AE27: 0 | AF27: 0 | AG27: 0 | AH27: 0 | AI27: 0 | AJ27: 0 | AK27: 0 | AL27: 0 | AM27: 0 | AN27: 0 | AO27: 0 | AP27: 0 | AQ27: 0 | AR27: 0 | AS27: 0 | AT27: 0 | AU27: 0 | AV27: 0 | AW27: 0 | AX27: 0 | AY27: 0 | AZ27: 0 | BA27: 0 | BB27: 0 | BC27: 0 | BD27: 0 | BE27: 0 | BF27: 0 | BG27: 0 | BH27: 0 | BI27: 0 | BJ27: 0 | BK27: 0 | BL27: 0 | BM27: 0 | BN27: 0 | BO27: 1487 | BP27: 1029 | BQ27: 55 | BR27: 9 | BS27: 11 | BT27: 35 | BU27: 97 | BV27: 195 | BW27: 682 | BX27: =AZ24 -> 15 | BY27: =BA24 -> 15 | BZ27: =BB24 -> 2 | CA27: 2943 | CB27: 1971 | CC27: 99 | CD27: 15 | CE27: 21 | CF27: 63 | CG27: 187 | CH27: 375 | CI27: 1310 | CJ27: 44 | CK27: 44 | CL27: 8 | CM27: 2091 | CN27: 1558 | CO27: 193 | CP27: 2281 | CQ27: 1124 | CR27: 125 | CS27: 2006 | CT27: 998 | CU27: 128 | CV27: 0 | CW27: 0 | CX27: 0 | CY27: 6069 | CZ27: 3991 | DA27: 227 | DB27: 30 | DC27: 65 | DD27: 132 | DE27: 378 | DF27: 754 | DG27: 2632 | DH27: 75 | DI27: 75 | DJ27: 19
A28: Q3 | B28: Q3 2018-19 | C28: Dec | D28: 2018-19December | E28: 2018-19 | F28: December | AE28: 0 | AF28: 0 | AG28: 0 | AH28: 0 | AI28: 0 | AJ28: 0 | AK28: 0 | AL28: 0 | AM28: 0 | AN28: 0 | AO28: 0 | AP28: 0 | AQ28: 0 | AR28: 0 | AS28: 0 | AT28: 0 | AU28: 0 | AV28: 0 | AW28: 0 | AX28: 0 | AY28: 0 | AZ28: 0 | BA28: 0 | BB28: 0 | BC28: 0 | BD28: 0 | BE28: 0 | BF28: 0 | BG28: 0 | BH28: 0 | BI28: 0 | BJ28: 0 | BK28: 0 | BL28: 0 | BM28: 0 | BN28: 0 | BO28: 1487 | BP28: 1029 | BQ28: 55 | BR28: 9 | BS28: 11 | BT28: 35 | BU28: 97 | BV28: 195 | BW28: 682 | BX28: 15 | BY28: 15 | BZ28: 2 | CA28: 2943 | CB28: 1971 | CC28: 99 | CD28: 15 | CE28: 21 | CF28: 63 | CG28: 187 | CH28: 375 | CI28: 1310 | CJ28: 44 | CK28: 44 | CL28: 8 | CM28: 2091 | CN28: 1558 | CO28: 193 | CP28: 2281 | CQ28: 1124 | CR28: 125 | CS28: 2006 | CT28: 998 | CU28: 128 | CV28: 0 | CW28: 0 | CX28: 0 | CY28: 6069 | CZ28: 3991 | DA28: 227 | DB28: 30 | DC28: 65 | DD28: 132 | DE28: 378 | DF28: 754 | DG28: 2632 | DH28: 75 | DI28: 75 | DJ28: 19
A29: Q4 | B29: Q4 2018-19 | C29: Jan | D29: 2018-19January | E29: 2018-19 | F29: January | AE29: 0 | AF29: 0 | AG29: 0 | AH29: 0 | AI29: 0 | AJ29: 0 | AK29: 0 | AL29: 0 | AM29: 0 | AN29: 0 | AO29: 0 | AP29: 0 | AQ29: =SUM(G$29:G$31) -> 0 | AR29: 0 | AS29: 0 | AT29: 0 | AU29: 0 | AV29: 0 | AW29: 0 | AX29: 0 | AY29: 0 | AZ29: 0 | BA29: =SUM(Q$29:Q$31) -> 0 | BB29: 0 | BC29: 0 | BD29: 0 | BE29: 0 | BF29: 0 | BG29: 0 | BH29: 0 | BI29: 0 | BJ29: 0 | BK29: =SUM(AA$29:AA$31) -> 0 | BL29: 0 | BM29: 0 | BN29: 0 | BO29: 0 | BP29: 0 | BQ29: 0 | BR29: 0 | BS29: 0 | BT29: 0 | BU29: 0 | BV29: 0 | BW29: 0 | BX29: 0 | BY29: 0 | BZ29: 0 | CA29: 2943 | CB29: 1971 | CC29: 99 | CD29: 15 | CE29: 21 | CF29: 63 | CG29: 187 | CH29: 375 | CI29: 1310 | CJ29: 44 | CK29: 44 | CL29: 8 | CM29: 2091 | CN29: 1558 | CO29: 193 | CP29: 2281 | CQ29: 1124 | CR29: 125 | CS29: 2006 | CT29: 998 | CU29: 128 | CV29: 0 | CW29: 0 | CX29: 0 | CY29: 6069 | CZ29: 3991 | DA29: 227 | DB29: 30 | DC29: 65 | DD29: 132 | DE29: 378 | DF29: 754 | DG29: 2632 | DH29: 75 | DI29: 75 | DJ29: 19
A30: Q4 | B30: Q4 2018-19 | C30: Feb | D30: 2018-19February | E30: 2018-19 | F30: February | AE30: 0 | AF30: 0 | AG30: 0 | AH30: 0 | AI30: 0 | AJ30: 0 | AK30: 0 | AL30: 0 | AM30: 0 | AN30: 0 | AO30: 0 | AP30: 0 | AQ30: 0 | AR30: 0 | AS30: 0 | AT30: 0 | AU30: 0 | AV30: 0 | AW30: 0 | AX30: 0 | AY30: 0 | AZ30: 0 | BA30: 0 | BB30: 0 | BC30: 0 | BD30: 0 | BE30: 0 | BF30: 0 | BG30: 0 | BH30: 0 | BI30: 0 | BJ30: 0 | BK30: 0 | BL30: 0 | BM30: 0 | BN30: 0 | BO30: 0 | BP30: 0 | BQ30: 0 | BR30: 0 | BS30: 0 | BT30: 0 | BU30: 0 | BV30: 0 | BW30: 0 | BX30: 0 | BY30: 0 | BZ30: 0 | CA30: 2943 | CB30: 1971 | CC30: 99 | CD30: 15 | CE30: 21 | CF30: 63 | CG30: 187 | CH30: 375 | CI30: 1310 | CJ30: 44 | CK30: 44 | CL30: 8 | CM30: 2091 | CN30: 1558 | CO30: 193 | CP30: 2281 | CQ30: 1124 | CR30: 125 | CS30: 2006 | CT30: 998 | CU30: 128 | CV30: 0 | CW30: 0 | CX30: 0 | CY30: 6069 | CZ30: 3991 | DA30: 227 | DB30: 30 | DC30: 65 | DD30: 132 | DE30: 378 | DF30: 754 | DG30: 2632 | DH30: 75 | DI30: 75 | DJ30: 19
A31: Q4 | B31: Q4 2018-19 | C31: Mar | D31: 2018-19March | E31: 2018-19 | F31: March | AE31: 0 | AF31: 0 | AG31: 0 | AH31: 0 | AI31: 0 | AJ31: 0 | AK31: 0 | AL31: 0 | AM31: 0 | AN31: 0 | AO31: 0 | AP31: 0 | AQ31: 0 | AR31: 0 | AS31: 0 | AT31: 0 | AU31: 0 | AV31: 0 | AW31: 0 | AX31: 0 | AY31: 0 | AZ31: 0 | BA31: 0 | BB31: 0 | BC31: 0 | BD31: 0 | BE31: 0 | BF31: 0 | BG31: 0 | BH31: 0 | BI31: 0 | BJ31: 0 | BK31: 0 | BL31: 0 | BM31: 0 | BN31: 0 | BO31: 0 | BP31: 0 | BQ31: 0 | BR31: 0 | BS31: 0 | BT31: 0 | BU31: 0 | BV31: 0 | BW31: 0 | BX31: 0 | BY31: 0 | BZ31: 0 | CA31: 2943 | CB31: 1971 | CC31: 99 | CD31: 15 | CE31: 21 | CF31: 63 | CG31: 187 | CH31: 375 | CI31: 1310 | CJ31: 44 | CK31: 44 | CL31: 8 | CM31: 2091 | CN31: 1558 | CO31: 193 | CP31: 2281 | CQ31: 1124 | CR31: 125 | CS31: 2006 | CT31: 998 | CU31: 128 | CV31: 0 | CW31: 0 | CX31: 0 | CY31: 6069 | CZ31: 3991 | DA31: 227 | DB31: 30 | DC31: 65 | DD31: 132 | DE31: 378 | DF31: 754 | DG31: 2632 | DH31: 75 | DI31: 75 | DJ31: 19
A32: Q1 | B32: Q1 2019-20 | C32: Apr, 19-20 | D32: 2019-20April | E32: 2019-20 | F32: April | AE32: 0 | AF32: 0 | AG32: 0 | AH32: 0 | AI32: 0 | AJ32: 0 | AK32: 0 | AL32: 0 | AM32: 0 | AN32: 0 | AO32: 0 | AP32: 0 | AQ32: =SUM(G$32:G$34) -> 0 | AR32: 0 | AS32: 0 | AT32: 0 | AU32: 0 | AV32: 0 | AW32: 0 | AX32: 0 | AY32: 0 | AZ32: 0 | BA32: =SUM(Q$32:Q$34) -> 0 | BB32: 0 | BC32: 0 | BD32: 0 | BE32: 0 | BF32: 0 | BG32: 0 | BH32: 0 | BI32: 0 | BJ32: 0 | BK32: =SUM(AA$32:AA$34) -> 0 | BL32: 0 | BM32: 0 | BN32: 0 | BO32: 0 | BP32: 0 | BQ32: 0 | BR32: 0 | BS32: 0 | BT32: 0 | BU32: 0 | BV32: 0 | BW32: 0 | BX32: 0 | BY32: 0 | BZ32: 0 | CA32: =SUM(G$32:G$43) -> 0 | CB32: =SUM(H$32:H$43) -> 0 | CC32: =SUM(I$32:I$43) -> 0 | CD32: =SUM(J$32:J$43) -> 0 | CE32: =SUM(K$32:K$43) -> 0 | CF32: =SUM(L$32:L$43) -> 0 | CG32: =SUM(M$32:M$43) -> 0 | CH32: =SUM(N$32:N$43) -> 0 | CI32: =SUM(O$32:O$43) -> 0 | CJ32: =SUM(P$32:P$43) -> 0 | CK32: 0 | CL32: 0 | CM32: =SUM(S$32:S$43) -> 0 | CN32: =SUM(T$32:T$43) -> 0 | CO32: =SUM(U$32:U$43) -> 0 | CP32: =SUM(V$32:V$43) -> 0 | CQ32: =SUM(W$32:W$43) -> 0 | CR32: =SUM(X$32:X$43) -> 0 | CS32: =SUM(Y$32:Y$43) -> 0 | CT32: =SUM(Z$32:Z$43) -> 0 | CU32: =SUM(AA$32:AA$43) -> 0 | CV32: =SUM(AB$32:AB$43) -> 0 | CW32: =SUM(AC$32:AC$43) -> 0 | CX32: =SUM(AD$32:AD$43) -> 0 | CY32: 2943 | CZ32: 1971 | DA32: 99 | DB32: 15 | DC32: 21 | DD32: 63 | DE32: 187 | DF32: 375 | DG32: 1310 | DH32: 44 | DI32: 44 | DJ32: 8
A33: Q1 | B33: Q1 2019-20 | C33: May | D33: 2019-20May | E33: 2019-20 | F33: May | AE33: 0 | AF33: 0 | AG33: 0 | AH33: 0 | AI33: 0 | AJ33: 0 | AK33: 0 | AL33: 0 | AM33: 0 | AN33: 0 | AO33: 0 | AP33: 0 | AQ33: 0 | AR33: 0 | AS33: 0 | AT33: 0 | AU33: 0 | AV33: 0 | AW33: 0 | AX33: 0 | AY33: 0 | AZ33: 0 | BA33: 0 | BB33: 0 | BC33: 0 | BD33: 0 | BE33: 0 | BF33: 0 | BG33: 0 | BH33: 0 | BI33: 0 | BJ33: 0 | BK33: 0 | BL33: 0 | BM33: 0 | BN33: 0 | BO33: 0 | BP33: 0 | BQ33: 0 | BR33: 0 | BS33: 0 | BT33: 0 | BU33: 0 | BV33: 0 | BW33: 0 | BX33: 0 | BY33: 0 | BZ33: 0 | CA33: 0 | CB33: 0 | CC33: 0 | CD33: 0 | CE33: 0 | CF33: 0 | CG33: 0 | CH33: 0 | CI33: 0 | CJ33: 0 | CK33: 0 | CL33: 0 | CM33: 0 | CN33: 0 | CO33: 0 | CP33: 0 | CQ33: 0 | CR33: 0 | CS33: 0 | CT33: 0 | CU33: 0 | CV33: 0 | CW33: 0 | CX33: 0 | CY33: 2943 | CZ33: 1971 | DA33: 99 | DB33: 15 | DC33: 21 | DD33: 63 | DE33: 187 | DF33: 375 | DG33: 1310 | DH33: 44 | DI33: 44 | DJ33: 8
A34: Q1 | B34: Q1 2019-20 | C34: Jun | D34: 2019-20June | E34: 2019-20 | F34: June | AE34: 0 | AF34: 0 | AG34: 0 | AH34: 0 | AI34: 0 | AJ34: 0 | AK34: 0 | AL34: 0 | AM34: 0 | AN34: 0 | AO34: 0 | AP34: 0 | AQ34: 0 | AR34: 0 | AS34: 0 | AT34: 0 | AU34: 0 | AV34: 0 | AW34: 0 | AX34: 0 | AY34: 0 | AZ34: 0 | BA34: 0 | BB34: 0 | BC34: 0 | BD34: 0 | BE34: 0 | BF34: 0 | BG34: 0 | BH34: 0 | BI34: 0 | BJ34: 0 | BK34: 0 | BL34: 0 | BM34: 0 | BN34: 0 | BO34: 0 | BP34: 0 | BQ34: 0 | BR34: 0 | BS34: 0 | BT34: 0 | BU34: 0 | BV34: 0 | BW34: 0 | BX34: 0 | BY34: 0 | BZ34: 0 | CA34: 0 | CB34: 0 | CC34: 0 | CD34: 0 | CE34: 0 | CF34: 0 | CG34: 0 | CH34: 0 | CI34: 0 | CJ34: 0 | CK34: 0 | CL34: 0 | CM34: 0 | CN34: 0 | CO34: 0 | CP34: 0 | CQ34: 0 | CR34: 0 | CS34: 0 | CT34: 0 | CU34: 0 | CV34: 0 | CW34: 0 | CX34: 0 | CY34: 2943 | CZ34: 1971 | DA34: 99 | DB34: 15 | DC34: 21 | DD34: 63 | DE34: 187 | DF34: 375 | DG34: 1310 | DH34: 44 | DI34: 44 | DJ34: 8
A35: Q2 | B35: Q2 2019-20 | C35: Jul | D35: 2019-20July | E35: 2019-20 | F35: July | AE35: 0 | AF35: 0 | AG35: 0 | AH35: 0 | AI35: 0 | AJ35: 0 | AK35: 0 | AL35: 0 | AM35: 0 | AN35: 0 | AO35: 0 | AP35: 0 | AQ35: =SUM(G$35:G$37) -> 0 | AR35: 0 | AS35: 0 | AT35: 0 | AU35: 0 | AV35: 0 | AW35: 0 | AX35: 0 | AY35: 0 | AZ35: 0 | BA35: =SUM(Q$35:Q$37) -> 0 | BB35: 0 | BC35: 0 | BD35: 0 | BE35: 0 | BF35: 0 | BG35: 0 | BH35: 0 | BI35: 0 | BJ35: 0 | BK35: =SUM(AA$35:AA$37) -> 0 | BL35: 0 | BM35: 0 | BN35: 0 | BO35: 0 | BP35: 0 | BQ35: 0 | BR35: 0 | BS35: 0 | BT35: 0 | BU35: 0 | BV35: 0 | BW35: 0 | BX35: 0 | BY35: 0 | BZ35: 0 | CA35: 0 | CB35: 0 | CC35: 0 | CD35: 0 | CE35: 0 | CF35: 0 | CG35: 0 | CH35: 0 | CI35: 0 | CJ35: 0 | CK35: 0 | CL35: 0 | CM35: 0 | CN35: 0 | CO35: 0 | CP35: 0 | CQ35: 0 | CR35: 0 | CS35: 0 | CT35: 0 | CU35: 0 | CV35: 0 | CW35: 0 | CX35: 0 | CY35: 2943 | CZ35: 1971 | DA35: 99 | DB35: 15 | DC35: 21 | DD35: 63 | DE35: 187 | DF35: 375 | DG35: 1310 | DH35: 44 | DI35: 44 | DJ35: 8
A36: Q2 | B36: Q2 2019-20 | C36: Aug | D36: 2019-20August | E36: 2019-20 | F36: August | AE36: 0 | AF36: 0 | AG36: 0 | AH36: 0 | AI36: 0 | AJ36: 0 | AK36: 0 | AL36: 0 | AM36: 0 | AN36: 0 | AO36: 0 | AP36: 0 | AQ36: 0 | AR36: 0 | AS36: 0 | AT36: 0 | AU36: 0 | AV36: 0 | AW36: 0 | AX36: 0 | AY36: 0 | AZ36: 0 | BA36: 0 | BB36: 0 | BC36: 0 | BD36: 0 | BE36: 0 | BF36: 0 | BG36: 0 | BH36: 0 | BI36: 0 | BJ36: 0 | BK36: 0 | BL36: 0 | BM36: 0 | BN36: 0 | BO36: 0 | BP36: 0 | BQ36: 0 | BR36: 0 | BS36: 0 | BT36: 0 | BU36: 0 | BV36: 0 | BW36: 0 | BX36: 0 | BY36: 0 | BZ36: 0 | CA36: 0 | CB36: 0 | CC36: 0 | CD36: 0 | CE36: 0 | CF36: 0 | CG36: 0 | CH36: 0 | CI36: 0 | CJ36: 0 | CK36: 0 | CL36: 0 | CM36: 0 | CN36: 0 | CO36: 0 | CP36: 0 | CQ36: 0 | CR36: 0 | CS36: 0 | CT36: 0 | CU36: 0 | CV36: 0 | CW36: 0 | CX36: 0 | CY36: 2943 | CZ36: 1971 | DA36: 99 | DB36: 15 | DC36: 21 | DD36: 63 | DE36: 187 | DF36: 375 | DG36: 1310 | DH36: 44 | DI36: 44 | DJ36: 8
A37: Q2 | B37: Q2 2019-20 | C37: Sep | D37: 2019-20September | E37: 2019-20 | F37: September | AE37: 0 | AF37: 0 | AG37: 0 | AH37: 0 | AI37: 0 | AJ37: 0 | AK37: 0 | AL37: 0 | AM37: 0 | AN37: 0 | AO37: 0 | AP37: 0 | AQ37: 0 | AR37: 0 | AS37: 0 | AT37: 0 | AU37: 0 | AV37: 0 | AW37: 0 | AX37: 0 | AY37: 0 | AZ37: 0 | BA37: 0 | BB37: 0 | BC37: 0 | BD37: 0 | BE37: 0 | BF37: 0 | BG37: 0 | BH37: 0 | BI37: 0 | BJ37: 0 | BK37: 0 | BL37: 0 | BM37: 0 | BN37: 0 | BO37: 0 | BP37: 0 | BQ37: 0 | BR37: 0 | BS37: 0 | BT37: 0 | BU37: 0 | BV37: 0 | BW37: 0 | BX37: 0 | BY37: 0 | BZ37: 0 | CA37: 0 | CB37: 0 | CC37: 0 | CD37: 0 | CE37: 0 | CF37: 0 | CG37: 0 | CH37: 0 | CI37: 0 | CJ37: 0 | CK37: 0 | CL37: 0 | CM37: 0 | CN37: 0 | CO37: 0 | CP37: 0 | CQ37: 0 | CR37: 0 | CS37: 0 | CT37: 0 | CU37: 0 | CV37: 0 | CW37: 0 | CX37: 0 | CY37: 2943 | CZ37: 1971 | DA37: 99 | DB37: 15 | DC37: 21 | DD37: 63 | DE37: 187 | DF37: 375 | DG37: 1310 | DH37: 44 | DI37: 44 | DJ37: 8
A38: Q3 | B38: Q3 2019-20 | C38: Oct | D38: 2019-20October | E38: 2019-20 | F38: October | AE38: 0 | AF38: 0 | AG38: 0 | AH38: 0 | AI38: 0 | AJ38: 0 | AK38: 0 | AL38: 0 | AM38: 0 | AN38: 0 | AO38: 0 | AP38: 0 | AQ38: =SUM(G$38:G$40) -> 0 | AR38: 0 | AS38: 0 | AT38: 0 | AU38: 0 | AV38: 0 | AW38: 0 | AX38: 0 | AY38: 0 | AZ38: 0 | BA38: =SUM(Q$38:Q$40) -> 0 | BB38: 0 | BC38: 0 | BD38: 0 | BE38: 0 | BF38: 0 | BG38: 0 | BH38: 0 | BI38: 0 | BJ38: 0 | BK38: =SUM(AA$38:AA$40) -> 0 | BL38: 0 | BM38: 0 | BN38: 0 | BO38: 0 | BP38: 0 | BQ38: 0 | BR38: 0 | BS38: 0 | BT38: 0 | BU38: 0 | BV38: 0 | BW38: 0 | BX38: 0 | BY38: 0 | BZ38: 0 | CA38: 0 | CB38: 0 | CC38: 0 | CD38: 0 | CE38: 0 | CF38: 0 | CG38: 0 | CH38: 0 | CI38: 0 | CJ38: 0 | CK38: 0 | CL38: 0 | CM38: 0 | CN38: 0 | CO38: 0 | CP38: 0 | CQ38: 0 | CR38: 0 | CS38: 0 | CT38: 0 | CU38: 0 | CV38: 0 | CW38: 0 | CX38: 0 | CY38: 2943 | CZ38: 1971 | DA38: 99 | DB38: 15 | DC38: 21 | DD38: 63 | DE38: 187 | DF38: 375 | DG38: 1310 | DH38: 44 | DI38: 44 | DJ38: 8
A39: Q3 | B39: Q3 2019-20 | C39: Nov | D39: 2019-20November | E39: 2019-20 | F39: November | AE39: 0 | AF39: 0 | AG39: 0 | AH39: 0 | AI39: 0 | AJ39: 0 | AK39: 0 | AL39: 0 | AM39: 0 | AN39: 0 | AO39: 0 | AP39: 0 | AQ39: 0 | AR39: 0 | AS39: 0 | AT39: 0 | AU39: 0 | AV39: 0 | AW39: 0 | AX39: 0 | AY39: 0 | AZ39: 0 | BA39: 0 | BB39: 0 | BC39: 0 | BD39: 0 | BE39: 0 | BF39: 0 | BG39: 0 | BH39: 0 | BI39: 0 | BJ39: 0 | BK39: 0 | BL39: 0 | BM39: 0 | BN39: 0 | BO39: 0 | BP39: 0 | BQ39: 0 | BR39: 0 | BS39: 0 | BT39: 0 | BU39: 0 | BV39: 0 | BW39: 0 | BX39: 0 | BY39: 0 | BZ39: 0 | CA39: 0 | CB39: 0 | CC39: 0 | CD39: 0 | CE39: 0 | CF39: 0 | CG39: 0 | CH39: 0 | CI39: 0 | CJ39: 0 | CK39: 0 | CL39: 0 | CM39: 0 | CN39: 0 | CO39: 0 | CP39: 0 | CQ39: 0 | CR39: 0 | CS39: 0 | CT39: 0 | CU39: 0 | CV39: 0 | CW39: 0 | CX39: 0 | CY39: 2943 | CZ39: 1971 | DA39: 99 | DB39: 15 | DC39: 21 | DD39: 63 | DE39: 187 | DF39: 375 | DG39: 1310 | DH39: 44 | DI39: 44 | DJ39: 8
A40: Q3 | B40: Q3 2019-20 | C40: Dec | D40: 2019-20December | E40: 2019-20 | F40: December | AE40: =G39 -> 0 | AF40: 0 | AG40: 0 | AH40: 0 | AI40: 0 | AJ40: 0 | AK40: 0 | AL40: 0 | AM40: 0 | AN40: 0 | AO40: 0 | AP40: 0 | AQ40: 0 | AR40: 0 | AS40: 0 | AT40: 0 | AU40: 0 | AV40: 0 | AW40: 0 | AX40: 0 | AY40: 0 | AZ40: 0 | BA40: 0 | BB40: 0 | BC40: 0 | BD40: 0 | BE40: 0 | BF40: 0 | BG40: 0 | BH40: 0 | BI40: 0 | BJ40: 0 | BK40: 0 | BL40: 0 | BM40: 0 | BN40: 0 | BO40: 0 | BP40: 0 | BQ40: 0 | BR40: 0 | BS40: 0 | BT40: 0 | BU40: 0 | BV40: 0 | BW40: 0 | BX40: 0 | BY40: 0 | BZ40: 0 | CA40: 0 | CB40: 0 | CC40: 0 | CD40: 0 | CE40: 0 | CF40: 0 | CG40: 0 | CH40: 0 | CI40: 0 | CJ40: 0 | CK40: 0 | CL40: 0 | CM40: 0 | CN40: 0 | CO40: 0 | CP40: 0 | CQ40: 0 | CR40: 0 | CS40: 0 | CT40: 0 | CU40: 0 | CV40: 0 | CW40: 0 | CX40: 0 | CY40: 2943 | CZ40: 1971 | DA40: 99 | DB40: 15 | DC40: 21 | DD40: 63 | DE40: 187 | DF40: 375 | DG40: 1310 | DH40: 44 | DI40: 44 | DJ40: 8
A41: Q4 | B41: Q4 2019-20 | C41: Jan | D41: 2019-20January | E41: 2019-20 | F41: January | AE41: 0 | AF41: 0 | AG41: 0 | AH41: 0 | AI41: 0 | AJ41: 0 | AK41: 0 | AL41: 0 | AM41: =O40 -> 0 | AN41: =P40 -> 0 | AO41: 0 | AP41: 0 | AQ41: =SUM(G$41:G$43) -> 0 | AR41: 0 | AS41: 0 | AT41: 0 | AU41: 0 | AV41: 0 | AW41: 0 | AX41: 0 | AY41: 0 | AZ41: 0 | BA41: =SUM(Q$41:Q$43) -> 0 | BB41: 0 | BC41: 0 | BD41: 0 | BE41: 0 | BF41: 0 | BG41: 0 | BH41: 0 | BI41: 0 | BJ41: 0 | BK41: =SUM(AA$41:AA$43) -> 0 | BL41: 0 | BM41: 0 | BN41: 0 | BO41: 0 | BP41: 0 | BQ41: 0 | BR41: 0 | BS41: 0 | BT41: 0 | BU41: 0 | BV41: 0 | BW41: 0 | BX41: 0 | BY41: 0 | BZ41: 0 | CA41: 0 | CB41: 0 | CC41: 0 | CD41: 0 | CE41: 0 | CF41: 0 | CG41: 0 | CH41: 0 | CI41: 0 | CJ41: 0 | CK41: 0 | CL41: 0 | CM41: 0 | CN41: 0 | CO41: 0 | CP41: 0 | CQ41: 0 | CR41: 0 | CS41: 0 | CT41: 0 | CU41: 0 | CV41: 0 | CW41: 0 | CX41: 0 | CY41: 2943 | CZ41: 1971 | DA41: 99 | DB41: 15 | DC41: 21 | DD41: 63 | DE41: 187 | DF41: 375 | DG41: 1310 | DH41: 44 | DI41: 44 | DJ41: 8
A42: Q4 | B42: Q4 2019-20 | C42: Feb | D42: 2019-20February | E42: 2019-20 | F42: February | AE42: 0 | AF42: 0 | AG42: 0 | AH42: 0 | AI42: 0 | AJ42: 0 | AK42: 0 | AL42: 0 | AM42: 0 | AN42: 0 | AO42: 0 | AP42: 0 | AQ42: 0 | AR42: 0 | AS42: 0 | AT42: 0 | AU42: 0 | AV42: 0 | AW42: 0 | AX42: 0 | AY42: 0 | AZ42: 0 | BA42: 0 | BB42: 0 | BC42: 0 | BD42: 0 | BE42: 0 | BF42: 0 | BG42: 0 | BH42: 0 | BI42: 0 | BJ42: 0 | BK42: 0 | BL42: 0 | BM42: 0 | BN42: 0 | BO42: 0 | BP42: 0 | BQ42: 0 | BR42: 0 | BS42: 0 | BT42: 0 | BU42: 0 | BV42: 0 | BW42: 0 | BX42: 0 | BY42: 0 | BZ42: 0 | CA42: 0 | CB42: 0 | CC42: 0 | CD42: 0 | CE42: 0 | CF42: 0 | CG42: 0 | CH42: 0 | CI42: 0 | CJ42: 0 | CK42: 0 | CL42: 0 | CM42: 0 | CN42: 0 | CO42: 0 | CP42: 0 | CQ42: 0 | CR42: 0 | CS42: 0 | CT42: 0 | CU42: 0 | CV42: 0 | CW42: 0 | CX42: 0 | CY42: 2943 | CZ42: 1971 | DA42: 99 | DB42: 15 | DC42: 21 | DD42: 63 | DE42: 187 | DF42: 375 | DG42: 1310 | DH42: 44 | DI42: 44 | DJ42: 8
A43: Q4 | B43: Q4 2019-20 | C43: Mar | D43: 2019-20March | E43: 2019-20 | F43: March | AE43: 0 | AF43: 0 | AG43: 0 | AH43: 0 | AI43: 0 | AJ43: 0 | AK43: 0 | AL43: 0 | AM43: 0 | AN43: 0 | AO43: 0 | AP43: 0 | AQ43: 0 | AR43: 0 | AS43: 0 | AT43: 0 | AU43: 0 | AV43: 0 | AW43: 0 | AX43: 0 | AY43: 0 | AZ43: 0 | BA43: 0 | BB43: 0 | BC43: 0 | BD43: 0 | BE43: 0 | BF43: 0 | BG43: 0 | BH43: 0 | BI43: 0 | BJ43: 0 | BK43: 0 | BL43: 0 | BM43: 0 | BN43: 0 | BO43: 0 | BP43: 0 | BQ43: 0 | BR43: 0 | BS43: 0 | BT43: 0 | BU43: 0 | BV43: 0 | BW43: 0 | BX43: 0 | BY43: 0 | BZ43: 0 | CA43: 0 | CB43: 0 | CC43: 0 | CD43: 0 | CE43: 0 | CF43: 0 | CG43: 0 | CH43: 0 | CI43: 0 | CJ43: 0 | CK43: 0 | CL43: 0 | CM43: 0 | CN43: 0 | CO43: 0 | CP43: 0 | CQ43: 0 | CR43: 0 | CS43: 0 | CT43: 0 | CU43: 0 | CV43: 0 | CW43: 0 | CX43: 0 | CY43: 2943 | CZ43: 1971 | DA43: 99 | DB43: 15 | DC43: 21 | DD43: 63 | DE43: 187 | DF43: 375 | DG43: 1310 | DH43: 44 | DI43: 44 | DJ43: 8
A44: Q1 | B44: Q1 2020-21 | C44: Apr, 20-21 | D44: 2020-21April | E44: 2020-21 | F44: April | AE44: 0 | AF44: 0 | AG44: 0 | AH44: 0 | AI44: 0 | AJ44: 0 | AK44: 0 | AL44: 0 | AM44: 0 | AN44: 0 | AO44: 0 | AP44: 0 | AQ44: =SUM(G$44:G$46) -> 0 | AR44: 0 | AS44: 0 | AT44: 0 | AU44: 0 | AV44: 0 | AW44: 0 | AX44: 0 | AY44: 0 | AZ44: 0 | BA44: =SUM(Q$44:Q$46) -> 0 | BB44: 0 | BC44: 0 | BD44: 0 | BE44: 0 | BF44: 0 | BG44: 0 | BH44: 0 | BI44: 0 | BJ44: 0 | BK44: =SUM(AA$44:AA$46) -> 0 | BL44: 0 | BM44: 0 | BN44: 0 | BO44: 0 | BP44: 0 | BQ44: 0 | BR44: 0 | BS44: 0 | BT44: 0 | BU44: 0 | BV44: 0 | BW44: 0 | BX44: 0 | BY44: 0 | BZ44: 0 | CA44: =SUM(G$44:G$55) -> 0 | CB44: =SUM(H$44:H$55) -> 0 | CC44: =SUM(I$44:I$55) -> 0 | CD44: =SUM(J$44:J$55) -> 0 | CE44: =SUM(K$44:K$55) -> 0 | CF44: =SUM(L$44:L$55) -> 0 | CG44: =SUM(M$44:M$55) -> 0 | CH44: =SUM(N$44:N$55) -> 0 | CI44: =SUM(O$44:O$55) -> 0 | CJ44: =SUM(P$44:P$55) -> 0 | CK44: 0 | CL44: 0 | CM44: =SUM(S$44:S$55) -> 0 | CN44: =SUM(T$44:T$55) -> 0 | CO44: =SUM(U$44:U$55) -> 0 | CP44: =SUM(V$44:V$55) -> 0 | CQ44: =SUM(W$44:W$55) -> 0 | CR44: =SUM(X$44:X$55) -> 0 | CS44: =SUM(Y$44:Y$55) -> 0 | CT44: =SUM(Z$44:Z$55) -> 0 | CU44: =SUM(AA$44:AA$55) -> 0 | CV44: =SUM(AB$44:AB$55) -> 0 | CW44: =SUM(AC$44:AC$55) -> 0 | CX44: =SUM(AD$44:AD$55) -> 0 | CY44: 0 | CZ44: 0 | DA44: 0 | DB44: 0 | DC44: 0 | DD44: 0 | DE44: 0 | DF44: 0 | DG44: 0 | DH44: 0 | DI44: 0 | DJ44: 0
A45: Q1 | B45: Q1 2020-21 | C45: May | D45: 2020-21May | E45: 2020-21 | F45: May | AE45: 0 | AF45: 0 | AG45: 0 | AH45: 0 | AI45: 0 | AJ45: 0 | AK45: 0 | AL45: 0 | AM45: 0 | AN45: 0 | AO45: 0 | AP45: 0 | AQ45: 0 | AR45: 0 | AS45: 0 | AT45: 0 | AU45: 0 | AV45: 0 | AW45: 0 | AX45: 0 | AY45: 0 | AZ45: 0 | BA45: 0 | BB45: 0 | BC45: 0 | BD45: 0 | BE45: 0 | BF45: 0 | BG45: 0 | BH45: 0 | BI45: 0 | BJ45: 0 | BK45: 0 | BL45: 0 | BM45: 0 | BN45: 0 | BO45: 0 | BP45: 0 | BQ45: 0 | BR45: 0 | BS45: 0 | BT45: 0 | BU45: 0 | BV45: 0 | BW45: 0 | BX45: 0 | BY45: 0 | BZ45: 0 | CA45: 0 | CB45: 0 | CC45: 0 | CD45: 0 | CE45: 0 | CF45: 0 | CG45: 0 | CH45: 0 | CI45: 0 | CJ45: 0 | CK45: 0 | CL45: 0 | CM45: 0 | CN45: 0 | CO45: 0 | CP45: 0 | CQ45: 0 | CR45: 0 | CS45: 0 | CT45: 0 | CU45: 0 | CV45: 0 | CW45: 0 | CX45: 0 | CY45: 0 | CZ45: 0 | DA45: 0 | DB45: 0 | DC45: 0 | DD45: 0 | DE45: 0 | DF45: 0 | DG45: 0 | DH45: 0 | DI45: 0 | DJ45: 0
A46: Q1 | B46: Q1 2020-21 | C46: Jun | D46: 2020-21June | E46: 2020-21 | F46: June | AE46: 0 | AF46: 0 | AG46: 0 | AH46: 0 | AI46: 0 | AJ46: 0 | AK46: 0 | AL46: 0 | AM46: 0 | AN46: 0 | AO46: 0 | AP46: 0 | AQ46: 0 | AR46: 0 | AS46: 0 | AT46: 0 | AU46: 0 | AV46: 0 | AW46: 0 | AX46: 0 | AY46: 0 | AZ46: 0 | BA46: 0 | BB46: 0 | BC46: 0 | BD46: 0 | BE46: 0 | BF46: 0 | BG46: 0 | BH46: 0 | BI46: 0 | BJ46: 0 | BK46: 0 | BL46: 0 | BM46: 0 | BN46: 0 | BO46: 0 | BP46: 0 | BQ46: 0 | BR46: 0 | BS46: 0 | BT46: 0 | BU46: 0 | BV46: 0 | BW46: 0 | BX46: 0 | BY46: 0 | BZ46: 0 | CA46: 0 | CB46: 0 | CC46: 0 | CD46: 0 | CE46: 0 | CF46: 0 | CG46: 0 | CH46: 0 | CI46: 0 | CJ46: 0 | CK46: 0 | CL46: 0 | CM46: 0 | CN46: 0 | CO46: 0 | CP46: 0 | CQ46: 0 | CR46: 0 | CS46: 0 | CT46: 0 | CU46: 0 | CV46: 0 | CW46: 0 | CX46: 0 | CY46: 0 | CZ46: 0 | DA46: 0 | DB46: 0 | DC46: 0 | DD46: 0 | DE46: 0 | DF46: 0 | DG46: 0 | DH46: 0 | DI46: 0 | DJ46: 0
A47: Q2 | B47: Q2 2020-21 | C47: Jul | D47: 2020-21July | E47: 2020-21 | F47: July | AE47: 0 | AF47: 0 | AG47: 0 | AH47: 0 | AI47: 0 | AJ47: 0 | AK47: 0 | AL47: 0 | AM47: 0 | AN47: 0 | AO47: 0 | AP47: 0 | AQ47: =SUM(G$47:G$49) -> 0 | AR47: 0 | AS47: 0 | AT47: 0 | AU47: 0 | AV47: 0 | AW47: 0 | AX47: 0 | AY47: 0 | AZ47: 0 | BA47: =SUM(Q$47:Q$49) -> 0 | BB47: 0 | BC47: 0 | BD47: 0 | BE47: 0 | BF47: 0 | BG47: 0 | BH47: 0 | BI47: 0 | BJ47: 0 | BK47: =SUM(AA$47:AA$49) -> 0 | BL47: 0 | BM47: 0 | BN47: 0 | BO47: 0 | BP47: 0 | BQ47: 0 | BR47: 0 | BS47: 0 | BT47: 0 | BU47: 0 | BV47: 0 | BW47: 0 | BX47: 0 | BY47: 0 | BZ47: 0 | CA47: 0 | CB47: 0 | CC47: 0 | CD47: 0 | CE47: 0 | CF47: 0 | CG47: 0 | CH47: 0 | CI47: 0 | CJ47: 0 | CK47: 0 | CL47: 0 | CM47: 0 | CN47: 0 | CO47: 0 | CP47: 0 | CQ47: 0 | CR47: 0 | CS47: 0 | CT47: 0 | CU47: 0 | CV47: 0 | CW47: 0 | CX47: 0 | CY47: 0 | CZ47: 0 | DA47: 0 | DB47: 0 | DC47: 0 | DD47: 0 | DE47: 0 | DF47: 0 | DG47: 0 | DH47: 0 | DI47: 0 | DJ47: 0
A48: Q2 | B48: Q2 2020-21 | C48: Aug | D48: 2020-21August | E48: 2020-21 | F48: August | AE48: 0 | AF48: 0 | AG48: 0 | AH48: 0 | AI48: 0 | AJ48: 0 | AK48: 0 | AL48: 0 | AM48: 0 | AN48: 0 | AO48: 0 | AP48: 0 | AQ48: 0 | AR48: 0 | AS48: 0 | AT48: 0 | AU48: 0 | AV48: 0 | AW48: 0 | AX48: 0 | AY48: 0 | AZ48: 0 | BA48: 0 | BB48: 0 | BC48: 0 | BD48: 0 | BE48: 0 | BF48: 0 | BG48: 0 | BH48: 0 | BI48: 0 | BJ48: 0 | BK48: 0 | BL48: 0 | BM48: 0 | BN48: 0 | BO48: 0 | BP48: 0 | BQ48: 0 | BR48: 0 | BS48: 0 | BT48: 0 | BU48: 0 | BV48: 0 | BW48: 0 | BX48: 0 | BY48: 0 | BZ48: 0 | CA48: 0 | CB48: 0 | CC48: 0 | CD48: 0 | CE48: 0 | CF48: 0 | CG48: 0 | CH48: 0 | CI48: 0 | CJ48: 0 | CK48: 0 | CL48: 0 | CM48: 0 | CN48: 0 | CO48: 0 | CP48: 0 | CQ48: 0 | CR48: 0 | CS48: 0 | CT48: 0 | CU48: 0 | CV48: 0 | CW48: 0 | CX48: 0 | CY48: 0 | CZ48: 0 | DA48: 0 | DB48: 0 | DC48: 0 | DD48: 0 | DE48: 0 | DF48: 0 | DG48: 0 | DH48: 0 | DI48: 0 | DJ48: 0
A49: Q2 | B49: Q2 2020-21 | C49: Sep | D49: 2020-21September | E49: 2020-21 | F49: September | AE49: 0 | AF49: 0 | AG49: 0 | AH49: 0 | AI49: 0 | AJ49: 0 | AK49: 0 | AL49: 0 | AM49: 0 | AN49: 0 | AO49: 0 | AP49: 0 | AQ49: 0 | AR49: 0 | AS49: 0 | AT49: 0 | AU49: 0 | AV49: 0 | AW49: 0 | AX49: 0 | AY49: 0 | AZ49: 0 | BA49: 0 | BB49: 0 | BC49: 0 | BD49: 0 | BE49: 0 | BF49: 0 | BG49: 0 | BH49: 0 | BI49: 0 | BJ49: 0 | BK49: 0 | BL49: 0 | BM49: 0 | BN49: 0 | BO49: 0 | BP49: 0 | BQ49: 0 | BR49: 0 | BS49: 0 | BT49: 0 | BU49: 0 | BV49: 0 | BW49: 0 | BX49: 0 | BY49: 0 | BZ49: 0 | CA49: 0 | CB49: 0 | CC49: 0 | CD49: 0 | CE49: 0 | CF49: 0 | CG49: 0 | CH49: 0 | CI49: 0 | CJ49: 0 | CK49: 0 | CL49: 0 | CM49: 0 | CN49: 0 | CO49: 0 | CP49: 0 | CQ49: 0 | CR49: 0 | CS49: 0 | CT49: 0 | CU49: 0 | CV49: 0 | CW49: 0 | CX49: 0 | CY49: 0 | CZ49: 0 | DA49: 0 | DB49: 0 | DC49: 0 | DD49: 0 | DE49: 0 | DF49: 0 | DG49: 0 | DH49: 0 | DI49: 0 | DJ49: 0
A50: Q3 | B50: Q3 2020-21 | C50: Oct | D50: 2020-21October | E50: 2020-21 | F50: October | AE50: 0 | AF50: 0 | AG50: 0 | AH50: 0 | AI50: 0 | AJ50: 0 | AK50: 0 | AL50: 0 | AM50: 0 | AN50: 0 | AO50: 0 | AP50: 0 | AQ50: =SUM(G$50:G$52) -> 0 | AR50: 0 | AS50: 0 | AT50: 0 | AU50: 0 | AV50: 0 | AW50: 0 | AX50: 0 | AY50: 0 | AZ50: 0 | BA50: =SUM(Q$50:Q$52) -> 0 | BB50: 0 | BC50: 0 | BD50: 0 | BE50: 0 | BF50: 0 | BG50: 0 | BH50: 0 | BI50: 0 | BJ50: 0 | BK50: =SUM(AA$50:AA$52) -> 0 | BL50: 0 | BM50: 0 | BN50: 0 | BO50: 0 | BP50: 0 | BQ50: 0 | BR50: 0 | BS50: 0 | BT50: 0 | BU50: 0 | BV50: 0 | BW50: 0 | BX50: 0 | BY50: 0 | BZ50: 0 | CA50: 0 | CB50: 0 | CC50: 0 | CD50: 0 | CE50: 0 | CF50: 0 | CG50: 0 | CH50: 0 | CI50: 0 | CJ50: 0 | CK50: 0 | CL50: 0 | CM50: 0 | CN50: 0 | CO50: 0 | CP50: 0 | CQ50: 0 | CR50: 0 | CS50: 0 | CT50: 0 | CU50: 0 | CV50: 0 | CW50: 0 | CX50: 0 | CY50: 0 | CZ50: 0 | DA50: 0 | DB50: 0 | DC50: 0 | DD50: 0 | DE50: 0 | DF50: 0 | DG50: 0 | DH50: 0 | DI50: 0 | DJ50: 0
A51: Q3 | B51: Q3 2020-21 | C51: Nov | D51: 2020-21November | E51: 2020-21 | F51: November | AE51: 0 | AF51: 0 | AG51: 0 | AH51: 0 | AI51: 0 | AJ51: 0 | AK51: 0 | AL51: 0 | AM51: 0 | AN51: 0 | AO51: 0 | AP51: 0 | AQ51: 0 | AR51: 0 | AS51: 0 | AT51: 0 | AU51: 0 | AV51: 0 | AW51: 0 | AX51: 0 | AY51: 0 | AZ51: 0 | BA51: 0 | BB51: 0 | BC51: 0 | BD51: 0 | BE51: 0 | BF51: 0 | BG51: 0 | BH51: 0 | BI51: 0 | BJ51: 0 | BK51: 0 | BL51: 0 | BM51: 0 | BN51: 0 | BO51: 0 | BP51: 0 | BQ51: 0 | BR51: 0 | BS51: 0 | BT51: 0 | BU51: 0 | BV51: 0 | BW51: 0 | BX51: 0 | BY51: 0 | BZ51: 0 | CA51: 0 | CB51: 0 | CC51: 0 | CD51: 0 | CE51: 0 | CF51: 0 | CG51: 0 | CH51: 0 | CI51: 0 | CJ51: 0 | CK51: 0 | CL51: 0 | CM51: 0 | CN51: 0 | CO51: 0 | CP51: 0 | CQ51: 0 | CR51: 0 | CS51: 0 | CT51: 0 | CU51: 0 | CV51: 0 | CW51: 0 | CX51: 0 | CY51: 0 | CZ51: 0 | DA51: 0 | DB51: 0 | DC51: 0 | DD51: 0 | DE51: 0 | DF51: 0 | DG51: 0 | DH51: 0 | DI51: 0 | DJ51: 0
A52: Q3 | B52: Q3 2020-21 | C52: Dec | D52: 2020-21December | E52: 2020-21 | F52: December | AE52: 0 | AF52: 0 | AG52: 0 | AH52: 0 | AI52: 0 | AJ52: 0 | AK52: 0 | AL52: 0 | AM52: 0 | AN52: 0 | AO52: 0 | AP52: 0 | AQ52: 0 | AR52: 0 | AS52: 0 | AT52: 0 | AU52: 0 | AV52: 0 | AW52: 0 | AX52: 0 | AY52: 0 | AZ52: 0 | BA52: 0 | BB52: 0 | BC52: 0 | BD52: 0 | BE52: 0 | BF52: 0 | BG52: 0 | BH52: 0 | BI52: 0 | BJ52: 0 | BK52: 0 | BL52: 0 | BM52: 0 | BN52: 0 | BO52: 0 | BP52: 0 | BQ52: 0 | BR52: 0 | BS52: 0 | BT52: 0 | BU52: 0 | BV52: 0 | BW52: 0 | BX52: 0 | BY52: 0 | BZ52: 0 | CA52: 0 | CB52: 0 | CC52: 0 | CD52: 0 | CE52: 0 | CF52: 0 | CG52: 0 | CH52: 0 | CI52: 0 | CJ52: 0 | CK52: 0 | CL52: 0 | CM52: 0 | CN52: 0 | CO52: 0 | CP52: 0 | CQ52: 0 | CR52: 0 | CS52: 0 | CT52: 0 | CU52: 0 | CV52: 0 | CW52: 0 | CX52: 0 | CY52: 0 | CZ52: 0 | DA52: 0 | DB52: 0 | DC52: 0 | DD52: 0 | DE52: 0 | DF52: 0 | DG52: 0 | DH52: 0 | DI52: 0 | DJ52: 0
A53: Q4 | B53: Q4 2020-21 | C53: Jan | D53: 2020-21January | E53: 2020-21 | F53: January | AE53: 0 | AF53: 0 | AG53: 0 | AH53: 0 | AI53: 0 | AJ53: 0 | AK53: 0 | AL53: 0 | AM53: 0 | AN53: 0 | AO53: 0 | AP53: 0 | AQ53: =SUM(G$53:G$55) -> 0 | AR53: 0 | AS53: 0 | AT53: 0 | AU53: 0 | AV53: 0 | AW53: 0 | AX53: 0 | AY53: 0 | AZ53: 0 | BA53: =SUM(Q$53:Q$55) -> 0 | BB53: 0 | BC53: 0 | BD53: 0 | BE53: 0 | BF53: 0 | BG53: 0 | BH53: 0 | BI53: 0 | BJ53: 0 | BK53: =SUM(AA$53:AA$55) -> 0 | BL53: 0 | BM53: 0 | BN53: 0 | BO53: 0 | BP53: 0 | BQ53: 0 | BR53: 0 | BS53: 0 | BT53: 0 | BU53: 0 | BV53: 0 | BW53: 0 | BX53: 0 | BY53: 0 | BZ53: 0 | CA53: 0 | CB53: 0 | CC53: 0 | CD53: 0 | CE53: 0 | CF53: 0 | CG53: 0 | CH53: 0 | CI53: 0 | CJ53: 0 | CK53: 0 | CL53: 0 | CM53: 0 | CN53: 0 | CO53: 0 | CP53: 0 | CQ53: 0 | CR53: 0 | CS53: 0 | CT53: 0 | CU53: 0 | CV53: 0 | CW53: 0 | CX53: 0 | CY53: 0 | CZ53: 0 | DA53: 0 | DB53: 0 | DC53: 0 | DD53: 0 | DE53: 0 | DF53: 0 | DG53: 0 | DH53: 0 | DI53: 0 | DJ53: 0
A54: Q4 | B54: Q4 2020-21 | C54: Feb | D54: 2020-21February | E54: 2020-21 | F54: February | AE54: 0 | AF54: 0 | AG54: 0 | AH54: 0 | AI54: 0 | AJ54: 0 | AK54: 0 | AL54: 0 | AM54: 0 | AN54: 0 | AO54: 0 | AP54: 0 | AQ54: 0 | AR54: 0 | AS54: 0 | AT54: 0 | AU54: 0 | AV54: 0 | AW54: 0 | AX54: 0 | AY54: 0 | AZ54: 0 | BA54: 0 | BB54: 0 | BC54: 0 | BD54: 0 | BE54: 0 | BF54: 0 | BG54: 0 | BH54: 0 | BI54: 0 | BJ54: 0 | BK54: 0 | BL54: 0 | BM54: 0 | BN54: 0 | BO54: 0 | BP54: 0 | BQ54: 0 | BR54: 0 | BS54: 0 | BT54: 0 | BU54: 0 | BV54: 0 | BW54: 0 | BX54: 0 | BY54: 0 | BZ54: 0 | CA54: 0 | CB54: 0 | CC54: 0 | CD54: 0 | CE54: 0 | CF54: 0 | CG54: 0 | CH54: 0 | CI54: 0 | CJ54: 0 | CK54: 0 | CL54: 0 | CM54: 0 | CN54: 0 | CO54: 0 | CP54: 0 | CQ54: 0 | CR54: 0 | CS54: 0 | CT54: 0 | CU54: 0 | CV54: 0 | CW54: 0 | CX54: 0 | CY54: 0 | CZ54: 0 | DA54: 0 | DB54: 0 | DC54: 0 | DD54: 0 | DE54: 0 | DF54: 0 | DG54: 0 | DH54: 0 | DI54: 0 | DJ54: 0
A55: Q4 | B55: Q4 2020-21 | C55: Mar | D55: 2020-21March | E55: 2020-21 | F55: March | AE55: 0 | AF55: 0 | AG55: 0 | AH55: 0 | AI55: 0 | AJ55: 0 | AK55: 0 | AL55: 0 | AM55: 0 | AN55: 0 | AO55: 0 | AP55: 0 | AQ55: 0 | AR55: 0 | AS55: 0 | AT55: 0 | AU55: 0 | AV55: 0 | AW55: 0 | AX55: 0 | AY55: 0 | AZ55: 0 | BA55: 0 | BB55: 0 | BC55: 0 | BD55: 0 | BE55: 0 | BF55: 0 | BG55: 0 | BH55: 0 | BI55: 0 | BJ55: 0 | BK55: 0 | BL55: 0 | BM55: 0 | BN55: 0 | BO55: 0 | BP55: 0 | BQ55: 0 | BR55: 0 | BS55: 0 | BT55: 0 | BU55: 0 | BV55: 0 | BW55: 0 | BX55: 0 | BY55: 0 | BZ55: 0 | CA55: 0 | CB55: 0 | CC55: 0 | CD55: 0 | CE55: 0 | CF55: 0 | CG55: 0 | CH55: 0 | CI55: 0 | CJ55: 0 | CK55: 0 | CL55: 0 | CM55: 0 | CN55: 0 | CO55: 0 | CP55: 0 | CQ55: 0 | CR55: 0 | CS55: 0 | CT55: 0 | CU55: 0 | CV55: 0 | CW55: 0 | CX55: 0 | CY55: 0 | CZ55: 0 | DA55: 0 | DB55: 0 | DC55: 0 | DD55: 0 | DE55: 0 | DF55: 0 | DG55: 0 | DH55: 0 | DI55: 0 | DJ55: 0
A56: Q1 | B56: Q1 2021-22 | C56: Apr, 21-22 | D56: 2021-22April | E56: 2021-22 | F56: April | AE56: 0 | AF56: 0 | AG56: 0 | AH56: 0 | AI56: 0 | AJ56: 0 | AK56: 0 | AL56: 0 | AM56: 0 | AN56: 0 | AO56: 0 | AP56: 0 | AQ56: =SUM(G$56:G$58) -> 0 | AR56: 0 | AS56: 0 | AT56: 0 | AU56: 0 | AV56: 0 | AW56: 0 | AX56: 0 | AY56: 0 | AZ56: 0 | BA56: =SUM(Q$56:Q$58) -> 0 | BB56: 0 | BC56: 0 | BD56: 0 | BE56: 0 | BF56: 0 | BG56: 0 | BH56: 0 | BI56: 0 | BJ56: 0 | BK56: =SUM(AA$56:AA$58) -> 0 | BL56: 0 | BM56: 0 | BN56: 0 | BO56: 0 | BP56: 0 | BQ56: 0 | BR56: 0 | BS56: 0 | BT56: 0 | BU56: 0 | BV56: 0 | BW56: 0 | BX56: 0 | BY56: 0 | BZ56: 0 | CA56: =SUM(G$56:G$67) -> 0 | CB56: =SUM(H$56:H$67) -> 0 | CC56: =SUM(I$56:I$67) -> 0 | CD56: =SUM(J$56:J$67) -> 0 | CE56: =SUM(K$56:K$67) -> 0 | CF56: =SUM(L$56:L$67) -> 0 | CG56: =SUM(M$56:M$67) -> 0 | CH56: =SUM(N$56:N$67) -> 0 | CI56: =SUM(O$56:O$67) -> 0 | CJ56: =SUM(P$56:P$67) -> 0 | CK56: 0 | CL56: 0 | CM56: =SUM(S$56:S$67) -> 0 | CN56: =SUM(T$56:T$67) -> 0 | CO56: =SUM(U$56:U$67) -> 0 | CP56: =SUM(V$56:V$67) -> 0 | CQ56: =SUM(W$56:W$67) -> 0 | CR56: =SUM(X$56:X$67) -> 0 | CS56: =SUM(Y$56:Y$67) -> 0 | CT56: =SUM(Z$56:Z$67) -> 0 | CU56: =SUM(AA$56:AA$67) -> 0 | CV56: =SUM(AB$56:AB$67) -> 0 | CW56: =SUM(AC$56:AC$67) -> 0 | CX56: =SUM(AD$56:AD$67) -> 0 | CY56: 0 | CZ56: 0 | DA56: 0 | DB56: 0 | DC56: 0 | DD56: 0 | DE56: 0 | DF56: 0 | DG56: 0 | DH56: 0 | DI56: 0 | DJ56: 0
A57: Q1 | B57: Q1 2021-22 | C57: May | D57: 2021-22May | E57: 2021-22 | F57: May | AE57: 0 | AF57: 0 | AG57: 0 | AH57: 0 | AI57: 0 | AJ57: 0 | AK57: 0 | AL57: 0 | AM57: 0 | AN57: =P56 -> 0 | AO57: 0 | AP57: 0 | AQ57: 0 | AR57: 0 | AS57: 0 | AT57: 0 | AU57: 0 | AV57: 0 | AW57: 0 | AX57: 0 | AY57: 0 | AZ57: 0 | BA57: 0 | BB57: 0 | BC57: 0 | BD57: 0 | BE57: 0 | BF57: 0 | BG57: 0 | BH57: 0 | BI57: 0 | BJ57: 0 | BK57: 0 | BL57: 0 | BM57: 0 | BN57: 0 | BO57: 0 | BP57: 0 | BQ57: 0 | BR57: 0 | BS57: 0 | BT57: 0 | BU57: 0 | BV57: 0 | BW57: 0 | BX57: 0 | BY57: 0 | BZ57: 0 | CA57: 0 | CB57: 0 | CC57: 0 | CD57: 0 | CE57: 0 | CF57: 0 | CG57: 0 | CH57: 0 | CI57: 0 | CJ57: 0 | CK57: 0 | CL57: 0 | CM57: 0 | CN57: 0 | CO57: 0 | CP57: 0 | CQ57: 0 | CR57: 0 | CS57: 0 | CT57: 0 | CU57: 0 | CV57: 0 | CW57: 0 | CX57: 0 | CY57: 0 | CZ57: 0 | DA57: 0 | DB57: 0 | DC57: 0 | DD57: 0 | DE57: 0 | DF57: 0 | DG57: 0 | DH57: 0 | DI57: 0 | DJ57: 0
A58: Q1 | B58: Q1 2021-22 | C58: Jun | D58: 2021-22June | E58: 2021-22 | F58: June | AE58: 0 | AF58: 0 | AG58: 0 | AH58: 0 | AI58: 0 | AJ58: 0 | AK58: 0 | AL58: 0 | AM58: 0 | AN58: 0 | AO58: 0 | AP58: 0 | AQ58: 0 | AR58: 0 | AS58: 0 | AT58: 0 | AU58: 0 | AV58: 0 | AW58: 0 | AX58: 0 | AY58: 0 | AZ58: 0 | BA58: 0 | BB58: 0 | BC58: 0 | BD58: 0 | BE58: 0 | BF58: 0 | BG58: 0 | BH58: 0 | BI58: 0 | BJ58: 0 | BK58: 0 | BL58: 0 | BM58: 0 | BN58: 0 | BO58: 0 | BP58: 0 | BQ58: 0 | BR58: 0 | BS58: 0 | BT58: 0 | BU58: 0 | BV58: 0 | BW58: 0 | BX58: 0 | BY58: 0 | BZ58: 0 | CA58: 0 | CB58: 0 | CC58: 0 | CD58: 0 | CE58: 0 | CF58: 0 | CG58: 0 | CH58: 0 | CI58: 0 | CJ58: 0 | CK58: 0 | CL58: 0 | CM58: 0 | CN58: 0 | CO58: 0 | CP58: 0 | CQ58: 0 | CR58: 0 | CS58: 0 | CT58: 0 | CU58: 0 | CV58: 0 | CW58: 0 | CX58: 0 | CY58: 0 | CZ58: 0 | DA58: 0 | DB58: 0 | DC58: 0 | DD58: 0 | DE58: 0 | DF58: 0 | DG58: 0 | DH58: 0 | DI58: 0 | DJ58: 0
A59: Q2 | B59: Q2 2021-22 | C59: Jul | D59: 2021-22July | E59: 2021-22 | F59: July | AE59: 0 | AF59: 0 | AG59: 0 | AH59: 0 | AI59: 0 | AJ59: 0 | AK59: 0 | AL59: 0 | AM59: 0 | AN59: 0 | AO59: 0 | AP59: 0 | AQ59: =SUM(G$59:G$61) -> 0 | AR59: 0 | AS59: 0 | AT59: 0 | AU59: 0 | AV59: 0 | AW59: 0 | AX59: 0 | AY59: 0 | AZ59: 0 | BA59: =SUM(Q$59:Q$61) -> 0 | BB59: 0 | BC59: 0 | BD59: 0 | BE59: 0 | BF59: 0 | BG59: 0 | BH59: 0 | BI59: 0 | BJ59: 0 | BK59: =SUM(AA$59:AA$61) -> 0 | BL59: 0 | BM59: 0 | BN59: 0 | BO59: =AQ56 -> 0 | BP59: 0 | BQ59: 0 | BR59: 0 | BS59: 0 | BT59: 0 | BU59: 0 | BV59: 0 | BW59: 0 | BX59: 0 | BY59: 0 | BZ59: 0 | CA59: 0 | CB59: 0 | CC59: 0 | CD59: 0 | CE59: 0 | CF59: 0 | CG59: 0 | CH59: 0 | CI59: 0 | CJ59: 0 | CK59: 0 | CL59: 0 | CM59: 0 | CN59: 0 | CO59: 0 | CP59: 0 | CQ59: 0 | CR59: 0 | CS59: 0 | CT59: 0 | CU59: 0 | CV59: 0 | CW59: 0 | CX59: 0 | CY59: 0 | CZ59: 0 | DA59: 0 | DB59: 0 | DC59: 0 | DD59: 0 | DE59: 0 | DF59: 0 | DG59: 0 | DH59: 0 | DI59: 0 | DJ59: 0
A60: Q2 | B60: Q2 2021-22 | C60: Aug | D60: 2021-22August | E60: 2021-22 | F60: August | AE60: 0 | AF60: 0 | AG60: 0 | AH60: 0 | AI60: 0 | AJ60: 0 | AK60: 0 | AL60: 0 | AM60: 0 | AN60: 0 | AO60: 0 | AP60: 0 | AQ60: 0 | AR60: 0 | AS60: 0 | AT60: 0 | AU60: 0 | AV60: 0 | AW60: 0 | AX60: 0 | AY60: 0 | AZ60: 0 | BA60: 0 | BB60: 0 | BC60: 0 | BD60: 0 | BE60: 0 | BF60: 0 | BG60: 0 | BH60: 0 | BI60: 0 | BJ60: 0 | BK60: 0 | BL60: 0 | BM60: 0 | BN60: 0 | BO60: =AQ57 -> 0 | BP60: =AR57 -> 0 | BQ60: =AS57 -> 0 | BR60: =AT57 -> 0 | BS60: =AU57 -> 0 | BT60: =AV57 -> 0 | BU60: =AW57 -> 0 | BV60: =AX57 -> 0 | BW60: =AY57 -> 0 | BX60: 0 | BY60: 0 | BZ60: 0 | CA60: 0 | CB60: 0 | CC60: 0 | CD60: 0 | CE60: 0 | CF60: 0 | CG60: 0 | CH60: 0 | CI60: 0 | CJ60: 0 | CK60: 0 | CL60: 0 | CM60: 0 | CN60: 0 | CO60: 0 | CP60: 0 | CQ60: 0 | CR60: 0 | CS60: 0 | CT60: 0 | CU60: 0 | CV60: 0 | CW60: 0 | CX60: 0 | CY60: 0 | CZ60: 0 | DA60: 0 | DB60: 0 | DC60: 0 | DD60: 0 | DE60: 0 | DF60: 0 | DG60: 0 | DH60: 0 | DI60: 0 | DJ60: 0
A61: Q2 | B61: Q2 2021-22 | C61: Sep | D61: 2021-22September | E61: 2021-22 | F61: September | AE61: 0 | AF61: 0 | AG61: 0 | AH61: 0 | AI61: 0 | AJ61: 0 | AK61: 0 | AL61: 0 | AM61: 0 | AN61: 0 | AO61: 0 | AP61: 0 | AQ61: 0 | AR61: 0 | AS61: 0 | AT61: 0 | AU61: 0 | AV61: 0 | AW61: 0 | AX61: 0 | AY61: 0 | AZ61: 0 | BA61: 0 | BB61: 0 | BC61: 0 | BD61: 0 | BE61: 0 | BF61: 0 | BG61: 0 | BH61: 0 | BI61: 0 | BJ61: 0 | BK61: 0 | BL61: 0 | BM61: 0 | BN61: 0 | BO61: 0 | BP61: 0 | BQ61: 0 | BR61: 0 | BS61: 0 | BT61: 0 | BU61: 0 | BV61: 0 | BW61: 0 | BX61: 0 | BY61: 0 | BZ61: 0 | CA61: 0 | CB61: 0 | CC61: 0 | CD61: 0 | CE61: 0 | CF61: 0 | CG61: 0 | CH61: 0 | CI61: 0 | CJ61: 0 | CK61: 0 | CL61: 0 | CM61: 0 | CN61: 0 | CO61: 0 | CP61: 0 | CQ61: 0 | CR61: 0 | CS61: 0 | CT61: 0 | CU61: 0 | CV61: 0 | CW61: 0 | CX61: 0 | CY61: 0 | CZ61: 0 | DA61: 0 | DB61: 0 | DC61: 0 | DD61: 0 | DE61: 0 | DF61: 0 | DG61: 0 | DH61: 0 | DI61: 0 | DJ61: 0
A62: Q3 | B62: Q3 2021-22 | C62: Oct | D62: 2021-22October | E62: 2021-22 | F62: October | AE62: 0 | AF62: 0 | AG62: 0 | AH62: 0 | AI62: 0 | AJ62: 0 | AK62: 0 | AL62: 0 | AM62: 0 | AN62: 0 | AO62: 0 | AP62: 0 | AQ62: =SUM(G$62:G$64) -> 0 | AR62: 0 | AS62: 0 | AT62: 0 | AU62: 0 | AV62: 0 | AW62: 0 | AX62: 0 | AY62: 0 | AZ62: 0 | BA62: =SUM(Q$62:Q$64) -> 0 | BB62: 0 | BC62: 0 | BD62: 0 | BE62: 0 | BF62: 0 | BG62: 0 | BH62: 0 | BI62: 0 | BJ62: 0 | BK62: =SUM(AA$62:AA$64) -> 0 | BL62: 0 | BM62: 0 | BN62: 0 | BO62: 0 | BP62: 0 | BQ62: 0 | BR62: 0 | BS62: 0 | BT62: 0 | BU62: 0 | BV62: 0 | BW62: 0 | BX62: 0 | BY62: 0 | BZ62: 0 | CA62: 0 | CB62: 0 | CC62: 0 | CD62: 0 | CE62: 0 | CF62: 0 | CG62: 0 | CH62: 0 | CI62: 0 | CJ62: 0 | CK62: 0 | CL62: 0 | CM62: 0 | CN62: 0 | CO62: 0 | CP62: 0 | CQ62: 0 | CR62: 0 | CS62: 0 | CT62: 0 | CU62: 0 | CV62: 0 | CW62: 0 | CX62: 0 | CY62: 0 | CZ62: 0 | DA62: 0 | DB62: 0 | DC62: 0 | DD62: 0 | DE62: 0 | DF62: 0 | DG62: 0 | DH62: 0 | DI62: 0 | DJ62: 0
A63: Q3 | B63: Q3 2021-22 | C63: Nov | D63: 2021-22November | E63: 2021-22 | F63: November | AE63: 0 | AF63: 0 | AG63: 0 | AH63: 0 | AI63: 0 | AJ63: 0 | AK63: 0 | AL63: 0 | AM63: 0 | AN63: 0 | AO63: 0 | AP63: 0 | AQ63: 0 | AR63: 0 | AS63: 0 | AT63: 0 | AU63: 0 | AV63: 0 | AW63: 0 | AX63: 0 | AY63: 0 | AZ63: 0 | BA63: 0 | BB63: 0 | BC63: 0 | BD63: 0 | BE63: 0 | BF63: 0 | BG63: 0 | BH63: 0 | BI63: 0 | BJ63: 0 | BK63: 0 | BL63: 0 | BM63: 0 | BN63: 0 | BO63: 0 | BP63: 0 | BQ63: 0 | BR63: 0 | BS63: 0 | BT63: 0 | BU63: 0 | BV63: 0 | BW63: 0 | BX63: 0 | BY63: 0 | BZ63: 0 | CA63: 0 | CB63: 0 | CC63: 0 | CD63: 0 | CE63: 0 | CF63: 0 | CG63: 0 | CH63: 0 | CI63: 0 | CJ63: 0 | CK63: 0 | CL63: 0 | CM63: 0 | CN63: 0 | CO63: 0 | CP63: 0 | CQ63: 0 | CR63: 0 | CS63: 0 | CT63: 0 | CU63: 0 | CV63: 0 | CW63: 0 | CX63: 0 | CY63: 0 | CZ63: 0 | DA63: 0 | DB63: 0 | DC63: 0 | DD63: 0 | DE63: 0 | DF63: 0 | DG63: 0 | DH63: 0 | DI63: 0 | DJ63: 0
A64: Q3 | B64: Q3 2021-22 | C64: Dec | D64: 2021-22December | E64: 2021-22 | F64: December | AE64: 0 | AF64: 0 | AG64: 0 | AH64: 0 | AI64: 0 | AJ64: 0 | AK64: 0 | AL64: 0 | AM64: 0 | AN64: 0 | AO64: 0 | AP64: 0 | AQ64: 0 | AR64: 0 | AS64: 0 | AT64: 0 | AU64: 0 | AV64: 0 | AW64: 0 | AX64: 0 | AY64: 0 | AZ64: 0 | BA64: 0 | BB64: 0 | BC64: 0 | BD64: 0 | BE64: 0 | BF64: 0 | BG64: 0 | BH64: 0 | BI64: 0 | BJ64: 0 | BK64: 0 | BL64: 0 | BM64: 0 | BN64: 0 | BO64: 0 | BP64: 0 | BQ64: 0 | BR64: 0 | BS64: 0 | BT64: 0 | BU64: 0 | BV64: 0 | BW64: 0 | BX64: 0 | BY64: 0 | BZ64: 0 | CA64: 0 | CB64: 0 | CC64: 0 | CD64: 0 | CE64: 0 | CF64: 0 | CG64: 0 | CH64: 0 | CI64: 0 | CJ64: 0 | CK64: 0 | CL64: 0 | CM64: 0 | CN64: 0 | CO64: 0 | CP64: 0 | CQ64: 0 | CR64: 0 | CS64: 0 | CT64: 0 | CU64: 0 | CV64: 0 | CW64: 0 | CX64: 0 | CY64: 0 | CZ64: 0 | DA64: 0 | DB64: 0 | DC64: 0 | DD64: 0 | DE64: 0 | DF64: 0 | DG64: 0 | DH64: 0 | DI64: 0 | DJ64: 0
A65: Q4 | B65: Q4 2021-22 | C65: Jan | D65: 2021-22January | E65: 2021-22 | F65: January | AE65: 0 | AF65: 0 | AG65: 0 | AH65: 0 | AI65: 0 | AJ65: 0 | AK65: 0 | AL65: 0 | AM65: 0 | AN65: 0 | AO65: 0 | AP65: 0 | AQ65: =SUM(G$65:G$67) -> 0 | AR65: 0 | AS65: 0 | AT65: 0 | AU65: 0 | AV65: 0 | AW65: 0 | AX65: 0 | AY65: 0 | AZ65: 0 | BA65: =SUM(Q$65:Q$67) -> 0 | BB65: 0 | BC65: 0 | BD65: 0 | BE65: 0 | BF65: 0 | BG65: 0 | BH65: 0 | BI65: 0 | BJ65: 0 | BK65: =SUM(AA$65:AA$67) -> 0 | BL65: 0 | BM65: 0 | BN65: 0 | BO65: 0 | BP65: 0 | BQ65: 0 | BR65: 0 | BS65: 0 | BT65: 0 | BU65: 0 | BV65: 0 | BW65: 0 | BX65: 0 | BY65: 0 | BZ65: 0 | CA65: 0 | CB65: 0 | CC65: 0 | CD65: 0 | CE65: 0 | CF65: 0 | CG65: 0 | CH65: 0 | CI65: 0 | CJ65: 0 | CK65: 0 | CL65: 0 | CM65: 0 | CN65: 0 | CO65: 0 | CP65: 0 | CQ65: 0 | CR65: 0 | CS65: 0 | CT65: 0 | CU65: 0 | CV65: 0 | CW65: 0 | CX65: 0 | CY65: 0 | CZ65: 0 | DA65: 0 | DB65: 0 | DC65: 0 | DD65: 0 | DE65: 0 | DF65: 0 | DG65: 0 | DH65: 0 | DI65: 0 | DJ65: 0
A66: Q4 | B66: Q4 2021-22 | C66: Feb | D66: 2021-22February | E66: 2021-22 | F66: February | AE66: 0 | AF66: 0 | AG66: 0 | AH66: 0 | AI66: 0 | AJ66: 0 | AK66: 0 | AL66: 0 | AM66: 0 | AN66: 0 | AO66: 0 | AP66: 0 | AQ66: 0 | AR66: 0 | AS66: 0 | AT66: 0 | AU66: 0 | AV66: 0 | AW66: 0 | AX66: 0 | AY66: 0 | AZ66: 0 | BA66: 0 | BB66: 0 | BC66: 0 | BD66: 0 | BE66: 0 | BF66: 0 | BG66: 0 | BH66: 0 | BI66: 0 | BJ66: 0 | BK66: 0 | BL66: 0 | BM66: 0 | BN66: 0 | BO66: 0 | BP66: 0 | BQ66: 0 | BR66: 0 | BS66: 0 | BT66: 0 | BU66: 0 | BV66: 0 | BW66: 0 | BX66: 0 | BY66: 0 | BZ66: 0 | CA66: 0 | CB66: 0 | CC66: 0 | CD66: 0 | CE66: 0 | CF66: 0 | CG66: 0 | CH66: 0 | CI66: 0 | CJ66: 0 | CK66: 0 | CL66: 0 | CM66: 0 | CN66: 0 | CO66: 0 | CP66: 0 | CQ66: 0 | CR66: 0 | CS66: 0 | CT66: 0 | CU66: 0 | CV66: 0 | CW66: 0 | CX66: 0 | CY66: 0 | CZ66: 0 | DA66: 0 | DB66: 0 | DC66: 0 | DD66: 0 | DE66: 0 | DF66: 0 | DG66: 0 | DH66: 0 | DI66: 0 | DJ66: 0
A67: Q4 | B67: Q4 2021-22 | C67: Mar | D67: 2021-22March | E67: 2021-22 | F67: March | AE67: 0 | AF67: 0 | AG67: 0 | AH67: 0 | AI67: 0 | AJ67: 0 | AK67: 0 | AL67: 0 | AM67: 0 | AN67: 0 | AO67: 0 | AP67: 0 | AQ67: 0 | AR67: 0 | AS67: 0 | AT67: 0 | AU67: 0 | AV67: 0 | AW67: 0 | AX67: 0 | AY67: 0 | AZ67: 0 | BA67: 0 | BB67: 0 | BC67: 0 | BD67: 0 | BE67: 0 | BF67: 0 | BG67: 0 | BH67: 0 | BI67: 0 | BJ67: 0 | BK67: 0 | BL67: 0 | BM67: 0 | BN67: 0 | BO67: 0 | BP67: 0 | BQ67: 0 | BR67: 0 | BS67: 0 | BT67: 0 | BU67: 0 | BV67: 0 | BW67: 0 | BX67: 0 | BY67: 0 | BZ67: 0 | CA67: 0 | CB67: 0 | CC67: 0 | CD67: 0 | CE67: 0 | CF67: 0 | CG67: 0 | CH67: 0 | CI67: 0 | CJ67: 0 | CK67: 0 | CL67: 0 | CM67: 0 | CN67: 0 | CO67: 0 | CP67: 0 | CQ67: 0 | CR67: 0 | CS67: 0 | CT67: 0 | CU67: 0 | CV67: 0 | CW67: 0 | CX67: 0 | CY67: 0 | CZ67: 0 | DA67: 0 | DB67: 0 | DC67: 0 | DD67: 0 | DE67: 0 | DF67: 0 | DG67: 0 | DH67: 0 | DI67: 0 | DJ67: 0
A68: Q1 | B68: Q1 2022-23 | C68: Apr, 21-22 | D68: 2022-23April | E68: 2022-23 | F68: April | AE68: 0 | AF68: =H67 -> 0 | AG68: =I67 -> 0 | AH68: =J67 -> 0 | AI68: =K67 -> 0 | AJ68: =L67 -> 0 | AK68: =M67 -> 0 | AL68: =N67 -> 0 | AM68: 0 | AN68: 0 | AO68: 0 | AP68: 0 | AQ68: =SUM(G$68:G$70) -> 0 | AR68: 0 | AS68: 0 | AT68: 0 | AU68: 0 | AV68: 0 | AW68: 0 | AX68: 0 | AY68: 0 | AZ68: =SUM(P$68:P$70) -> 0 | BA68: =SUM(Q$68:Q$70) -> 0 | BB68: =SUM(R$68:R$70) -> 0 | BC68: =SUM(S$68:S$70) -> 0 | BD68: 0 | BE68: 0 | BF68: 0 | BG68: 0 | BH68: 0 | BI68: 0 | BJ68: 0 | BK68: 0 | BL68: 0 | BM68: 0 | BN68: 0 | BO68: =AQ65 -> 0 | BP68: =AR65 -> 0 | BQ68: =AS65 -> 0 | BR68: =AT65 -> 0 | BS68: =AU65 -> 0 | BT68: =AV65 -> 0 | BU68: =AW65 -> 0 | BV68: =AX65 -> 0 | BW68: =AY65 -> 0 | BX68: 0 | BY68: 0 | BZ68: 0 | CA68: =SUM(G$68:G$79) -> 0 | CB68: 0 | CC68: 0 | CD68: 0 | CE68: 0 | CF68: 0 | CG68: 0 | CH68: 0 | CI68: 0 | CJ68: =SUM(P$68:P$79) -> 0 | CK68: =SUM(Q$68:Q$79) -> 0 | CL68: =SUM(R$68:R$79) -> 0 | CM68: =SUM(S$68:S$79) -> 0 | CN68: 0 | CO68: 0 | CP68: 0 | CQ68: 0 | CR68: 0 | CS68: 0 | CT68: 0 | CU68: 0 | CV68: 0 | CW68: 0 | CX68: 0 | CY68: =CA56 -> 0 | CZ68: =CB56 -> 0 | DA68: =CC56 -> 0 | DB68: =CD56 -> 0 | DC68: =CE56 -> 0 | DD68: =CF56 -> 0 | DE68: =CG56 -> 0 | DF68: =CH56 -> 0 | DG68: =CI56 -> 0 | DH68: 0 | DI68: 0 | DJ68: 0
A69: Q1 | B69: Q1 2022-23 | C69: May | D69: 2022-23May | E69: 2022-23 | F69: May | AE69: 0 | AF69: 0 | AG69: 0 | AH69: 0 | AI69: 0 | AJ69: 0 | AK69: 0 | AL69: 0 | AM69: 0 | AN69: 0 | AO69: 0 | AP69: 0 | AQ69: 0 | AR69: 0 | AS69: 0 | AT69: 0 | AU69: 0 | AV69: 0 | AW69: 0 | AX69: 0 | AY69: 0 | AZ69: 0 | BA69: 0 | BB69: 0 | BC69: 0 | BD69: 0 | BE69: 0 | BF69: 0 | BG69: 0 | BH69: 0 | BI69: 0 | BJ69: 0 | BK69: 0 | BL69: 0 | BM69: 0 | BN69: 0 | BO69: 0 | BP69: 0 | BQ69: 0 | BR69: 0 | BS69: 0 | BT69: 0 | BU69: 0 | BV69: 0 | BW69: 0 | BX69: 0 | BY69: 0 | BZ69: 0 | CA69: =SUM(G$68:G$79) -> 0 | CB69: =SUM(H$68:H$79) -> 0 | CC69: =SUM(I$68:I$79) -> 0 | CD69: =SUM(J$68:J$79) -> 0 | CE69: =SUM(K$68:K$79) -> 0 | CF69: =SUM(L$68:L$79) -> 0 | CG69: =SUM(M$68:M$79) -> 0 | CH69: =SUM(N$68:N$79) -> 0 | CI69: =SUM(O$68:O$79) -> 0 | CJ69: 0 | CK69: 0 | CL69: 0 | CM69: =SUM(S$68:S$79) -> 0 | CN69: =SUM(T$68:T$79) -> 0 | CO69: =SUM(U$68:U$79) -> 0 | CP69: =SUM(V$68:V$79) -> 0 | CQ69: =SUM(W$68:W$79) -> 0 | CR69: =SUM(X$68:X$79) -> 0 | CS69: =SUM(Y$68:Y$79) -> 0 | CT69: =SUM(Z$68:Z$79) -> 0 | CU69: =SUM(AA$68:AA$79) -> 0 | CV69: =SUM(AB$68:AB$79) -> 0 | CW69: =SUM(AC$68:AC$79) -> 0 | CX69: =SUM(AD$68:AD$79) -> 0 | CY69: 0 | CZ69: 0 | DA69: 0 | DB69: 0 | DC69: 0 | DD69: 0 | DE69: 0 | DF69: 0 | DG69: 0 | DH69: 0 | DI69: 0 | DJ69: 0
A70: Q1 | B70: Q1 2022-23 | C70: Jun | D70: 2022-23June | E70: 2022-23 | F70: June | AE70: 0 | AF70: 0 | AG70: 0 | AH70: 0 | AI70: 0 | AJ70: 0 | AK70: 0 | AL70: 0 | AM70: 0 | AN70: 0 | AO70: 0 | AP70: 0 | AQ70: 0 | AR70: 0 | AS70: 0 | AT70: 0 | AU70: 0 | AV70: 0 | AW70: 0 | AX70: 0 | AY70: 0 | AZ70: 0 | BA70: 0 | BB70: 0 | BC70: 0 | BD70: 0 | BE70: 0 | BF70: 0 | BG70: 0 | BH70: 0 | BI70: 0 | BJ70: 0 | BK70: 0 | BL70: 0 | BM70: 0 | BN70: 0 | BO70: 0 | BP70: 0 | BQ70: 0 | BR70: 0 | BS70: 0 | BT70: 0 | BU70: 0 | BV70: 0 | BW70: 0 | BX70: 0 | BY70: 0 | BZ70: 0 | CA70: 0 | CB70: 0 | CC70: 0 | CD70: 0 | CE70: 0 | CF70: 0 | CG70: 0 | CH70: 0 | CI70: 0 | CJ70: 0 | CK70: 0 | CL70: 0 | CM70: 0 | CN70: 0 | CO70: 0 | CP70: 0 | CQ70: 0 | CR70: 0 | CS70: 0 | CT70: 0 | CU70: 0 | CV70: 0 | CW70: 0 | CX70: 0 | CY70: 0 | CZ70: 0 | DA70: 0 | DB70: 0 | DC70: 0 | DD70: 0 | DE70: 0 | DF70: 0 | DG70: 0 | DH70: 0 | DI70: 0 | DJ70: 0
A71: Q2 | B71: Q2 2022-23 | C71: Jul | D71: 2022-23July | E71: 2022-23 | F71: July | AE71: 0 | AF71: 0 | AG71: 0 | AH71: 0 | AI71: 0 | AJ71: 0 | AK71: 0 | AL71: 0 | AM71: 0 | AN71: 0 | AO71: 0 | AP71: 0 | AQ71: =SUM(G$71:G$73) -> 0 | AR71: 0 | AS71: 0 | AT71: 0 | AU71: 0 | AV71: 0 | AW71: 0 | AX71: 0 | AY71: 0 | AZ71: =SUM(P$71:P$73) -> 0 | BA71: =SUM(Q$71:Q$73) -> 0 | BB71: =SUM(R$71:R$73) -> 0 | BC71: =SUM(S$71:S$73) -> 0 | BD71: 0 | BE71: 0 | BF71: 0 | BG71: 0 | BH71: 0 | BI71: 0 | BJ71: 0 | BK71: 0 | BL71: 0 | BM71: 0 | BN71: 0 | BO71: 0 | BP71: 0 | BQ71: 0 | BR71: 0 | BS71: 0 | BT71: 0 | BU71: 0 | BV71: 0 | BW71: 0 | BX71: 0 | BY71: 0 | BZ71: 0 | CA71: 0 | CB71: 0 | CC71: 0 | CD71: 0 | CE71: 0 | CF71: 0 | CG71: 0 | CH71: 0 | CI71: 0 | CJ71: 0 | CK71: 0 | CL71: 0 | CM71: 0 | CN71: 0 | CO71: 0 | CP71: 0 | CQ71: 0 | CR71: 0 | CS71: 0 | CT71: 0 | CU71: 0 | CV71: 0 | CW71: 0 | CX71: 0 | CY71: 0 | CZ71: 0 | DA71: 0 | DB71: 0 | DC71: 0 | DD71: 0 | DE71: 0 | DF71: 0 | DG71: 0 | DH71: 0 | DI71: 0 | DJ71: 0
A72: Q2 | B72: Q2 2022-23 | C72: Aug | D72: 2022-23August | E72: 2022-23 | F72: August | AE72: 0 | AF72: 0 | AG72: 0 | AH72: 0 | AI72: 0 | AJ72: 0 | AK72: 0 | AL72: 0 | AM72: 0 | AN72: 0 | AO72: 0 | AP72: 0 | AQ72: 0 | AR72: 0 | AS72: 0 | AT72: 0 | AU72: 0 | AV72: 0 | AW72: 0 | AX72: 0 | AY72: 0 | AZ72: 0 | BA72: 0 | BB72: 0 | BC72: 0 | BD72: 0 | BE72: 0 | BF72: 0 | BG72: 0 | BH72: 0 | BI72: 0 | BJ72: 0 | BK72: 0 | BL72: 0 | BM72: 0 | BN72: 0 | BO72: 0 | BP72: 0 | BQ72: 0 | BR72: 0 | BS72: 0 | BT72: 0 | BU72: 0 | BV72: 0 | BW72: 0 | BX72: 0 | BY72: 0 | BZ72: 0 | CA72: 0 | CB72: 0 | CC72: 0 | CD72: 0 | CE72: 0 | CF72: 0 | CG72: 0 | CH72: 0 | CI72: 0 | CJ72: 0 | CK72: 0 | CL72: 0 | CM72: 0 | CN72: 0 | CO72: 0 | CP72: 0 | CQ72: 0 | CR72: 0 | CS72: 0 | CT72: 0 | CU72: 0 | CV72: 0 | CW72: 0 | CX72: 0 | CY72: 0 | CZ72: 0 | DA72: 0 | DB72: 0 | DC72: 0 | DD72: 0 | DE72: 0 | DF72: 0 | DG72: 0 | DH72: 0 | DI72: 0 | DJ72: 0
A73: Q2 | B73: =A73&" "&E73 -> Q2 2022-23 | C73: Sep | D73: =E73&F73 -> 2022-23September | E73: 2022-23 | F73: September | AE73: 0 | AF73: 0 | AG73: 0 | AH73: 0 | AI73: 0 | AJ73: 0 | AK73: 0 | AL73: 0 | AM73: =O72 -> 0 | AN73: =P72 -> 0 | AO73: 0 | AP73: 0 | AQ73: 0 | AR73: 0 | AS73: 0 | AT73: 0 | AU73: 0 | AV73: 0 | AW73: 0 | AX73: 0 | AY73: 0 | AZ73: 0 | BA73: 0 | BB73: 0 | BC73: 0 | BD73: 0 | BE73: 0 | BF73: 0 | BG73: 0 | BH73: 0 | BI73: 0 | BJ73: 0 | BK73: 0 | BL73: 0 | BM73: 0 | BN73: 0 | BO73: 0 | BP73: 0 | BQ73: 0 | BR73: 0 | BS73: 0 | BT73: 0 | BU73: 0 | BV73: 0 | BW73: 0 | BX73: 0 | BY73: 0 | BZ73: 0 | CA73: 0 | CB73: 0 | CC73: 0 | CD73: 0 | CE73: 0 | CF73: 0 | CG73: 0 | CH73: 0 | CI73: 0 | CJ73: 0 | CK73: 0 | CL73: 0 | CM73: 0 | CN73: 0 | CO73: 0 | CP73: 0 | CQ73: 0 | CR73: 0 | CS73: 0 | CT73: 0 | CU73: 0 | CV73: 0 | CW73: 0 | CX73: 0 | CY73: 0 | CZ73: 0 | DA73: 0 | DB73: 0 | DC73: 0 | DD73: 0 | DE73: 0 | DF73: 0 | DG73: 0 | DH73: 0 | DI73: 0 | DJ73: 0
A74: Q3 | B74: Q3 2022-23 | C74: Oct | D74: 2022-23October | E74: 2022-23 | F74: October | AE74: =G73 -> 0 | AF74: 0 | AG74: 0 | AH74: 0 | AI74: 0 | AJ74: 0 | AK74: 0 | AL74: 0 | AM74: 0 | AN74: 0 | AO74: 0 | AP74: 0 | AQ74: =SUM(G$74:G$76) -> 0 | AR74: 0 | AS74: 0 | AT74: 0 | AU74: 0 | AV74: 0 | AW74: 0 | AX74: 0 | AY74: 0 | AZ74: =SUM(P$74:P$76) -> 0 | BA74: =SUM(Q$74:Q$76) -> 0 | BB74: =SUM(R$74:R$76) -> 0 | BC74: =SUM(S$74:S$76) -> 0 | BD74: 0 | BE74: 0 | BF74: 0 | BG74: 0 | BH74: 0 | BI74: 0 | BJ74: 0 | BK74: 0 | BL74: 0 | BM74: 0 | BN74: 0 | BO74: 0 | BP74: 0 | BQ74: 0 | BR74: 0 | BS74: 0 | BT74: 0 | BU74: 0 | BV74: 0 | BW74: 0 | BX74: 0 | BY74: 0 | BZ74: 0 | CA74: 0 | CB74: 0 | CC74: 0 | CD74: 0 | CE74: 0 | CF74: 0 | CG74: 0 | CH74: 0 | CI74: 0 | CJ74: 0 | CK74: 0 | CL74: 0 | CM74: 0 | CN74: 0 | CO74: 0 | CP74: 0 | CQ74: 0 | CR74: 0 | CS74: 0 | CT74: 0 | CU74: 0 | CV74: 0 | CW74: 0 | CX74: 0 | CY74: 0 | CZ74: 0 | DA74: 0 | DB74: 0 | DC74: 0 | DD74: 0 | DE74: 0 | DF74: 0 | DG74: 0 | DH74: 0 | DI74: 0 | DJ74: 0
A75: Q3 | B75: Q3 2022-23 | C75: Nov | D75: 2022-23November | E75: 2022-23 | F75: November | AE75: 0 | AF75: 0 | AG75: 0 | AH75: 0 | AI75: 0 | AJ75: 0 | AK75: 0 | AL75: 0 | AM75: 0 | AN75: 0 | AO75: 0 | AP75: 0 | AQ75: 0 | AR75: 0 | AS75: 0 | AT75: 0 | AU75: 0 | AV75: 0 | AW75: 0 | AX75: 0 | AY75: 0 | AZ75: 0 | BA75: 0 | BB75: 0 | BC75: 0 | BD75: 0 | BE75: 0 | BF75: 0 | BG75: 0 | BH75: 0 | BI75: 0 | BJ75: 0 | BK75: 0 | BL75: 0 | BM75: 0 | BN75: 0 | BO75: 0 | BP75: 0 | BQ75: 0 | BR75: 0 | BS75: 0 | BT75: 0 | BU75: 0 | BV75: 0 | BW75: 0 | BX75: 0 | BY75: 0 | BZ75: 0 | CA75: 0 | CB75: 0 | CC75: 0 | CD75: 0 | CE75: 0 | CF75: 0 | CG75: 0 | CH75: 0 | CI75: 0 | CJ75: 0 | CK75: 0 | CL75: 0 | CM75: 0 | CN75: 0 | CO75: 0 | CP75: 0 | CQ75: 0 | CR75: 0 | CS75: 0 | CT75: 0 | CU75: 0 | CV75: 0 | CW75: 0 | CX75: 0 | CY75: 0 | CZ75: 0 | DA75: 0 | DB75: 0 | DC75: 0 | DD75: 0 | DE75: 0 | DF75: 0 | DG75: 0 | DH75: 0 | DI75: 0 | DJ75: 0
A76: Q3 | B76: Q3 2022-23 | C76: Dec | D76: 2022-23December | E76: 2022-23 | F76: December | AE76: 0 | AF76: 0 | AG76: 0 | AH76: 0 | AI76: 0 | AJ76: 0 | AK76: 0 | AL76: 0 | AM76: 0 | AN76: 0 | AO76: 0 | AP76: 0 | AQ76: 0 | AR76: 0 | AS76: 0 | AT76: 0 | AU76: 0 | AV76: 0 | AW76: 0 | AX76: 0 | AY76: 0 | AZ76: 0 | BA76: 0 | BB76: 0 | BC76: 0 | BD76: 0 | BE76: 0 | BF76: 0 | BG76: 0 | BH76: 0 | BI76: 0 | BJ76: 0 | BK76: 0 | BL76: 0 | BM76: 0 | BN76: 0 | BO76: 0 | BP76: 0 | BQ76: 0 | BR76: 0 | BS76: 0 | BT76: 0 | BU76: 0 | BV76: 0 | BW76: 0 | BX76: 0 | BY76: 0 | BZ76: 0 | CA76: 0 | CB76: 0 | CC76: 0 | CD76: 0 | CE76: 0 | CF76: 0 | CG76: 0 | CH76: 0 | CI76: 0 | CJ76: 0 | CK76: 0 | CL76: 0 | CM76: 0 | CN76: 0 | CO76: 0 | CP76: 0 | CQ76: 0 | CR76: 0 | CS76: 0 | CT76: 0 | CU76: 0 | CV76: 0 | CW76: 0 | CX76: 0 | CY76: 0 | CZ76: 0 | DA76: 0 | DB76: 0 | DC76: 0 | DD76: 0 | DE76: 0 | DF76: 0 | DG76: 0 | DH76: 0 | DI76: 0 | DJ76: 0
A77: Q4 | B77: Q4 2022-23 | C77: Jan | D77: 2022-23January | E77: 2022-23 | F77: January | AE77: 0 | AF77: 0 | AG77: 0 | AH77: 0 | AI77: 0 | AJ77: 0 | AK77: 0 | AL77: 0 | AM77: 0 | AN77: 0 | AO77: 0 | AP77: 0 | AQ77: =SUM(G$77:G$79) -> 0 | AR77: 0 | AS77: 0 | AT77: 0 | AU77: 0 | AV77: 0 | AW77: 0 | AX77: 0 | AY77: 0 | AZ77: =SUM(P$77:P$79) -> 0 | BA77: =SUM(Q$77:Q$79) -> 0 | BB77: =SUM(R$77:R$79) -> 0 | BC77: =SUM(S$77:S$79) -> 0 | BD77: 0 | BE77: 0 | BF77: 0 | BG77: 0 | BH77: 0 | BI77: 0 | BJ77: 0 | BK77: 0 | BL77: 0 | BM77: 0 | BN77: 0 | BO77: 0 | BP77: 0 | BQ77: 0 | BR77: 0 | BS77: 0 | BT77: 0 | BU77: 0 | BV77: 0 | BW77: 0 | BX77: 0 | BY77: 0 | BZ77: 0 | CA77: 0 | CB77: 0 | CC77: 0 | CD77: 0 | CE77: 0 | CF77: 0 | CG77: 0 | CH77: 0 | CI77: 0 | CJ77: 0 | CK77: 0 | CL77: 0 | CM77: 0 | CN77: 0 | CO77: 0 | CP77: 0 | CQ77: 0 | CR77: 0 | CS77: 0 | CT77: 0 | CU77: 0 | CV77: 0 | CW77: 0 | CX77: 0 | CY77: 0 | CZ77: 0 | DA77: 0 | DB77: 0 | DC77: 0 | DD77: 0 | DE77: 0 | DF77: 0 | DG77: 0 | DH77: 0 | DI77: 0 | DJ77: 0
A78: Q4 | B78: Q4 2022-23 | C78: Feb | D78: 2022-23February | E78: 2022-23 | F78: February | AE78: 0 | AF78: 0 | AG78: 0 | AH78: 0 | AI78: 0 | AJ78: 0 | AK78: 0 | AL78: 0 | AM78: 0 | AN78: 0 | AO78: 0 | AP78: 0 | AQ78: 0 | AR78: 0 | AS78: 0 | AT78: 0 | AU78: 0 | AV78: 0 | AW78: 0 | AX78: 0 | AY78: 0 | AZ78: 0 | BA78: 0 | BB78: 0 | BC78: 0 | BD78: 0 | BE78: 0 | BF78: 0 | BG78: 0 | BH78: 0 | BI78: 0 | BJ78: 0 | BK78: 0 | BL78: 0 | BM78: 0 | BN78: 0 | BO78: 0 | BP78: 0 | BQ78: 0 | BR78: 0 | BS78: 0 | BT78: 0 | BU78: 0 | BV78: 0 | BW78: 0 | BX78: 0 | BY78: 0 | BZ78: 0 | CA78: 0 | CB78: 0 | CC78: 0 | CD78: 0 | CE78: 0 | CF78: 0 | CG78: 0 | CH78: 0 | CI78: 0 | CJ78: 0 | CK78: 0 | CL78: 0 | CM78: 0 | CN78: 0 | CO78: 0 | CP78: 0 | CQ78: 0 | CR78: 0 | CS78: 0 | CT78: 0 | CU78: 0 | CV78: 0 | CW78: 0 | CX78: 0 | CY78: 0 | CZ78: 0 | DA78: 0 | DB78: 0 | DC78: 0 | DD78: 0 | DE78: 0 | DF78: 0 | DG78: 0 | DH78: 0 | DI78: 0 | DJ78: 0
A79: Q4 | B79: Q4 2022-23 | C79: Mar | D79: 2022-23March | E79: 2022-23 | F79: March | AE79: 0 | AF79: 0 | AG79: 0 | AH79: 0 | AI79: 0 | AJ79: 0 | AK79: 0 | AL79: 0 | AM79: 0 | AN79: 0 | AO79: 0 | AP79: 0 | AQ79: 0 | AR79: 0 | AS79: 0 | AT79: 0 | AU79: 0 | AV79: 0 | AW79: 0 | AX79: 0 | AY79: 0 | AZ79: 0 | BA79: 0 | BB79: 0 | BC79: 0 | BD79: 0 | BE79: 0 | BF79: 0 | BG79: 0 | BH79: 0 | BI79: 0 | BJ79: 0 | BK79: 0 | BL79: 0 | BM79: 0 | BN79: 0 | BO79: 0 | BP79: 0 | BQ79: 0 | BR79: 0 | BS79: 0 | BT79: 0 | BU79: 0 | BV79: 0 | BW79: 0 | BX79: 0 | BY79: 0 | BZ79: 0 | CA79: =SUM(G$68:G$79) -> 0 | CB79: 0 | CC79: 0 | CD79: 0 | CE79: 0 | CF79: 0 | CG79: 0 | CH79: 0 | CI79: 0 | CJ79: 0 | CK79: 0 | CL79: 0 | CM79: 0 | CN79: 0 | CO79: 0 | CP79: 0 | CQ79: 0 | CR79: 0 | CS79: =SUM(Y$68:Y$79) -> 0 | CT79: 0 | CU79: 0 | CV79: 0 | CW79: 0 | CX79: 0 | CY79: 0 | CZ79: 0 | DA79: 0 | DB79: 0 | DC79: 0 | DD79: 0 | DE79: 0 | DF79: 0 | DG79: 0 | DH79: 0 | DI79: 0 | DJ79: 0
A80: Q1 | B80: Q1 2023-24 | C80: Apr, 21-22 | D80: 2023-24April | E80: 2023-24 | F80: April | AE80: 0 | AF80: 0 | AG80: 0 | AH80: 0 | AI80: 0 | AJ80: 0 | AK80: 0 | AL80: 0 | AM80: 0 | AN80: 0 | AO80: 0 | AP80: 0 | AQ80: =SUM(G$80:G$82) -> 0 | AR80: 0 | AS80: 0 | AT80: 0 | AU80: 0 | AV80: 0 | AW80: 0 | AX80: 0 | AY80: 0 | AZ80: =SUM(P$80:P$82) -> 0 | BA80: =SUM(Q$80:Q$82) -> 0 | BB80: =SUM(R$80:R$82) -> 0 | BC80: =SUM(S$80:S$82) -> 0 | BD80: 0 | BE80: 0 | BF80: 0 | BG80: 0 | BH80: 0 | BI80: 0 | BJ80: 0 | BK80: 0 | BL80: 0 | BM80: 0 | BN80: 0 | BO80: 0 | BP80: 0 | BQ80: 0 | BR80: 0 | BS80: 0 | BT80: 0 | BU80: 0 | BV80: 0 | BW80: 0 | BX80: 0 | BY80: 0 | BZ80: 0 | CA80: =SUM(G$80:G$91) -> 0 | CB80: 0 | CC80: 0 | CD80: 0 | CE80: 0 | CF80: 0 | CG80: 0 | CH80: 0 | CI80: 0 | CJ80: =SUM(P$80:P$91) -> 0 | CK80: =SUM(Q$80:Q$91) -> 0 | CL80: =SUM(R$80:R$91) -> 0 | CM80: =SUM(S$80:S$91) -> 0 | CN80: 0 | CO80: 0 | CP80: 0 | CQ80: 0 | CR80: 0 | CS80: =SUM(Y$80:Y$91) -> 0 | CT80: =SUM(Z$80:Z$91) -> 0 | CU80: =SUM(AA$80:AA$91) -> 0 | CV80: =SUM(AB$80:AB$91) -> 0 | CW80: =SUM(AC$80:AC$91) -> 0 | CX80: =SUM(AD$80:AD$91) -> 0 | CY80: 0 | CZ80: 0 | DA80: 0 | DB80: 0 | DC80: 0 | DD80: 0 | DE80: 0 | DF80: 0 | DG80: 0 | DH80: 0 | DI80: 0 | DJ80: 0
A81: Q1 | B81: Q1 2023-24 | C81: May | D81: 2023-24May | E81: 2023-24 | F81: May | AE81: 0 | AF81: 0 | AG81: 0 | AH81: 0 | AI81: 0 | AJ81: 0 | AK81: 0 | AL81: 0 | AM81: 0 | AN81: 0 | AO81: 0 | AP81: 0 | AQ81: 0 | AR81: 0 | AS81: 0 | AT81: 0 | AU81: 0 | AV81: 0 | AW81: 0 | AX81: 0 | AY81: 0 | AZ81: 0 | BA81: 0 | BB81: 0 | BC81: 0 | BD81: 0 | BE81: 0 | BF81: 0 | BG81: 0 | BH81: 0 | BI81: 0 | BJ81: 0 | BK81: 0 | BL81: 0 | BM81: 0 | BN81: 0 | BO81: 0 | BP81: 0 | BQ81: 0 | BR81: 0 | BS81: 0 | BT81: 0 | BU81: 0 | BV81: 0 | BW81: 0 | BX81: 0 | BY81: 0 | BZ81: 0 | CA81: =SUM(G$80:G$91) -> 0 | CB81: =SUM(H$80:H$91) -> 0 | CC81: =SUM(I$80:I$91) -> 0 | CD81: =SUM(J$80:J$91) -> 0 | CE81: =SUM(K$80:K$91) -> 0 | CF81: =SUM(L$80:L$91) -> 0 | CG81: =SUM(M$80:M$91) -> 0 | CH81: =SUM(N$80:N$91) -> 0 | CI81: =SUM(O$80:O$91) -> 0 | CJ81: 0 | CK81: 0 | CL81: 0 | CM81: 0 | CN81: 0 | CO81: 0 | CP81: 0 | CQ81: 0 | CR81: 0 | CS81: =SUM(Y$80:Y$91) -> 0 | CT81: 0 | CU81: 0 | CV81: 0 | CW81: 0 | CX81: 0 | CY81: 0 | CZ81: 0 | DA81: 0 | DB81: 0 | DC81: 0 | DD81: 0 | DE81: 0 | DF81: 0 | DG81: 0 | DH81: 0 | DI81: 0 | DJ81: 0
A82: Q1 | B82: Q1 2023-24 | C82: Jun | D82: 2023-24June | E82: 2023-24 | F82: June | AE82: 0 | AF82: 0 | AG82: 0 | AH82: 0 | AI82: 0 | AJ82: 0 | AK82: 0 | AL82: 0 | AM82: 0 | AN82: 0 | AO82: 0 | AP82: 0 | AQ82: 0 | AR82: 0 | AS82: 0 | AT82: 0 | AU82: 0 | AV82: 0 | AW82: 0 | AX82: 0 | AY82: 0 | AZ82: 0 | BA82: 0 | BB82: 0 | BC82: 0 | BD82: 0 | BE82: 0 | BF82: 0 | BG82: 0 | BH82: 0 | BI82: 0 | BJ82: 0 | BK82: 0 | BL82: 0 | BM82: 0 | BN82: 0 | BO82: 0 | BP82: 0 | BQ82: 0 | BR82: 0 | BS82: 0 | BT82: 0 | BU82: 0 | BV82: 0 | BW82: 0 | BX82: 0 | BY82: 0 | BZ82: 0 | CA82: 0 | CB82: 0 | CC82: 0 | CD82: 0 | CE82: 0 | CF82: 0 | CG82: 0 | CH82: 0 | CI82: 0 | CJ82: 0 | CK82: 0 | CL82: 0 | CM82: 0 | CN82: 0 | CO82: 0 | CP82: 0 | CQ82: 0 | CR82: 0 | CS82: 0 | CT82: 0 | CU82: 0 | CV82: 0 | CW82: 0 | CX82: 0 | CY82: 0 | CZ82: 0 | DA82: 0 | DB82: 0 | DC82: 0 | DD82: 0 | DE82: 0 | DF82: 0 | DG82: 0 | DH82: 0 | DI82: 0 | DJ82: 0
A83: Q2 | B83: Q2 2023-24 | C83: Jul | D83: 2023-24July | E83: 2023-24 | F83: July | AE83: 0 | AF83: 0 | AG83: 0 | AH83: 0 | AI83: 0 | AJ83: 0 | AK83: 0 | AL83: 0 | AM83: 0 | AN83: 0 | AO83: 0 | AP83: 0 | AQ83: =SUM(G$83:G$85) -> 0 | AR83: 0 | AS83: 0 | AT83: 0 | AU83: 0 | AV83: 0 | AW83: 0 | AX83: 0 | AY83: 0 | AZ83: =SUM(P$83:P$85) -> 0 | BA83: =SUM(Q$83:Q$85) -> 0 | BB83: =SUM(R$83:R$85) -> 0 | BC83: =SUM(S$83:S$85) -> 0 | BD83: 0 | BE83: 0 | BF83: 0 | BG83: 0 | BH83: 0 | BI83: 0 | BJ83: 0 | BK83: 0 | BL83: 0 | BM83: 0 | BN83: 0 | BO83: 0 | BP83: 0 | BQ83: 0 | BR83: 0 | BS83: 0 | BT83: 0 | BU83: 0 | BV83: 0 | BW83: 0 | BX83: 0 | BY83: 0 | BZ83: 0 | CA83: 0 | CB83: 0 | CC83: 0 | CD83: 0 | CE83: 0 | CF83: 0 | CG83: 0 | CH83: 0 | CI83: 0 | CJ83: 0 | CK83: 0 | CL83: 0 | CM83: 0 | CN83: 0 | CO83: 0 | CP83: 0 | CQ83: 0 | CR83: 0 | CS83: 0 | CT83: 0 | CU83: 0 | CV83: 0 | CW83: 0 | CX83: 0 | CY83: 0 | CZ83: 0 | DA83: 0 | DB83: 0 | DC83: 0 | DD83: 0 | DE83: 0 | DF83: 0 | DG83: 0 | DH83: 0 | DI83: 0 | DJ83: 0
A84: Q2 | B84: Q2 2023-24 | C84: Aug | D84: 2023-24August | E84: 2023-24 | F84: August | AE84: 0 | AF84: 0 | AG84: 0 | AH84: 0 | AI84: 0 | AJ84: 0 | AK84: 0 | AL84: 0 | AM84: 0 | AN84: 0 | AO84: 0 | AP84: 0 | AQ84: 0 | AR84: 0 | AS84: 0 | AT84: 0 | AU84: 0 | AV84: 0 | AW84: 0 | AX84: 0 | AY84: 0 | AZ84: 0 | BA84: 0 | BB84: 0 | BC84: 0 | BD84: 0 | BE84: 0 | BF84: 0 | BG84: 0 | BH84: 0 | BI84: 0 | BJ84: 0 | BK84: 0 | BL84: 0 | BM84: 0 | BN84: 0 | BO84: 0 | BP84: 0 | BQ84: 0 | BR84: 0 | BS84: 0 | BT84: 0 | BU84: 0 | BV84: 0 | BW84: 0 | BX84: 0 | BY84: 0 | BZ84: 0 | CA84: 0 | CB84: 0 | CC84: 0 | CD84: 0 | CE84: 0 | CF84: 0 | CG84: 0 | CH84: 0 | CI84: 0 | CJ84: 0 | CK84: 0 | CL84: 0 | CM84: 0 | CN84: 0 | CO84: 0 | CP84: 0 | CQ84: 0 | CR84: 0 | CS84: 0 | CT84: 0 | CU84: 0 | CV84: 0 | CW84: 0 | CX84: 0 | CY84: 0 | CZ84: 0 | DA84: 0 | DB84: 0 | DC84: 0 | DD84: 0 | DE84: 0 | DF84: 0 | DG84: 0 | DH84: =CJ72 -> 0 | DI84: =CK72 -> 0 | DJ84: =CL72 -> 0
A85: Q2 | B85: Q2 2023-24 | C85: Sep | D85: 2023-24September | E85: 2023-24 | F85: September | AE85: 0 | AF85: 0 | AG85: 0 | AH85: 0 | AI85: 0 | AJ85: 0 | AK85: 0 | AL85: 0 | AM85: 0 | AN85: 0 | AO85: 0 | AP85: 0 | AQ85: 0 | AR85: 0 | AS85: 0 | AT85: 0 | AU85: 0 | AV85: 0 | AW85: 0 | AX85: 0 | AY85: 0 | AZ85: 0 | BA85: 0 | BB85: 0 | BC85: 0 | BD85: 0 | BE85: 0 | BF85: 0 | BG85: 0 | BH85: 0 | BI85: 0 | BJ85: 0 | BK85: 0 | BL85: 0 | BM85: 0 | BN85: 0 | BO85: 0 | BP85: 0 | BQ85: 0 | BR85: 0 | BS85: 0 | BT85: 0 | BU85: 0 | BV85: 0 | BW85: 0 | BX85: 0 | BY85: 0 | BZ85: 0 | CA85: 0 | CB85: 0 | CC85: 0 | CD85: 0 | CE85: 0 | CF85: 0 | CG85: 0 | CH85: 0 | CI85: 0 | CJ85: 0 | CK85: 0 | CL85: 0 | CM85: 0 | CN85: 0 | CO85: 0 | CP85: 0 | CQ85: 0 | CR85: 0 | CS85: 0 | CT85: 0 | CU85: 0 | CV85: 0 | CW85: 0 | CX85: 0 | CY85: 0 | CZ85: 0 | DA85: 0 | DB85: 0 | DC85: 0 | DD85: 0 | DE85: 0 | DF85: 0 | DG85: 0 | DH85: 0 | DI85: 0 | DJ85: 0
A86: Q3 | B86: Q3 2023-24 | C86: Oct | D86: 2023-24October | E86: 2023-24 | F86: October | AE86: 0 | AF86: 0 | AG86: 0 | AH86: 0 | AI86: 0 | AJ86: 0 | AK86: 0 | AL86: 0 | AM86: 0 | AN86: 0 | AO86: 0 | AP86: 0 | AQ86: =SUM(G$86:G$88) -> 0 | AR86: 0 | AS86: 0 | AT86: 0 | AU86: 0 | AV86: 0 | AW86: 0 | AX86: 0 | AY86: 0 | AZ86: =SUM(P$86:P$88) -> 0 | BA86: =SUM(Q$86:Q$88) -> 0 | BB86: =SUM(R$86:R$88) -> 0 | BC86: =SUM(S$86:S$88) -> 0 | BD86: 0 | BE86: 0 | BF86: 0 | BG86: 0 | BH86: 0 | BI86: 0 | BJ86: 0 | BK86: 0 | BL86: 0 | BM86: 0 | BN86: 0 | BO86: 0 | BP86: 0 | BQ86: 0 | BR86: 0 | BS86: 0 | BT86: 0 | BU86: 0 | BV86: 0 | BW86: 0 | BX86: 0 | BY86: 0 | BZ86: 0 | CA86: 0 | CB86: 0 | CC86: 0 | CD86: 0 | CE86: 0 | CF86: 0 | CG86: 0 | CH86: 0 | CI86: 0 | CJ86: 0 | CK86: 0 | CL86: 0 | CM86: 0 | CN86: 0 | CO86: 0 | CP86: 0 | CQ86: 0 | CR86: 0 | CS86: 0 | CT86: 0 | CU86: 0 | CV86: 0 | CW86: 0 | CX86: 0 | CY86: 0 | CZ86: 0 | DA86: 0 | DB86: 0 | DC86: 0 | DD86: 0 | DE86: 0 | DF86: 0 | DG86: 0 | DH86: 0 | DI86: 0 | DJ86: 0
A87: Q3 | B87: Q3 2023-24 | C87: Nov | D87: 2023-24November | E87: 2023-24 | F87: November | AE87: 0 | AF87: 0 | AG87: 0 | AH87: 0 | AI87: 0 | AJ87: 0 | AK87: 0 | AL87: 0 | AM87: 0 | AN87: 0 | AO87: 0 | AP87: 0 | AQ87: 0 | AR87: 0 | AS87: 0 | AT87: 0 | AU87: 0 | AV87: 0 | AW87: 0 | AX87: 0 | AY87: 0 | AZ87: 0 | BA87: 0 | BB87: 0 | BC87: 0 | BD87: 0 | BE87: 0 | BF87: 0 | BG87: 0 | BH87: 0 | BI87: 0 | BJ87: 0 | BK87: 0 | BL87: 0 | BM87: 0 | BN87: 0 | BO87: 0 | BP87: 0 | BQ87: 0 | BR87: 0 | BS87: 0 | BT87: 0 | BU87: 0 | BV87: 0 | BW87: 0 | BX87: 0 | BY87: 0 | BZ87: 0 | CA87: 0 | CB87: 0 | CC87: 0 | CD87: 0 | CE87: 0 | CF87: 0 | CG87: 0 | CH87: 0 | CI87: 0 | CJ87: 0 | CK87: 0 | CL87: 0 | CM87: 0 | CN87: 0 | CO87: 0 | CP87: 0 | CQ87: 0 | CR87: 0 | CS87: 0 | CT87: 0 | CU87: 0 | CV87: 0 | CW87: 0 | CX87: 0 | CY87: 0 | CZ87: 0 | DA87: 0 | DB87: 0 | DC87: 0 | DD87: 0 | DE87: 0 | DF87: 0 | DG87: 0 | DH87: 0 | DI87: 0 | DJ87: 0
A88: Q3 | B88: Q3 2023-24 | C88: Dec | D88: 2023-24December | E88: 2023-24 | F88: December | AE88: 0 | AF88: 0 | AG88: 0 | AH88: 0 | AI88: 0 | AJ88: 0 | AK88: 0 | AL88: 0 | AM88: 0 | AN88: 0 | AO88: 0 | AP88: 0 | AQ88: 0 | AR88: 0 | AS88: 0 | AT88: 0 | AU88: 0 | AV88: 0 | AW88: 0 | AX88: 0 | AY88: 0 | AZ88: 0 | BA88: 0 | BB88: 0 | BC88: 0 | BD88: 0 | BE88: 0 | BF88: 0 | BG88: 0 | BH88: 0 | BI88: 0 | BJ88: 0 | BK88: 0 | BL88: 0 | BM88: 0 | BN88: 0 | BO88: 0 | BP88: 0 | BQ88: 0 | BR88: 0 | BS88: 0 | BT88: 0 | BU88: 0 | BV88: 0 | BW88: 0 | BX88: 0 | BY88: 0 | BZ88: 0 | CA88: 0 | CB88: 0 | CC88: 0 | CD88: 0 | CE88: 0 | CF88: 0 | CG88: 0 | CH88: 0 | CI88: 0 | CJ88: 0 | CK88: 0 | CL88: 0 | CM88: 0 | CN88: 0 | CO88: 0 | CP88: 0 | CQ88: 0 | CR88: 0 | CS88: 0 | CT88: 0 | CU88: 0 | CV88: 0 | CW88: 0 | CX88: 0 | CY88: 0 | CZ88: 0 | DA88: 0 | DB88: 0 | DC88: 0 | DD88: 0 | DE88: 0 | DF88: 0 | DG88: 0 | DH88: 0 | DI88: 0 | DJ88: 0
A89: Q4 | B89: Q4 2023-24 | C89: Jan | D89: 2023-24January | E89: 2023-24 | F89: January | AE89: 0 | AF89: 0 | AG89: 0 | AH89: 0 | AI89: 0 | AJ89: 0 | AK89: 0 | AL89: 0 | AM89: 0 | AN89: =P88 -> 0 | AO89: 0 | AP89: 0 | AQ89: =SUM(G$89:G$91) -> 0 | AR89: 0 | AS89: 0 | AT89: 0 | AU89: 0 | AV89: 0 | AW89: 0 | AX89: 0 | AY89: 0 | AZ89: =SUM(P$89:P$91) -> 0 | BA89: =SUM(Q$89:Q$91) -> 0 | BB89: =SUM(R$89:R$91) -> 0 | BC89: =SUM(S$89:S$91) -> 0 | BD89: 0 | BE89: 0 | BF89: 0 | BG89: 0 | BH89: 0 | BI89: 0 | BJ89: 0 | BK89: 0 | BL89: 0 | BM89: 0 | BN89: 0 | BO89: 0 | BP89: 0 | BQ89: 0 | BR89: 0 | BS89: 0 | BT89: 0 | BU89: 0 | BV89: 0 | BW89: 0 | BX89: 0 | BY89: 0 | BZ89: 0 | CA89: 0 | CB89: 0 | CC89: 0 | CD89: 0 | CE89: 0 | CF89: 0 | CG89: 0 | CH89: 0 | CI89: 0 | CJ89: 0 | CK89: 0 | CL89: 0 | CM89: 0 | CN89: 0 | CO89: 0 | CP89: 0 | CQ89: 0 | CR89: 0 | CS89: 0 | CT89: 0 | CU89: 0 | CV89: 0 | CW89: 0 | CX89: 0 | CY89: 0 | CZ89: 0 | DA89: 0 | DB89: 0 | DC89: 0 | DD89: 0 | DE89: 0 | DF89: 0 | DG89: 0 | DH89: 0 | DI89: 0 | DJ89: 0
A90: Q4 | B90: Q4 2023-24 | C90: Feb | D90: 2023-24February | E90: 2023-24 | F90: February | AE90: 0 | AF90: 0 | AG90: 0 | AH90: 0 | AI90: 0 | AJ90: 0 | AK90: 0 | AL90: 0 | AM90: 0 | AN90: 0 | AO90: 0 | AP90: 0 | AQ90: 0 | AR90: 0 | AS90: 0 | AT90: 0 | AU90: 0 | AV90: 0 | AW90: 0 | AX90: 0 | AY90: 0 | AZ90: 0 | BA90: 0 | BB90: 0 | BC90: 0 | BD90: 0 | BE90: 0 | BF90: 0 | BG90: 0 | BH90: 0 | BI90: 0 | BJ90: 0 | BK90: 0 | BL90: 0 | BM90: 0 | BN90: 0 | BO90: 0 | BP90: 0 | BQ90: 0 | BR90: 0 | BS90: 0 | BT90: 0 | BU90: 0 | BV90: 0 | BW90: 0 | BX90: 0 | BY90: 0 | BZ90: 0 | CA90: 0 | CB90: 0 | CC90: 0 | CD90: 0 | CE90: 0 | CF90: 0 | CG90: 0 | CH90: 0 | CI90: 0 | CJ90: 0 | CK90: 0 | CL90: 0 | CM90: 0 | CN90: 0 | CO90: 0 | CP90: 0 | CQ90: 0 | CR90: 0 | CS90: 0 | CT90: 0 | CU90: 0 | CV90: 0 | CW90: 0 | CX90: 0 | CY90: 0 | CZ90: 0 | DA90: 0 | DB90: 0 | DC90: 0 | DD90: 0 | DE90: 0 | DF90: 0 | DG90: 0 | DH90: 0 | DI90: 0 | DJ90: 0
A91: Q4 | B91: Q4 2023-24 | C91: Mar | D91: 2023-24March | E91: 2023-24 | F91: March | AE91: 0 | AF91: 0 | AG91: 0 | AH91: 0 | AI91: 0 | AJ91: 0 | AK91: 0 | AL91: 0 | AM91: 0 | AN91: 0 | AO91: 0 | AP91: 0 | AQ91: 0 | AR91: 0 | AS91: 0 | AT91: 0 | AU91: 0 | AV91: 0 | AW91: 0 | AX91: 0 | AY91: 0 | AZ91: 0 | BA91: 0 | BB91: 0 | BC91: 0 | BD91: 0 | BE91: 0 | BF91: 0 | BG91: 0 | BH91: 0 | BI91: 0 | BJ91: 0 | BK91: 0 | BL91: 0 | BM91: 0 | BN91: 0 | BO91: 0 | BP91: 0 | BQ91: 0 | BR91: 0 | BS91: 0 | BT91: 0 | BU91: 0 | BV91: 0 | BW91: 0 | BX91: =AZ88 -> 0 | BY91: =BA88 -> 0 | BZ91: =BB88 -> 0 | CA91: 0 | CB91: 0 | CC91: 0 | CD91: 0 | CE91: 0 | CF91: 0 | CG91: 0 | CH91: 0 | CI91: 0 | CJ91: 0 | CK91: 0 | CL91: 0 | CM91: 0 | CN91: 0 | CO91: 0 | CP91: 0 | CQ91: 0 | CR91: 0 | CS91: 0 | CT91: 0 | CU91: 0 | CV91: 0 | CW91: 0 | CX91: 0 | CY91: 0 | CZ91: 0 | DA91: 0 | DB91: 0 | DC91: 0 | DD91: 0 | DE91: 0 | DF91: 0 | DG91: 0 | DH91: 0 | DI91: 0 | DJ91: 0
A92: Q1 | B92: Q1 2024-25 | C92: Apr, 21-22 | D92: =E92&F92 -> 2024-25April | E92: 2024-25 | F92: April | AE92: 0 | AF92: 0 | AG92: 0 | AH92: 0 | AI92: 0 | AJ92: 0 | AK92: 0 | AL92: 0 | AM92: 0 | AN92: 0 | AO92: 0 | AP92: 0 | AQ92: =SUM(G$92:G$94) -> 0 | AR92: 0 | AS92: 0 | AT92: 0 | AU92: 0 | AV92: 0 | AW92: 0 | AX92: 0 | AY92: 0 | AZ92: =SUM(P$92:P$94) -> 0 | BA92: =SUM(Q$92:Q$94) -> 0 | BB92: =SUM(R$92:R$94) -> 0 | BC92: =SUM(S$92:S$94) -> 0 | BD92: 0 | BE92: 0 | BF92: 0 | BG92: 0 | BH92: 0 | BI92: 0 | BJ92: 0 | BK92: 0 | BL92: 0 | BM92: 0 | BN92: 0 | BO92: 0 | BP92: 0 | BQ92: 0 | BR92: 0 | BS92: 0 | BT92: 0 | BU92: 0 | BV92: 0 | BW92: 0 | BX92: 0 | BY92: 0 | BZ92: 0 | CA92: =SUM(G$92:G$103) -> 0 | CB92: 0 | CC92: 0 | CD92: 0 | CE92: 0 | CF92: 0 | CG92: 0 | CH92: 0 | CI92: 0 | CJ92: =SUM(P$92:P$103) -> 0 | CK92: =SUM(Q$92:Q$103) -> 0 | CL92: =SUM(R$92:R$103) -> 0 | CM92: =SUM(S$92:S$103) -> 0 | CN92: 0 | CO92: 0 | CP92: 0 | CQ92: 0 | CR92: 0 | CS92: =SUM(Y$92:Y$103) -> 0 | CT92: =SUM(Z$92:Z$103) -> 0 | CU92: =SUM(AA$92:AA$103) -> 0 | CV92: =SUM(AB$92:AB$103) -> 0 | CW92: =SUM(AC$92:AC$103) -> 0 | CX92: =SUM(AD$92:AD$103) -> 0 | CY92: 0 | CZ92: 0 | DA92: 0 | DB92: 0 | DC92: 0 | DD92: 0 | DE92: 0 | DF92: 0 | DG92: 0 | DH92: 0 | DI92: 0 | DJ92: 0
A93: Q1 | B93: Q1 2024-25 | C93: May | D93: 2024-25May | E93: 2024-25 | F93: May | AE93: 0 | AF93: 0 | AG93: 0 | AH93: 0 | AI93: 0 | AJ93: 0 | AK93: 0 | AL93: 0 | AM93: 0 | AN93: 0 | AO93: 0 | AP93: 0 | AQ93: 0 | AR93: 0 | AS93: 0 | AT93: 0 | AU93: 0 | AV93: 0 | AW93: 0 | AX93: 0 | AY93: 0 | AZ93: 0 | BA93: 0 | BB93: 0 | BC93: 0 | BD93: 0 | BE93: 0 | BF93: 0 | BG93: 0 | BH93: 0 | BI93: 0 | BJ93: 0 | BK93: 0 | BL93: 0 | BM93: 0 | BN93: 0 | BO93: 0 | BP93: 0 | BQ93: 0 | BR93: 0 | BS93: 0 | BT93: 0 | BU93: 0 | BV93: 0 | BW93: 0 | BX93: 0 | BY93: 0 | BZ93: 0 | CA93: =SUM(G$92:G$103) -> 0 | CB93: =SUM(H$92:H$103) -> 0 | CC93: =SUM(I$92:I$103) -> 0 | CD93: =SUM(J$92:J$103) -> 0 | CE93: =SUM(K$92:K$103) -> 0 | CF93: =SUM(L$92:L$103) -> 0 | CG93: =SUM(M$92:M$103) -> 0 | CH93: =SUM(N$92:N$103) -> 0 | CI93: =SUM(O$92:O$103) -> 0 | CJ93: 0 | CK93: 0 | CL93: 0 | CM93: 0 | CN93: 0 | CO93: 0 | CP93: 0 | CQ93: 0 | CR93: 0 | CS93: =SUM(Y$92:Y$103) -> 0 | CT93: 0 | CU93: 0 | CV93: 0 | CW93: 0 | CX93: 0 | CY93: 0 | CZ93: 0 | DA93: 0 | DB93: 0 | DC93: 0 | DD93: 0 | DE93: 0 | DF93: 0 | DG93: 0 | DH93: 0 | DI93: 0 | DJ93: 0
A94: Q1 | B94: Q1 2024-25 | C94: Jun | D94: 2024-25June | E94: 2024-25 | F94: June | AE94: 0 | AF94: 0 | AG94: 0 | AH94: 0 | AI94: 0 | AJ94: 0 | AK94: 0 | AL94: 0 | AM94: 0 | AN94: 0 | AO94: 0 | AP94: 0 | AQ94: 0 | AR94: 0 | AS94: 0 | AT94: 0 | AU94: 0 | AV94: 0 | AW94: 0 | AX94: 0 | AY94: 0 | AZ94: 0 | BA94: 0 | BB94: 0 | BC94: 0 | BD94: 0 | BE94: 0 | BF94: 0 | BG94: 0 | BH94: 0 | BI94: 0 | BJ94: 0 | BK94: 0 | BL94: 0 | BM94: 0 | BN94: 0 | BO94: 0 | BP94: 0 | BQ94: 0 | BR94: 0 | BS94: 0 | BT94: 0 | BU94: 0 | BV94: 0 | BW94: 0 | BX94: 0 | BY94: 0 | BZ94: 0 | CA94: 0 | CB94: 0 | CC94: 0 | CD94: 0 | CE94: 0 | CF94: 0 | CG94: 0 | CH94: 0 | CI94: 0 | CJ94: 0 | CK94: 0 | CL94: 0 | CM94: 0 | CN94: 0 | CO94: 0 | CP94: 0 | CQ94: 0 | CR94: 0 | CS94: 0 | CT94: 0 | CU94: 0 | CV94: 0 | CW94: 0 | CX94: 0 | CY94: 0 | CZ94: 0 | DA94: 0 | DB94: 0 | DC94: 0 | DD94: 0 | DE94: 0 | DF94: 0 | DG94: 0 | DH94: 0 | DI94: 0 | DJ94: 0
A95: Q2 | B95: Q2 2024-25 | C95: Jul | D95: 2024-25July | E95: 2024-25 | F95: July | AE95: 0 | AF95: 0 | AG95: 0 | AH95: 0 | AI95: 0 | AJ95: 0 | AK95: 0 | AL95: 0 | AM95: 0 | AN95: 0 | AO95: 0 | AP95: 0 | AQ95: =SUM(G$95:G$97) -> 0 | AR95: 0 | AS95: 0 | AT95: 0 | AU95: 0 | AV95: 0 | AW95: 0 | AX95: 0 | AY95: 0 | AZ95: =SUM(P$95:P$97) -> 0 | BA95: =SUM(Q$95:Q$97) -> 0 | BB95: =SUM(R$95:R$97) -> 0 | BC95: =SUM(S$95:S$97) -> 0 | BD95: 0 | BE95: 0 | BF95: 0 | BG95: 0 | BH95: 0 | BI95: 0 | BJ95: 0 | BK95: 0 | BL95: 0 | BM95: 0 | BN95: 0 | BO95: 0 | BP95: 0 | BQ95: 0 | BR95: 0 | BS95: 0 | BT95: 0 | BU95: 0 | BV95: 0 | BW95: 0 | BX95: 0 | BY95: 0 | BZ95: 0 | CA95: 0 | CB95: 0 | CC95: 0 | CD95: 0 | CE95: 0 | CF95: 0 | CG95: 0 | CH95: 0 | CI95: 0 | CJ95: 0 | CK95: 0 | CL95: 0 | CM95: 0 | CN95: 0 | CO95: 0 | CP95: 0 | CQ95: 0 | CR95: 0 | CS95: 0 | CT95: 0 | CU95: 0 | CV95: 0 | CW95: 0 | CX95: 0 | CY95: 0 | CZ95: 0 | DA95: 0 | DB95: 0 | DC95: 0 | DD95: 0 | DE95: 0 | DF95: 0 | DG95: 0 | DH95: 0 | DI95: 0 | DJ95: 0
A96: Q2 | B96: Q2 2024-25 | C96: Aug | D96: 2024-25August | E96: 2024-25 | F96: August | AE96: 0 | AF96: 0 | AG96: 0 | AH96: 0 | AI96: 0 | AJ96: 0 | AK96: 0 | AL96: 0 | AM96: 0 | AN96: 0 | AO96: 0 | AP96: 0 | AQ96: =SUM(G$95:G$97) -> 0 | AR96: =SUM(H$95:H$97) -> 0 | AS96: 0 | AT96: 0 | AU96: 0 | AV96: 0 | AW96: 0 | AX96: 0 | AY96: 0 | AZ96: 0 | BA96: 0 | BB96: 0 | BC96: 0 | BD96: 0 | BE96: 0 | BF96: 0 | BG96: 0 | BH96: 0 | BI96: 0 | BJ96: 0 | BK96: 0 | BL96: 0 | BM96: 0 | BN96: 0 | BO96: 0 | BP96: 0 | BQ96: 0 | BR96: 0 | BS96: 0 | BT96: 0 | BU96: 0 | BV96: 0 | BW96: 0 | BX96: 0 | BY96: 0 | BZ96: 0 | CA96: 0 | CB96: 0 | CC96: 0 | CD96: 0 | CE96: 0 | CF96: 0 | CG96: 0 | CH96: 0 | CI96: 0 | CJ96: 0 | CK96: 0 | CL96: 0 | CM96: 0 | CN96: 0 | CO96: 0 | CP96: 0 | CQ96: 0 | CR96: 0 | CS96: 0 | CT96: 0 | CU96: 0 | CV96: 0 | CW96: 0 | CX96: 0 | CY96: 0 | CZ96: 0 | DA96: 0 | DB96: 0 | DC96: 0 | DD96: 0 | DE96: 0 | DF96: 0 | DG96: 0 | DH96: 0 | DI96: 0 | DJ96: 0
A97: Q2 | B97: Q2 2024-25 | C97: Sep | D97: 2024-25September | E97: 2024-25 | F97: September | AE97: 0 | AF97: 0 | AG97: 0 | AH97: 0 | AI97: 0 | AJ97: 0 | AK97: 0 | AL97: 0 | AM97: 0 | AN97: 0 | AO97: 0 | AP97: 0 | AQ97: 0 | AR97: 0 | AS97: 0 | AT97: 0 | AU97: 0 | AV97: 0 | AW97: 0 | AX97: 0 | AY97: 0 | AZ97: 0 | BA97: 0 | BB97: 0 | BC97: 0 | BD97: 0 | BE97: 0 | BF97: 0 | BG97: 0 | BH97: 0 | BI97: 0 | BJ97: 0 | BK97: 0 | BL97: 0 | BM97: 0 | BN97: 0 | BO97: 0 | BP97: 0 | BQ97: 0 | BR97: 0 | BS97: 0 | BT97: 0 | BU97: 0 | BV97: 0 | BW97: 0 | BX97: 0 | BY97: 0 | BZ97: 0 | CA97: 0 | CB97: 0 | CC97: 0 | CD97: 0 | CE97: 0 | CF97: 0 | CG97: 0 | CH97: 0 | CI97: 0 | CJ97: 0 | CK97: 0 | CL97: 0 | CM97: 0 | CN97: 0 | CO97: 0 | CP97: 0 | CQ97: 0 | CR97: 0 | CS97: 0 | CT97: 0 | CU97: 0 | CV97: 0 | CW97: 0 | CX97: 0 | CY97: 0 | CZ97: 0 | DA97: 0 | DB97: 0 | DC97: 0 | DD97: 0 | DE97: 0 | DF97: 0 | DG97: 0 | DH97: 0 | DI97: 0 | DJ97: 0
A98: Q3 | B98: Q3 2024-25 | C98: Oct | D98: 2024-25October | E98: 2024-25 | F98: October | AE98: 0 | AF98: 0 | AG98: 0 | AH98: 0 | AI98: 0 | AJ98: 0 | AK98: 0 | AL98: 0 | AM98: 0 | AN98: 0 | AO98: 0 | AP98: 0 | AQ98: =SUM(G$98:G$100) -> 0 | AR98: 0 | AS98: 0 | AT98: 0 | AU98: 0 | AV98: 0 | AW98: 0 | AX98: 0 | AY98: 0 | AZ98: =SUM(P$98:P$100) -> 0 | BA98: =SUM(Q$98:Q$100) -> 0 | BB98: =SUM(R$98:R$100) -> 0 | BC98: =SUM(S$98:S$100) -> 0 | BD98: 0 | BE98: 0 | BF98: 0 | BG98: 0 | BH98: 0 | BI98: 0 | BJ98: 0 | BK98: 0 | BL98: 0 | BM98: 0 | BN98: 0 | BO98: 0 | BP98: 0 | BQ98: 0 | BR98: 0 | BS98: 0 | BT98: 0 | BU98: 0 | BV98: 0 | BW98: 0 | BX98: 0 | BY98: 0 | BZ98: 0 | CA98: 0 | CB98: 0 | CC98: 0 | CD98: 0 | CE98: 0 | CF98: 0 | CG98: 0 | CH98: 0 | CI98: 0 | CJ98: 0 | CK98: 0 | CL98: 0 | CM98: 0 | CN98: 0 | CO98: 0 | CP98: 0 | CQ98: 0 | CR98: 0 | CS98: 0 | CT98: 0 | CU98: 0 | CV98: 0 | CW98: 0 | CX98: 0 | CY98: 0 | CZ98: 0 | DA98: 0 | DB98: 0 | DC98: 0 | DD98: 0 | DE98: 0 | DF98: 0 | DG98: 0 | DH98: 0 | DI98: 0 | DJ98: 0
A99: Q3 | B99: Q3 2024-25 | C99: Nov | D99: 2024-25November | E99: 2024-25 | F99: November | AE99: 0 | AF99: 0 | AG99: 0 | AH99: 0 | AI99: 0 | AJ99: 0 | AK99: 0 | AL99: 0 | AM99: 0 | AN99: 0 | AO99: 0 | AP99: 0 | AQ99: =SUM(G$98:G$100) -> 0 | AR99: =SUM(H$98:H$100) -> 0 | AS99: 0 | AT99: 0 | AU99: 0 | AV99: 0 | AW99: 0 | AX99: 0 | AY99: 0 | AZ99: 0 | BA99: 0 | BB99: 0 | BC99: 0 | BD99: 0 | BE99: 0 | BF99: 0 | BG99: 0 | BH99: 0 | BI99: 0 | BJ99: 0 | BK99: 0 | BL99: 0 | BM99: 0 | BN99: 0 | BO99: 0 | BP99: 0 | BQ99: 0 | BR99: 0 | BS99: 0 | BT99: 0 | BU99: 0 | BV99: 0 | BW99: 0 | BX99: 0 | BY99: 0 | BZ99: 0 | CA99: 0 | CB99: 0 | CC99: 0 | CD99: 0 | CE99: 0 | CF99: 0 | CG99: 0 | CH99: 0 | CI99: 0 | CJ99: 0 | CK99: 0 | CL99: 0 | CM99: 0 | CN99: 0 | CO99: 0 | CP99: 0 | CQ99: 0 | CR99: 0 | CS99: 0 | CT99: 0 | CU99: 0 | CV99: 0 | CW99: 0 | CX99: 0 | CY99: 0 | CZ99: 0 | DA99: 0 | DB99: 0 | DC99: 0 | DD99: 0 | DE99: 0 | DF99: 0 | DG99: 0 | DH99: 0 | DI99: 0 | DJ99: 0
A100: Q3 | B100: Q3 2024-25 | C100: Dec | D100: 2024-25December | E100: 2024-25 | F100: December | AE100: 0 | AF100: 0 | AG100: 0 | AH100: 0 | AI100: 0 | AJ100: 0 | AK100: 0 | AL100: 0 | AM100: 0 | AN100: 0 | AO100: 0 | AP100: 0 | AQ100: 0 | AR100: 0 | AS100: 0 | AT100: 0 | AU100: 0 | AV100: 0 | AW100: 0 | AX100: 0 | AY100: 0 | AZ100: 0 | BA100: 0 | BB100: 0 | BC100: 0 | BD100: 0 | BE100: 0 | BF100: 0 | BG100: 0 | BH100: 0 | BI100: 0 | BJ100: 0 | BK100: 0 | BL100: 0 | BM100: 0 | BN100: 0 | BO100: 0 | BP100: 0 | BQ100: 0 | BR100: 0 | BS100: 0 | BT100: 0 | BU100: 0 | BV100: 0 | BW100: 0 | BX100: 0 | BY100: 0 | BZ100: 0 | CA100: 0 | CB100: 0 | CC100: 0 | CD100: 0 | CE100: 0 | CF100: 0 | CG100: 0 | CH100: 0 | CI100: 0 | CJ100: 0 | CK100: 0 | CL100: 0 | CM100: 0 | CN100: 0 | CO100: 0 | CP100: 0 | CQ100: 0 | CR100: 0 | CS100: 0 | CT100: 0 | CU100: 0 | CV100: 0 | CW100: 0 | CX100: 0 | CY100: 0 | CZ100: 0 | DA100: 0 | DB100: 0 | DC100: 0 | DD100: 0 | DE100: 0 | DF100: 0 | DG100: 0 | DH100: 0 | DI100: 0 | DJ100: 0
A101: Q4 | B101: Q4 2024-25 | C101: Jan | D101: 2024-25January | E101: 2024-25 | F101: January | AE101: 0 | AF101: 0 | AG101: 0 | AH101: 0 | AI101: 0 | AJ101: 0 | AK101: 0 | AL101: 0 | AM101: 0 | AN101: 0 | AO101: 0 | AP101: 0 | AQ101: =SUM(G$101:G$103) -> 0 | AR101: 0 | AS101: 0 | AT101: 0 | AU101: 0 | AV101: 0 | AW101: 0 | AX101: 0 | AY101: 0 | AZ101: =SUM(P$101:P$103) -> 0 | BA101: =SUM(Q$101:Q$103) -> 0 | BB101: =SUM(R$101:R$103) -> 0 | BC101: =SUM(S$101:S$103) -> 0 | BD101: 0 | BE101: 0 | BF101: 0 | BG101: 0 | BH101: 0 | BI101: 0 | BJ101: 0 | BK101: 0 | BL101: 0 | BM101: 0 | BN101: 0 | BO101: 0 | BP101: 0 | BQ101: 0 | BR101: 0 | BS101: 0 | BT101: 0 | BU101: 0 | BV101: 0 | BW101: 0 | BX101: 0 | BY101: 0 | BZ101: 0 | CA101: 0 | CB101: 0 | CC101: 0 | CD101: 0 | CE101: 0 | CF101: 0 | CG101: 0 | CH101: 0 | CI101: 0 | CJ101: 0 | CK101: 0 | CL101: 0 | CM101: 0 | CN101: 0 | CO101: 0 | CP101: 0 | CQ101: 0 | CR101: 0 | CS101: 0 | CT101: 0 | CU101: 0 | CV101: 0 | CW101: 0 | CX101: 0 | CY101: 0 | CZ101: 0 | DA101: 0 | DB101: 0 | DC101: 0 | DD101: 0 | DE101: 0 | DF101: 0 | DG101: 0 | DH101: 0 | DI101: 0 | DJ101: 0
A102: Q4 | B102: Q4 2024-25 | C102: Feb | D102: 2024-25February | E102: 2024-25 | F102: February | AE102: 0 | AF102: 0 | AG102: 0 | AH102: 0 | AI102: 0 | AJ102: 0 | AK102: 0 | AL102: 0 | AM102: 0 | AN102: 0 | AO102: 0 | AP102: 0 | AQ102: =SUM(G$101:G$103) -> 0 | AR102: =SUM(H$101:H$103) -> 0 | AS102: 0 | AT102: 0 | AU102: 0 | AV102: 0 | AW102: 0 | AX102: 0 | AY102: 0 | AZ102: 0 | BA102: 0 | BB102: 0 | BC102: 0 | BD102: 0 | BE102: 0 | BF102: 0 | BG102: 0 | BH102: 0 | BI102: 0 | BJ102: 0 | BK102: 0 | BL102: 0 | BM102: 0 | BN102: 0 | BO102: 0 | BP102: 0 | BQ102: 0 | BR102: 0 | BS102: 0 | BT102: 0 | BU102: 0 | BV102: 0 | BW102: 0 | BX102: 0 | BY102: 0 | BZ102: 0 | CA102: 0 | CB102: 0 | CC102: 0 | CD102: 0 | CE102: 0 | CF102: 0 | CG102: 0 | CH102: 0 | CI102: 0 | CJ102: 0 | CK102: 0 | CL102: 0 | CM102: 0 | CN102: 0 | CO102: 0 | CP102: 0 | CQ102: 0 | CR102: 0 | CS102: 0 | CT102: 0 | CU102: 0 | CV102: 0 | CW102: 0 | CX102: 0 | CY102: 0 | CZ102: 0 | DA102: 0 | DB102: 0 | DC102: 0 | DD102: 0 | DE102: 0 | DF102: 0 | DG102: 0 | DH102: 0 | DI102: 0 | DJ102: 0
A103: Q4 | B103: Q4 2024-25 | C103: Mar | D103: 2024-25March | E103: 2024-25 | F103: March | AE103: 0 | AF103: 0 | AG103: 0 | AH103: 0 | AI103: 0 | AJ103: 0 | AK103: 0 | AL103: 0 | AM103: 0 | AN103: 0 | AO103: 0 | AP103: 0 | AQ103: 0 | AR103: 0 | AS103: 0 | AT103: 0 | AU103: 0 | AV103: 0 | AW103: 0 | AX103: 0 | AY103: 0 | AZ103: 0 | BA103: 0 | BB103: 0 | BC103: 0 | BD103: 0 | BE103: 0 | BF103: 0 | BG103: 0 | BH103: 0 | BI103: 0 | BJ103: 0 | BK103: 0 | BL103: 0 | BM103: 0 | BN103: 0 | BO103: 0 | BP103: 0 | BQ103: 0 | BR103: 0 | BS103: 0 | BT103: 0 | BU103: 0 | BV103: 0 | BW103: 0 | BX103: 0 | BY103: 0 | BZ103: 0 | CA103: 0 | CB103: 0 | CC103: 0 | CD103: 0 | CE103: 0 | CF103: 0 | CG103: 0 | CH103: 0 | CI103: 0 | CJ103: 0 | CK103: 0 | CL103: 0 | CM103: 0 | CN103: 0 | CO103: 0 | CP103: 0 | CQ103: 0 | CR103: 0 | CS103: 0 | CT103: 0 | CU103: 0 | CV103: 0 | CW103: 0 | CX103: 0 | CY103: 0 | CZ103: 0 | DA103: 0 | DB103: 0 | DC103: 0 | DD103: 0 | DE103: 0 | DF103: 0 | DG103: 0 | DH103: 0 | DI103: 0 | DJ103: 0
A104: Q1 | B104: Q1 2025-26 | C104: Apr, 21-22 | D104: 2025-26April | E104: 2025-26 | F104: April | AE104: 0 | AF104: 0 | AG104: 0 | AH104: 0 | AI104: 0 | AJ104: 0 | AK104: 0 | AL104: 0 | AM104: 0 | AN104: 0 | AO104: 0 | AP104: 0 | AQ104: =SUM(G$104:G$106) -> 0 | AR104: 0 | AS104: 0 | AT104: 0 | AU104: 0 | AV104: 0 | AW104: 0 | AX104: 0 | AY104: 0 | AZ104: =SUM(P$104:P$106) -> 0 | BA104: =SUM(Q$104:Q$106) -> 0 | BB104: =SUM(R$104:R$106) -> 0 | BC104: =SUM(S$104:S$106) -> 0 | BD104: 0 | BE104: 0 | BF104: 0 | BG104: 0 | BH104: 0 | BI104: 0 | BJ104: 0 | BK104: 0 | BL104: 0 | BM104: 0 | BN104: 0 | BO104: 0 | BP104: 0 | BQ104: 0 | BR104: 0 | BS104: 0 | BT104: 0 | BU104: 0 | BV104: 0 | BW104: 0 | BX104: 0 | BY104: 0 | BZ104: 0 | CA104: =SUM(G$104:G$115) -> 0 | CB104: 0 | CC104: 0 | CD104: 0 | CE104: 0 | CF104: 0 | CG104: 0 | CH104: 0 | CI104: 0 | CJ104: =SUM(P$104:P$115) -> 0 | CK104: =SUM(Q$104:Q$115) -> 0 | CL104: =SUM(R$104:R$115) -> 0 | CM104: =SUM(S$104:S$115) -> 0 | CN104: 0 | CO104: 0 | CP104: 0 | CQ104: 0 | CR104: 0 | CS104: =SUM(Y$104:Y$115) -> 0 | CT104: =SUM(Z$104:Z$115) -> 0 | CU104: =SUM(AA$104:AA$115) -> 0 | CV104: =SUM(AB$104:AB$115) -> 0 | CW104: =SUM(AC$104:AC$115) -> 0 | CX104: =SUM(AD$104:AD$115) -> 0 | CY104: 0 | CZ104: 0 | DA104: 0 | DB104: 0 | DC104: 0 | DD104: 0 | DE104: 0 | DF104: 0 | DG104: 0 | DH104: 0 | DI104: 0 | DJ104: 0
A105: Q1 | B105: Q1 2025-26 | C105: May | D105: 2025-26May | E105: 2025-26 | F105: May | AE105: 0 | AF105: 0 | AG105: 0 | AH105: 0 | AI105: 0 | AJ105: 0 | AK105: 0 | AL105: 0 | AM105: =O104 -> 0 | AN105: =P104 -> 0 | AO105: 0 | AP105: 0 | AQ105: =SUM(G$104:G$106) -> 0 | AR105: =SUM(H$104:H$106) -> 0 | AS105: 0 | AT105: 0 | AU105: 0 | AV105: 0 | AW105: 0 | AX105: 0 | AY105: 0 | AZ105: 0 | BA105: 0 | BB105: 0 | BC105: 0 | BD105: 0 | BE105: 0 | BF105: 0 | BG105: 0 | BH105: 0 | BI105: 0 | BJ105: 0 | BK105: 0 | BL105: 0 | BM105: 0 | BN105: 0 | BO105: 0 | BP105: 0 | BQ105: 0 | BR105: 0 | BS105: 0 | BT105: 0 | BU105: 0 | BV105: 0 | BW105: 0 | BX105: 0 | BY105: 0 | BZ105: 0 | CA105: =SUM(G$104:G$115) -> 0 | CB105: =SUM(H$104:H$115) -> 0 | CC105: =SUM(I$104:I$115) -> 0 | CD105: =SUM(J$104:J$115) -> 0 | CE105: =SUM(K$104:K$115) -> 0 | CF105: =SUM(L$104:L$115) -> 0 | CG105: =SUM(M$104:M$115) -> 0 | CH105: =SUM(N$104:N$115) -> 0 | CI105: =SUM(O$104:O$115) -> 0 | CJ105: 0 | CK105: 0 | CL105: 0 | CM105: 0 | CN105: 0 | CO105: 0 | CP105: 0 | CQ105: 0 | CR105: 0 | CS105: =SUM(Y$104:Y$115) -> 0 | CT105: 0 | CU105: 0 | CV105: 0 | CW105: 0 | CX105: 0 | CY105: 0 | CZ105: 0 | DA105: 0 | DB105: 0 | DC105: 0 | DD105: 0 | DE105: 0 | DF105: 0 | DG105: 0 | DH105: 0 | DI105: 0 | DJ105: 0
A106: Q1 | B106: Q1 2025-26 | C106: Jun | D106: 2025-26June | E106: 2025-26 | F106: June | AE106: 0 | AF106: 0 | AG106: 0 | AH106: 0 | AI106: 0 | AJ106: 0 | AK106: 0 | AL106: 0 | AM106: 0 | AN106: 0 | AO106: 0 | AP106: 0 | AQ106: 0 | AR106: 0 | AS106: 0 | AT106: 0 | AU106: 0 | AV106: 0 | AW106: 0 | AX106: 0 | AY106: 0 | AZ106: 0 | BA106: 0 | BB106: 0 | BC106: 0 | BD106: 0 | BE106: 0 | BF106: 0 | BG106: 0 | BH106: 0 | BI106: 0 | BJ106: 0 | BK106: 0 | BL106: 0 | BM106: 0 | BN106: 0 | BO106: 0 | BP106: 0 | BQ106: 0 | BR106: 0 | BS106: 0 | BT106: 0 | BU106: 0 | BV106: 0 | BW106: 0 | BX106: 0 | BY106: 0 | BZ106: 0 | CA106: 0 | CB106: 0 | CC106: 0 | CD106: 0 | CE106: 0 | CF106: 0 | CG106: 0 | CH106: 0 | CI106: 0 | CJ106: 0 | CK106: 0 | CL106: 0 | CM106: 0 | CN106: 0 | CO106: 0 | CP106: 0 | CQ106: 0 | CR106: 0 | CS106: 0 | CT106: 0 | CU106: 0 | CV106: 0 | CW106: 0 | CX106: 0 | CY106: 0 | CZ106: 0 | DA106: 0 | DB106: 0 | DC106: 0 | DD106: 0 | DE106: 0 | DF106: 0 | DG106: 0 | DH106: 0 | DI106: 0 | DJ106: 0
A107: Q2 | B107: Q2 2025-26 | C107: Jul | D107: 2025-26July | E107: 2025-26 | F107: July | AE107: 0 | AF107: 0 | AG107: 0 | AH107: 0 | AI107: 0 | AJ107: 0 | AK107: 0 | AL107: 0 | AM107: 0 | AN107: 0 | AO107: 0 | AP107: 0 | AQ107: =SUM(G$107:G$109) -> 0 | AR107: 0 | AS107: 0 | AT107: 0 | AU107: 0 | AV107: 0 | AW107: 0 | AX107: 0 | AY107: 0 | AZ107: =SUM(P$107:P$109) -> 0 | BA107: =SUM(Q$107:Q$109) -> 0 | BB107: =SUM(R$107:R$109) -> 0 | BC107: =SUM(S$107:S$109) -> 0 | BD107: 0 | BE107: 0 | BF107: 0 | BG107: 0 | BH107: 0 | BI107: 0 | BJ107: 0 | BK107: 0 | BL107: 0 | BM107: 0 | BN107: 0 | BO107: 0 | BP107: 0 | BQ107: 0 | BR107: 0 | BS107: 0 | BT107: 0 | BU107: 0 | BV107: 0 | BW107: 0 | BX107: 0 | BY107: 0 | BZ107: 0 | CA107: 0 | CB107: 0 | CC107: 0 | CD107: 0 | CE107: 0 | CF107: 0 | CG107: 0 | CH107: 0 | CI107: 0 | CJ107: 0 | CK107: 0 | CL107: 0 | CM107: 0 | CN107: 0 | CO107: 0 | CP107: 0 | CQ107: 0 | CR107: 0 | CS107: 0 | CT107: 0 | CU107: 0 | CV107: 0 | CW107: 0 | CX107: 0 | CY107: 0 | CZ107: 0 | DA107: 0 | DB107: 0 | DC107: 0 | DD107: 0 | DE107: 0 | DF107: 0 | DG107: 0 | DH107: 0 | DI107: 0 | DJ107: 0
A108: Q2 | B108: Q2 2025-26 | C108: Aug | D108: 2025-26August | E108: 2025-26 | F108: August | AE108: 0 | AF108: 0 | AG108: 0 | AH108: 0 | AI108: 0 | AJ108: 0 | AK108: 0 | AL108: 0 | AM108: 0 | AN108: 0 | AO108: 0 | AP108: 0 | AQ108: 0 | AR108: 0 | AS108: 0 | AT108: 0 | AU108: 0 | AV108: 0 | AW108: 0 | AX108: 0 | AY108: 0 | AZ108: 0 | BA108: 0 | BB108: 0 | BC108: 0 | BD108: 0 | BE108: 0 | BF108: 0 | BG108: 0 | BH108: 0 | BI108: 0 | BJ108: 0 | BK108: 0 | BL108: 0 | BM108: 0 | BN108: 0 | BO108: 0 | BP108: 0 | BQ108: 0 | BR108: 0 | BS108: 0 | BT108: 0 | BU108: 0 | BV108: 0 | BW108: 0 | BX108: 0 | BY108: 0 | BZ108: 0 | CA108: 0 | CB108: 0 | CC108: 0 | CD108: 0 | CE108: 0 | CF108: 0 | CG108: 0 | CH108: 0 | CI108: 0 | CJ108: 0 | CK108: 0 | CL108: 0 | CM108: 0 | CN108: 0 | CO108: 0 | CP108: 0 | CQ108: 0 | CR108: 0 | CS108: 0 | CT108: 0 | CU108: 0 | CV108: 0 | CW108: 0 | CX108: 0 | CY108: 0 | CZ108: 0 | DA108: 0 | DB108: 0 | DC108: 0 | DD108: 0 | DE108: 0 | DF108: 0 | DG108: 0 | DH108: 0 | DI108: 0 | DJ108: 0
A109: Q2 | B109: Q2 2025-26 | C109: Sep | D109: 2025-26September | E109: 2025-26 | F109: September | AE109: 0 | AF109: 0 | AG109: 0 | AH109: 0 | AI109: 0 | AJ109: 0 | AK109: 0 | AL109: 0 | AM109: 0 | AN109: 0 | AO109: 0 | AP109: 0 | AQ109: 0 | AR109: 0 | AS109: 0 | AT109: 0 | AU109: 0 | AV109: 0 | AW109: 0 | AX109: 0 | AY109: 0 | AZ109: 0 | BA109: 0 | BB109: 0 | BC109: 0 | BD109: 0 | BE109: 0 | BF109: 0 | BG109: 0 | BH109: 0 | BI109: 0 | BJ109: 0 | BK109: 0 | BL109: 0 | BM109: 0 | BN109: 0 | BO109: 0 | BP109: 0 | BQ109: 0 | BR109: 0 | BS109: 0 | BT109: 0 | BU109: 0 | BV109: 0 | BW109: 0 | BX109: 0 | BY109: 0 | BZ109: 0 | CA109: 0 | CB109: 0 | CC109: 0 | CD109: 0 | CE109: 0 | CF109: 0 | CG109: 0 | CH109: 0 | CI109: 0 | CJ109: 0 | CK109: 0 | CL109: 0 | CM109: 0 | CN109: 0 | CO109: 0 | CP109: 0 | CQ109: 0 | CR109: 0 | CS109: 0 | CT109: 0 | CU109: 0 | CV109: 0 | CW109: 0 | CX109: 0 | CY109: 0 | CZ109: 0 | DA109: 0 | DB109: 0 | DC109: 0 | DD109: 0 | DE109: 0 | DF109: 0 | DG109: 0 | DH109: 0 | DI109: 0 | DJ109: 0
A110: Q3 | B110: Q3 2025-26 | C110: Oct | D110: 2025-26October | E110: 2025-26 | F110: October | AE110: 0 | AF110: 0 | AG110: 0 | AH110: 0 | AI110: 0 | AJ110: 0 | AK110: 0 | AL110: 0 | AM110: 0 | AN110: 0 | AO110: 0 | AP110: 0 | AQ110: =SUM(G$110:G$112) -> 0 | AR110: =SUM(H$110:H$112) -> 0 | AS110: =SUM(I$110:I$112) -> 0 | AT110: =SUM(J$110:J$112) -> 0 | AU110: =SUM(K$110:K$112) -> 0 | AV110: =SUM(L$110:L$112) -> 0 | AW110: =SUM(M$110:M$112) -> 0 | AX110: =SUM(N$110:N$112) -> 0 | AY110: =SUM(O$110:O$112) -> 0 | AZ110: =SUM(P$110:P$112) -> 0 | BA110: =SUM(Q$110:Q$112) -> 0 | BB110: =SUM(R$110:R$112) -> 0 | BC110: =SUM(S$110:S$112) -> 0 | BD110: =SUM(T$110:T$112) -> 0 | BE110: =SUM(U$110:U$112) -> 0 | BF110: =SUM(V$110:V$112) -> 0 | BG110: =SUM(W$110:W$112) -> 0 | BH110: =SUM(X$110:X$112) -> 0 | BI110: =SUM(Y$110:Y$112) -> 0 | BJ110: =SUM(Z$110:Z$112) -> 0 | BK110: =SUM(AA$110:AA$112) -> 0 | BL110: =SUM(AB$110:AB$112) -> 0 | BM110: =SUM(AC$110:AC$112) -> 0 | BN110: =SUM(AD$110:AD$112) -> 0 | BO110: 0 | BP110: 0 | BQ110: 0 | BR110: 0 | BS110: 0 | BT110: 0 | BU110: 0 | BV110: 0 | BW110: 0 | BX110: 0 | BY110: 0 | BZ110: 0 | CA110: 0 | CB110: 0 | CC110: 0 | CD110: 0 | CE110: 0 | CF110: 0 | CG110: 0 | CH110: 0 | CI110: 0 | CJ110: 0 | CK110: 0 | CL110: 0 | CM110: 0 | CN110: 0 | CO110: 0 | CP110: 0 | CQ110: 0 | CR110: 0 | CS110: 0 | CT110: 0 | CU110: 0 | CV110: 0 | CW110: 0 | CX110: 0 | CY110: 0 | CZ110: 0 | DA110: 0 | DB110: 0 | DC110: 0 | DD110: 0 | DE110: 0 | DF110: 0 | DG110: 0 | DH110: 0 | DI110: 0 | DJ110: 0
A111: Q3 | B111: Q3 2025-26 | C111: Nov | D111: 2025-26November | E111: 2025-26 | F111: November | AE111: 0 | AF111: 0 | AG111: 0 | AH111: 0 | AI111: 0 | AJ111: 0 | AK111: 0 | AL111: 0 | AM111: 0 | AN111: 0 | AO111: 0 | AP111: 0 | AQ111: 0 | AR111: 0 | AS111: 0 | AT111: 0 | AU111: 0 | AV111: 0 | AW111: 0 | AX111: 0 | AY111: 0 | AZ111: 0 | BA111: 0 | BB111: 0 | BC111: 0 | BD111: 0 | BE111: 0 | BF111: 0 | BG111: 0 | BH111: 0 | BI111: 0 | BJ111: 0 | BK111: 0 | BL111: 0 | BM111: 0 | BN111: 0 | BO111: 0 | BP111: 0 | BQ111: 0 | BR111: 0 | BS111: 0 | BT111: 0 | BU111: 0 | BV111: 0 | BW111: 0 | BX111: 0 | BY111: 0 | BZ111: 0 | CA111: 0 | CB111: 0 | CC111: 0 | CD111: 0 | CE111: 0 | CF111: 0 | CG111: 0 | CH111: 0 | CI111: 0 | CJ111: 0 | CK111: 0 | CL111: 0 | CM111: 0 | CN111: 0 | CO111: 0 | CP111: 0 | CQ111: 0 | CR111: 0 | CS111: 0 | CT111: 0 | CU111: 0 | CV111: 0 | CW111: 0 | CX111: 0 | CY111: 0 | CZ111: 0 | DA111: 0 | DB111: 0 | DC111: 0 | DD111: 0 | DE111: 0 | DF111: 0 | DG111: 0 | DH111: 0 | DI111: 0 | DJ111: 0
A112: Q3 | B112: Q3 2025-26 | C112: Dec | D112: 2025-26December | E112: 2025-26 | F112: December | AE112: 0 | AF112: 0 | AG112: 0 | AH112: 0 | AI112: 0 | AJ112: 0 | AK112: 0 | AL112: 0 | AM112: 0 | AN112: 0 | AO112: 0 | AP112: 0 | AQ112: 0 | AR112: 0 | AS112: 0 | AT112: 0 | AU112: 0 | AV112: 0 | AW112: 0 | AX112: 0 | AY112: 0 | AZ112: 0 | BA112: 0 | BB112: 0 | BC112: 0 | BD112: 0 | BE112: 0 | BF112: 0 | BG112: 0 | BH112: 0 | BI112: 0 | BJ112: 0 | BK112: 0 | BL112: 0 | BM112: 0 | BN112: 0 | BO112: 0 | BP112: 0 | BQ112: 0 | BR112: 0 | BS112: 0 | BT112: 0 | BU112: 0 | BV112: 0 | BW112: 0 | BX112: 0 | BY112: 0 | BZ112: 0 | CA112: 0 | CB112: 0 | CC112: 0 | CD112: 0 | CE112: 0 | CF112: 0 | CG112: 0 | CH112: 0 | CI112: 0 | CJ112: 0 | CK112: 0 | CL112: 0 | CM112: 0 | CN112: 0 | CO112: 0 | CP112: 0 | CQ112: 0 | CR112: 0 | CS112: 0 | CT112: 0 | CU112: 0 | CV112: 0 | CW112: 0 | CX112: 0 | CY112: 0 | CZ112: 0 | DA112: 0 | DB112: 0 | DC112: 0 | DD112: 0 | DE112: 0 | DF112: 0 | DG112: 0 | DH112: 0 | DI112: 0 | DJ112: 0
A113: Q4 | B113: Q4 2025-26 | C113: Jan | D113: 2025-26January | E113: 2025-26 | F113: January | AE113: 0 | AF113: 0 | AG113: 0 | AH113: 0 | AI113: 0 | AJ113: 0 | AK113: 0 | AL113: 0 | AM113: 0 | AN113: 0 | AO113: 0 | AP113: 0 | AQ113: =SUM(G$113:G$115) -> 0 | AR113: 0 | AS113: 0 | AT113: 0 | AU113: 0 | AV113: 0 | AW113: 0 | AX113: 0 | AY113: 0 | AZ113: =SUM(P$113:P$115) -> 0 | BA113: =SUM(Q$113:Q$115) -> 0 | BB113: =SUM(R$113:R$115) -> 0 | BC113: =SUM(S$113:S$115) -> 0 | BD113: 0 | BE113: 0 | BF113: 0 | BG113: 0 | BH113: 0 | BI113: 0 | BJ113: 0 | BK113: 0 | BL113: 0 | BM113: 0 | BN113: 0 | BO113: 0 | BP113: 0 | BQ113: 0 | BR113: 0 | BS113: 0 | BT113: 0 | BU113: 0 | BV113: 0 | BW113: 0 | BX113: 0 | BY113: 0 | BZ113: 0 | CA113: 0 | CB113: 0 | CC113: 0 | CD113: 0 | CE113: 0 | CF113: 0 | CG113: 0 | CH113: 0 | CI113: 0 | CJ113: 0 | CK113: 0 | CL113: 0 | CM113: 0 | CN113: 0 | CO113: 0 | CP113: 0 | CQ113: 0 | CR113: 0 | CS113: 0 | CT113: 0 | CU113: 0 | CV113: 0 | CW113: 0 | CX113: 0 | CY113: 0 | CZ113: 0 | DA113: 0 | DB113: 0 | DC113: 0 | DD113: 0 | DE113: 0 | DF113: 0 | DG113: 0 | DH113: 0 | DI113: 0 | DJ113: 0
A114: Q4 | B114: Q4 2025-26 | C114: Feb | D114: 2025-26February | E114: 2025-26 | F114: February | AE114: 0 | AF114: 0 | AG114: 0 | AH114: 0 | AI114: 0 | AJ114: 0 | AK114: 0 | AL114: 0 | AM114: 0 | AN114: 0 | AO114: 0 | AP114: 0 | AQ114: =SUM(G$113:G$115) -> 0 | AR114: =SUM(H$113:H$115) -> 0 | AS114: 0 | AT114: 0 | AU114: 0 | AV114: 0 | AW114: 0 | AX114: 0 | AY114: 0 | AZ114: 0 | BA114: 0 | BB114: 0 | BC114: 0 | BD114: 0 | BE114: 0 | BF114: 0 | BG114: 0 | BH114: 0 | BI114: 0 | BJ114: 0 | BK114: 0 | BL114: 0 | BM114: 0 | BN114: 0 | BO114: 0 | BP114: 0 | BQ114: 0 | BR114: 0 | BS114: 0 | BT114: 0 | BU114: 0 | BV114: 0 | BW114: 0 | BX114: 0 | BY114: 0 | BZ114: 0 | CA114: 0 | CB114: 0 | CC114: 0 | CD114: 0 | CE114: 0 | CF114: 0 | CG114: 0 | CH114: 0 | CI114: 0 | CJ114: 0 | CK114: 0 | CL114: 0 | CM114: 0 | CN114: 0 | CO114: 0 | CP114: 0 | CQ114: 0 | CR114: 0 | CS114: 0 | CT114: 0 | CU114: 0 | CV114: 0 | CW114: 0 | CX114: 0 | CY114: 0 | CZ114: 0 | DA114: 0 | DB114: 0 | DC114: 0 | DD114: 0 | DE114: 0 | DF114: 0 | DG114: 0 | DH114: 0 | DI114: 0 | DJ114: 0
A115: Q4 | B115: Q4 2025-26 | C115: Mar | D115: 2025-26March | E115: 2025-26 | F115: March | AE115: 0 | AF115: 0 | AG115: 0 | AH115: 0 | AI115: 0 | AJ115: 0 | AK115: 0 | AL115: 0 | AM115: 0 | AN115: 0 | AO115: 0 | AP115: 0 | AQ115: 0 | AR115: 0 | AS115: 0 | AT115: 0 | AU115: 0 | AV115: 0 | AW115: 0 | AX115: 0 | AY115: 0 | AZ115: 0 | BA115: 0 | BB115: 0 | BC115: 0 | BD115: 0 | BE115: 0 | BF115: 0 | BG115: 0 | BH115: 0 | BI115: 0 | BJ115: 0 | BK115: 0 | BL115: 0 | BM115: 0 | BN115: 0 | BO115: 0 | BP115: 0 | BQ115: 0 | BR115: 0 | BS115: 0 | BT115: 0 | BU115: 0 | BV115: 0 | BW115: 0 | BX115: 0 | BY115: 0 | BZ115: 0 | CA115: 0 | CB115: 0 | CC115: 0 | CD115: 0 | CE115: 0 | CF115: 0 | CG115: 0 | CH115: 0 | CI115: 0 | CJ115: 0 | CK115: 0 | CL115: 0 | CM115: 0 | CN115: 0 | CO115: 0 | CP115: 0 | CQ115: 0 | CR115: 0 | CS115: 0 | CT115: 0 | CU115: 0 | CV115: 0 | CW115: 0 | CX115: 0 | CY115: 0 | CZ115: 0 | DA115: 0 | DB115: 0 | DC115: 0 | DD115: 0 | DE115: 0 | DF115: 0 | DG115: 0 | DH115: 0 | DI115: 0 | DJ115: 0
A116: Q1 | B116: Q1 2026-27 | C116: Apr, 21-22 | D116: 2026-27April | E116: 2026-27 | F116: April | AE116: 0 | AF116: 0 | AG116: 0 | AH116: 0 | AI116: 0 | AJ116: 0 | AK116: 0 | AL116: 0 | AM116: 0 | AN116: 0 | AO116: 0 | AP116: 0 | AQ116: =SUM(G$116:G$118) -> 0 | AR116: 0 | AS116: 0 | AT116: 0 | AU116: 0 | AV116: 0 | AW116: 0 | AX116: 0 | AY116: 0 | AZ116: =SUM(P$116:P$118) -> 0 | BA116: =SUM(Q$116:Q$118) -> 0 | BB116: =SUM(R$116:R$118) -> 0 | BC116: =SUM(S$116:S$118) -> 0 | BD116: 0 | BE116: 0 | BF116: 0 | BG116: 0 | BH116: 0 | BI116: 0 | BJ116: 0 | BK116: 0 | BL116: 0 | BM116: 0 | BN116: 0 | BO116: 0 | BP116: 0 | BQ116: 0 | BR116: 0 | BS116: 0 | BT116: 0 | BU116: 0 | BV116: 0 | BW116: 0 | BX116: 0 | BY116: 0 | BZ116: 0 | CA116: =SUM(G$116:G$127) -> 0 | CB116: 0 | CC116: 0 | CD116: 0 | CE116: 0 | CF116: 0 | CG116: 0 | CH116: 0 | CI116: 0 | CJ116: =SUM(P$116:P$127) -> 0 | CK116: =SUM(Q$116:Q$127) -> 0 | CL116: =SUM(R$116:R$127) -> 0 | CM116: =SUM(S$116:S$127) -> 0 | CN116: 0 | CO116: 0 | CP116: 0 | CQ116: 0 | CR116: 0 | CS116: =SUM(Y$116:Y$127) -> 0 | CT116: =SUM(Z$116:Z$127) -> 0 | CU116: =SUM(AA$116:AA$127) -> 0 | CV116: =SUM(AB$116:AB$127) -> 0 | CW116: =SUM(AC$116:AC$127) -> 0 | CX116: =SUM(AD$116:AD$127) -> 0 | CY116: 0 | CZ116: 0 | DA116: 0 | DB116: 0 | DC116: 0 | DD116: 0 | DE116: 0 | DF116: 0 | DG116: 0 | DH116: 0 | DI116: 0 | DJ116: 0
A117: Q1 | B117: Q1 2026-27 | C117: May | D117: 2026-27May | E117: 2026-27 | F117: May | AE117: 0 | AF117: 0 | AG117: 0 | AH117: 0 | AI117: 0 | AJ117: 0 | AK117: 0 | AL117: 0 | AM117: 0 | AN117: 0 | AO117: 0 | AP117: 0 | AQ117: =SUM(G$116:G$118) -> 0 | AR117: =SUM(H$116:H$118) -> 0 | AS117: 0 | AT117: 0 | AU117: 0 | AV117: 0 | AW117: 0 | AX117: 0 | AY117: 0 | AZ117: 0 | BA117: 0 | BB117: 0 | BC117: 0 | BD117: 0 | BE117: 0 | BF117: 0 | BG117: 0 | BH117: 0 | BI117: 0 | BJ117: 0 | BK117: 0 | BL117: 0 | BM117: 0 | BN117: 0 | BO117: 0 | BP117: 0 | BQ117: 0 | BR117: 0 | BS117: 0 | BT117: 0 | BU117: 0 | BV117: 0 | BW117: 0 | BX117: 0 | BY117: 0 | BZ117: 0 | CA117: =SUM(G$116:G$127) -> 0 | CB117: =SUM(H$116:H$127) -> 0 | CC117: =SUM(I$116:I$127) -> 0 | CD117: =SUM(J$116:J$127) -> 0 | CE117: =SUM(K$116:K$127) -> 0 | CF117: =SUM(L$116:L$127) -> 0 | CG117: =SUM(M$116:M$127) -> 0 | CH117: =SUM(N$116:N$127) -> 0 | CI117: =SUM(O$116:O$127) -> 0 | CJ117: 0 | CK117: 0 | CL117: 0 | CM117: 0 | CN117: 0 | CO117: 0 | CP117: 0 | CQ117: 0 | CR117: 0 | CS117: =SUM(Y$116:Y$127) -> 0 | CT117: 0 | CU117: 0 | CV117: 0 | CW117: 0 | CX117: 0 | CY117: 0 | CZ117: 0 | DA117: 0 | DB117: 0 | DC117: 0 | DD117: 0 | DE117: 0 | DF117: 0 | DG117: 0 | DH117: 0 | DI117: 0 | DJ117: 0
A118: Q1 | B118: Q1 2026-27 | C118: Jun | D118: 2026-27June | E118: 2026-27 | F118: June | AE118: 0 | AF118: 0 | AG118: 0 | AH118: 0 | AI118: 0 | AJ118: 0 | AK118: 0 | AL118: 0 | AM118: 0 | AN118: 0 | AO118: 0 | AP118: 0 | AQ118: 0 | AR118: 0 | AS118: 0 | AT118: 0 | AU118: 0 | AV118: 0 | AW118: 0 | AX118: 0 | AY118: 0 | AZ118: 0 | BA118: 0 | BB118: 0 | BC118: 0 | BD118: 0 | BE118: 0 | BF118: 0 | BG118: 0 | BH118: 0 | BI118: 0 | BJ118: 0 | BK118: 0 | BL118: 0 | BM118: 0 | BN118: 0 | BO118: 0 | BP118: 0 | BQ118: 0 | BR118: 0 | BS118: 0 | BT118: 0 | BU118: 0 | BV118: 0 | BW118: 0 | BX118: 0 | BY118: 0 | BZ118: 0 | CA118: 0 | CB118: 0 | CC118: 0 | CD118: 0 | CE118: 0 | CF118: 0 | CG118: 0 | CH118: 0 | CI118: 0 | CJ118: 0 | CK118: 0 | CL118: 0 | CM118: 0 | CN118: 0 | CO118: 0 | CP118: 0 | CQ118: 0 | CR118: 0 | CS118: 0 | CT118: 0 | CU118: 0 | CV118: 0 | CW118: 0 | CX118: 0 | CY118: 0 | CZ118: 0 | DA118: 0 | DB118: 0 | DC118: 0 | DD118: 0 | DE118: 0 | DF118: 0 | DG118: 0 | DH118: 0 | DI118: 0 | DJ118: 0
A119: Q2 | B119: Q2 2026-27 | C119: Jul | D119: 2026-27July | E119: 2026-27 | F119: July | AE119: 0 | AF119: 0 | AG119: 0 | AH119: 0 | AI119: 0 | AJ119: 0 | AK119: 0 | AL119: 0 | AM119: 0 | AN119: 0 | AO119: 0 | AP119: 0 | AQ119: =SUM(G$119:G$121) -> 0 | AR119: =SUM(H$119:H$121) -> 0 | AS119: =SUM(I$119:I$121) -> 0 | AT119: =SUM(J$119:J$121) -> 0 | AU119: =SUM(K$119:K$121) -> 0 | AV119: =SUM(L$119:L$121) -> 0 | AW119: =SUM(M$119:M$121) -> 0 | AX119: =SUM(N$119:N$121) -> 0 | AY119: =SUM(O$119:O$121) -> 0 | AZ119: =SUM(P$119:P$121) -> 0 | BA119: =SUM(Q$119:Q$121) -> 0 | BB119: =SUM(R$119:R$121) -> 0 | BC119: =SUM(S$119:S$121) -> 0 | BD119: =SUM(T$119:T$121) -> 0 | BE119: =SUM(U$119:U$121) -> 0 | BF119: =SUM(V$119:V$121) -> 0 | BG119: =SUM(W$119:W$121) -> 0 | BH119: =SUM(X$119:X$121) -> 0 | BI119: =SUM(Y$119:Y$121) -> 0 | BJ119: =SUM(Z$119:Z$121) -> 0 | BK119: =SUM(AA$119:AA$121) -> 0 | BL119: =SUM(AB$119:AB$121) -> 0 | BM119: =SUM(AC$119:AC$121) -> 0 | BN119: =SUM(AD$119:AD$121) -> 0 | BO119: 0 | BP119: 0 | BQ119: 0 | BR119: 0 | BS119: 0 | BT119: 0 | BU119: 0 | BV119: 0 | BW119: 0 | BX119: 0 | BY119: 0 | BZ119: 0 | CA119: 0 | CB119: 0 | CC119: 0 | CD119: 0 | CE119: 0 | CF119: 0 | CG119: 0 | CH119: 0 | CI119: 0 | CJ119: 0 | CK119: 0 | CL119: 0 | CM119: 0 | CN119: 0 | CO119: 0 | CP119: 0 | CQ119: 0 | CR119: 0 | CS119: 0 | CT119: 0 | CU119: 0 | CV119: 0 | CW119: 0 | CX119: 0 | CY119: 0 | CZ119: 0 | DA119: 0 | DB119: 0 | DC119: 0 | DD119: 0 | DE119: 0 | DF119: 0 | DG119: 0 | DH119: 0 | DI119: 0 | DJ119: 0
A120: Q2 | B120: Q2 2026-27 | C120: Aug | D120: 2026-27August | E120: 2026-27 | F120: August | AE120: 0 | AF120: 0 | AG120: 0 | AH120: 0 | AI120: 0 | AJ120: 0 | AK120: 0 | AL120: 0 | AM120: 0 | AN120: 0 | AO120: 0 | AP120: 0 | AQ120: 0 | AR120: 0 | AS120: 0 | AT120: 0 | AU120: 0 | AV120: 0 | AW120: 0 | AX120: 0 | AY120: 0 | AZ120: 0 | BA120: 0 | BB120: 0 | BC120: 0 | BD120: 0 | BE120: 0 | BF120: 0 | BG120: 0 | BH120: 0 | BI120: 0 | BJ120: 0 | BK120: 0 | BL120: 0 | BM120: 0 | BN120: 0 | BO120: 0 | BP120: 0 | BQ120: 0 | BR120: 0 | BS120: 0 | BT120: 0 | BU120: 0 | BV120: 0 | BW120: 0 | BX120: 0 | BY120: 0 | BZ120: 0 | CA120: 0 | CB120: 0 | CC120: 0 | CD120: 0 | CE120: 0 | CF120: 0 | CG120: 0 | CH120: 0 | CI120: 0 | CJ120: 0 | CK120: 0 | CL120: 0 | CM120: 0 | CN120: 0 | CO120: 0 | CP120: 0 | CQ120: 0 | CR120: 0 | CS120: 0 | CT120: 0 | CU120: 0 | CV120: 0 | CW120: 0 | CX120: 0 | CY120: 0 | CZ120: 0 | DA120: 0 | DB120: 0 | DC120: 0 | DD120: 0 | DE120: 0 | DF120: 0 | DG120: 0 | DH120: 0 | DI120: 0 | DJ120: 0
A121: Q2 | B121: Q2 2026-27 | C121: Sep | D121: 2026-27September | E121: 2026-27 | F121: September | AE121: 0 | AF121: 0 | AG121: 0 | AH121: 0 | AI121: 0 | AJ121: 0 | AK121: 0 | AL121: 0 | AM121: 0 | AN121: =P120 -> 0 | AO121: 0 | AP121: 0 | AQ121: 0 | AR121: 0 | AS121: 0 | AT121: 0 | AU121: 0 | AV121: 0 | AW121: 0 | AX121: 0 | AY121: 0 | AZ121: 0 | BA121: 0 | BB121: 0 | BC121: 0 | BD121: 0 | BE121: 0 | BF121: 0 | BG121: 0 | BH121: 0 | BI121: 0 | BJ121: 0 | BK121: 0 | BL121: 0 | BM121: 0 | BN121: 0 | BO121: 0 | BP121: 0 | BQ121: 0 | BR121: 0 | BS121: 0 | BT121: 0 | BU121: 0 | BV121: 0 | BW121: 0 | BX121: 0 | BY121: 0 | BZ121: 0 | CA121: 0 | CB121: 0 | CC121: 0 | CD121: 0 | CE121: 0 | CF121: 0 | CG121: 0 | CH121: 0 | CI121: 0 | CJ121: 0 | CK121: 0 | CL121: 0 | CM121: 0 | CN121: 0 | CO121: 0 | CP121: 0 | CQ121: 0 | CR121: 0 | CS121: 0 | CT121: 0 | CU121: 0 | CV121: 0 | CW121: 0 | CX121: 0 | CY121: 0 | CZ121: 0 | DA121: 0 | DB121: 0 | DC121: 0 | DD121: 0 | DE121: 0 | DF121: 0 | DG121: 0 | DH121: 0 | DI121: 0 | DJ121: 0
A122: Q3 | B122: Q3 2026-27 | C122: Oct | D122: 2026-27October | E122: 2026-27 | F122: October | AE122: 0 | AF122: 0 | AG122: 0 | AH122: 0 | AI122: 0 | AJ122: 0 | AK122: 0 | AL122: 0 | AM122: 0 | AN122: 0 | AO122: 0 | AP122: 0 | AQ122: =SUM(G$122:G$124) -> 0 | AR122: 0 | AS122: 0 | AT122: 0 | AU122: 0 | AV122: 0 | AW122: 0 | AX122: 0 | AY122: 0 | AZ122: =SUM(P$122:P$124) -> 0 | BA122: =SUM(Q$122:Q$124) -> 0 | BB122: =SUM(R$122:R$124) -> 0 | BC122: =SUM(S$122:S$124) -> 0 | BD122: 0 | BE122: 0 | BF122: 0 | BG122: 0 | BH122: 0 | BI122: 0 | BJ122: 0 | BK122: 0 | BL122: 0 | BM122: 0 | BN122: 0 | BO122: 0 | BP122: 0 | BQ122: 0 | BR122: 0 | BS122: 0 | BT122: 0 | BU122: 0 | BV122: 0 | BW122: 0 | BX122: 0 | BY122: 0 | BZ122: 0 | CA122: 0 | CB122: 0 | CC122: 0 | CD122: 0 | CE122: 0 | CF122: 0 | CG122: 0 | CH122: 0 | CI122: 0 | CJ122: 0 | CK122: 0 | CL122: 0 | CM122: 0 | CN122: 0 | CO122: 0 | CP122: 0 | CQ122: 0 | CR122: 0 | CS122: 0 | CT122: 0 | CU122: 0 | CV122: 0 | CW122: 0 | CX122: 0 | CY122: 0 | CZ122: 0 | DA122: 0 | DB122: 0 | DC122: 0 | DD122: 0 | DE122: 0 | DF122: 0 | DG122: 0 | DH122: 0 | DI122: 0 | DJ122: 0
A123: Q3 | B123: Q3 2026-27 | C123: Nov | D123: 2026-27November | E123: 2026-27 | F123: November | AE123: 0 | AF123: 0 | AG123: 0 | AH123: 0 | AI123: 0 | AJ123: 0 | AK123: 0 | AL123: 0 | AM123: 0 | AN123: 0 | AO123: 0 | AP123: 0 | AQ123: =SUM(G$122:G$124) -> 0 | AR123: =SUM(H$122:H$124) -> 0 | AS123: 0 | AT123: 0 | AU123: 0 | AV123: 0 | AW123: 0 | AX123: 0 | AY123: 0 | AZ123: 0 | BA123: 0 | BB123: 0 | BC123: 0 | BD123: 0 | BE123: 0 | BF123: 0 | BG123: 0 | BH123: 0 | BI123: 0 | BJ123: 0 | BK123: 0 | BL123: 0 | BM123: 0 | BN123: 0 | BO123: 0 | BP123: 0 | BQ123: 0 | BR123: 0 | BS123: 0 | BT123: 0 | BU123: 0 | BV123: 0 | BW123: 0 | BX123: 0 | BY123: 0 | BZ123: 0 | CA123: 0 | CB123: 0 | CC123: 0 | CD123: 0 | CE123: 0 | CF123: 0 | CG123: 0 | CH123: 0 | CI123: 0 | CJ123: 0 | CK123: 0 | CL123: 0 | CM123: 0 | CN123: 0 | CO123: 0 | CP123: 0 | CQ123: 0 | CR123: 0 | CS123: 0 | CT123: 0 | CU123: 0 | CV123: 0 | CW123: 0 | CX123: 0 | CY123: 0 | CZ123: 0 | DA123: 0 | DB123: 0 | DC123: 0 | DD123: 0 | DE123: 0 | DF123: 0 | DG123: 0 | DH123: 0 | DI123: 0 | DJ123: 0
A124: Q3 | B124: Q3 2026-27 | C124: Dec | D124: 2026-27December | E124: 2026-27 | F124: December | AE124: 0 | AF124: 0 | AG124: 0 | AH124: 0 | AI124: 0 | AJ124: 0 | AK124: 0 | AL124: 0 | AM124: 0 | AN124: 0 | AO124: 0 | AP124: 0 | AQ124: =SUM(G$122:G$124) -> 0 | AR124: 0 | AS124: 0 | AT124: 0 | AU124: 0 | AV124: 0 | AW124: 0 | AX124: 0 | AY124: 0 | AZ124: 0 | BA124: 0 | BB124: 0 | BC124: 0 | BD124: 0 | BE124: 0 | BF124: 0 | BG124: 0 | BH124: 0 | BI124: 0 | BJ124: 0 | BK124: 0 | BL124: 0 | BM124: 0 | BN124: 0 | BO124: 0 | BP124: 0 | BQ124: 0 | BR124: 0 | BS124: 0 | BT124: 0 | BU124: 0 | BV124: 0 | BW124: 0 | BX124: 0 | BY124: 0 | BZ124: 0 | CA124: 0 | CB124: 0 | CC124: 0 | CD124: 0 | CE124: 0 | CF124: 0 | CG124: 0 | CH124: 0 | CI124: 0 | CJ124: 0 | CK124: 0 | CL124: 0 | CM124: 0 | CN124: 0 | CO124: 0 | CP124: 0 | CQ124: 0 | CR124: 0 | CS124: 0 | CT124: 0 | CU124: 0 | CV124: 0 | CW124: 0 | CX124: 0 | CY124: 0 | CZ124: 0 | DA124: 0 | DB124: 0 | DC124: 0 | DD124: 0 | DE124: 0 | DF124: 0 | DG124: 0 | DH124: 0 | DI124: 0 | DJ124: 0
A125: Q4 | B125: Q4 2026-27 | C125: Jan | D125: 2026-27January | E125: 2026-27 | F125: January | AE125: 0 | AF125: 0 | AG125: 0 | AH125: 0 | AI125: 0 | AJ125: 0 | AK125: 0 | AL125: 0 | AM125: 0 | AN125: 0 | AO125: 0 | AP125: 0 | AQ125: =SUM(G$125:G$127) -> 0 | AR125: 0 | AS125: 0 | AT125: 0 | AU125: 0 | AV125: 0 | AW125: 0 | AX125: 0 | AY125: 0 | AZ125: =SUM(P$125:P$127) -> 0 | BA125: =SUM(Q$125:Q$127) -> 0 | BB125: =SUM(R$125:R$127) -> 0 | BC125: =SUM(S$125:S$127) -> 0 | BD125: 0 | BE125: 0 | BF125: 0 | BG125: 0 | BH125: 0 | BI125: 0 | BJ125: 0 | BK125: 0 | BL125: 0 | BM125: 0 | BN125: 0 | BO125: 0 | BP125: 0 | BQ125: 0 | BR125: 0 | BS125: 0 | BT125: 0 | BU125: 0 | BV125: 0 | BW125: 0 | BX125: 0 | BY125: 0 | BZ125: 0 | CA125: 0 | CB125: 0 | CC125: 0 | CD125: 0 | CE125: 0 | CF125: 0 | CG125: 0 | CH125: 0 | CI125: 0 | CJ125: 0 | CK125: 0 | CL125: 0 | CM125: 0 | CN125: 0 | CO125: 0 | CP125: 0 | CQ125: 0 | CR125: 0 | CS125: 0 | CT125: 0 | CU125: 0 | CV125: 0 | CW125: 0 | CX125: 0 | CY125: 0 | CZ125: 0 | DA125: 0 | DB125: 0 | DC125: 0 | DD125: 0 | DE125: 0 | DF125: 0 | DG125: 0 | DH125: 0 | DI125: 0 | DJ125: 0
A126: Q4 | B126: Q4 2026-27 | C126: Feb | D126: 2026-27February | E126: 2026-27 | F126: February | AE126: 0 | AF126: 0 | AG126: 0 | AH126: 0 | AI126: 0 | AJ126: 0 | AK126: 0 | AL126: 0 | AM126: 0 | AN126: 0 | AO126: 0 | AP126: 0 | AQ126: =SUM(G$125:G$127) -> 0 | AR126: =SUM(H$125:H$127) -> 0 | AS126: 0 | AT126: 0 | AU126: 0 | AV126: 0 | AW126: 0 | AX126: 0 | AY126: 0 | AZ126: 0 | BA126: 0 | BB126: 0 | BC126: 0 | BD126: 0 | BE126: 0 | BF126: 0 | BG126: 0 | BH126: 0 | BI126: 0 | BJ126: 0 | BK126: 0 | BL126: 0 | BM126: 0 | BN126: 0 | BO126: 0 | BP126: 0 | BQ126: 0 | BR126: 0 | BS126: 0 | BT126: 0 | BU126: 0 | BV126: 0 | BW126: 0 | BX126: 0 | BY126: 0 | BZ126: 0 | CA126: 0 | CB126: 0 | CC126: 0 | CD126: 0 | CE126: 0 | CF126: 0 | CG126: 0 | CH126: 0 | CI126: 0 | CJ126: 0 | CK126: 0 | CL126: 0 | CM126: 0 | CN126: 0 | CO126: 0 | CP126: 0 | CQ126: 0 | CR126: 0 | CS126: 0 | CT126: 0 | CU126: 0 | CV126: 0 | CW126: 0 | CX126: 0 | CY126: 0 | CZ126: 0 | DA126: 0 | DB126: 0 | DC126: 0 | DD126: 0 | DE126: 0 | DF126: 0 | DG126: 0 | DH126: 0 | DI126: 0 | DJ126: 0
A127: Q4 | B127: Q4 2026-27 | C127: Mar | D127: 2026-27March | E127: 2026-27 | F127: March | AE127: 0 | AF127: 0 | AG127: 0 | AH127: 0 | AI127: 0 | AJ127: 0 | AK127: 0 | AL127: 0 | AM127: 0 | AN127: 0 | AO127: 0 | AP127: 0 | AQ127: 0 | AR127: 0 | AS127: 0 | AT127: 0 | AU127: 0 | AV127: 0 | AW127: 0 | AX127: 0 | AY127: 0 | AZ127: 0 | BA127: 0 | BB127: 0 | BC127: 0 | BD127: 0 | BE127: 0 | BF127: 0 | BG127: 0 | BH127: 0 | BI127: 0 | BJ127: 0 | BK127: 0 | BL127: 0 | BM127: 0 | BN127: 0 | BO127: 0 | BP127: 0 | BQ127: 0 | BR127: 0 | BS127: 0 | BT127: 0 | BU127: 0 | BV127: 0 | BW127: 0 | BX127: 0 | BY127: 0 | BZ127: 0 | CA127: 0 | CB127: 0 | CC127: 0 | CD127: 0 | CE127: 0 | CF127: 0 | CG127: 0 | CH127: 0 | CI127: 0 | CJ127: 0 | CK127: 0 | CL127: 0 | CM127: 0 | CN127: 0 | CO127: 0 | CP127: 0 | CQ127: 0 | CR127: 0 | CS127: 0 | CT127: 0 | CU127: 0 | CV127: 0 | CW127: 0 | CX127: 0 | CY127: 0 | CZ127: 0 | DA127: 0 | DB127: 0 | DC127: 0 | DD127: 0 | DE127: 0 | DF127: 0 | DG127: 0 | DH127: 0 | DI127: 0 | DJ127: 0
